Organisation Name,Organisation Code,Date Paid,Transaction Number,Amount,Supplier Name,Supplier ID,Supplier post code (first 4 digits),Directorate,Service Area,General Ledger code Description,BVACOP class,Revenue/ Capital Spend
Wiltshire,http://opendatacommunities.org/id/unitary-authority/wiltshire,30/12/2020,5107423441,2750,11kbw ,127212,EC4Y,Resources,Legal Services,Legal Fees,Supplies and Services,REVENUE
Wiltshire,http://opendatacommunities.org/id/unitary-authority/wiltshire,07/12/2020,1902745227,5365,1st Choice Stairlifts ,113095,SN11,Wiltshire Council,Wiltshire Council,Other Contracts,Third Party Payments,CAPITAL
Wiltshire,http://opendatacommunities.org/id/unitary-authority/wiltshire,22/12/2020,1902759727,1060,1st Choice Stairlifts ,113095,SN11,Wiltshire Council,Wiltshire Council,Other Contracts,Third Party Payments,CAPITAL
Wiltshire,http://opendatacommunities.org/id/unitary-authority/wiltshire,08/12/2020,1902741022,2463.44,2 Care UK Ltd ,110002,BH7 ,Community Services,MH AOWA South Locali,Supported Living,Third Party Payments,REVENUE
Wiltshire,http://opendatacommunities.org/id/unitary-authority/wiltshire,08/12/2020,1902741023,2463.44,2 Care UK Ltd ,110002,BH7 ,Community Services,MH AOWA South Locali,Supported Living,Third Party Payments,REVENUE
Wiltshire,http://opendatacommunities.org/id/unitary-authority/wiltshire,08/12/2020,1902741024,2463.44,2 Care UK Ltd ,110002,BH7 ,Community Services,MH AOWA South Locali,Supported Living,Third Party Payments,REVENUE
Wiltshire,http://opendatacommunities.org/id/unitary-authority/wiltshire,08/12/2020,1902741025,2463.44,2 Care UK Ltd ,110002,BH7 ,Community Services,MH AOWA South Locali,Supported Living,Third Party Payments,REVENUE
Wiltshire,http://opendatacommunities.org/id/unitary-authority/wiltshire,08/12/2020,1902741026,2463.44,2 Care UK Ltd ,110002,BH7 ,Community Services,MH AOWA South Locali,Supported Living,Third Party Payments,REVENUE
Wiltshire,http://opendatacommunities.org/id/unitary-authority/wiltshire,04/12/2020,1902742543,773.5,2020 Private Hire ,101333,SN16,Neighbourhood & Planning,Mainstream Primary,Transport Contracts,Third Party Payments,REVENUE
Wiltshire,http://opendatacommunities.org/id/unitary-authority/wiltshire,04/12/2020,1902742544,451.5,2020 Private Hire ,101333,SN16,Neighbourhood & Planning,Mainstream Secondary,Transport Contracts,Third Party Payments,REVENUE
Wiltshire,http://opendatacommunities.org/id/unitary-authority/wiltshire,04/12/2020,1902742546,337.5,2020 Private Hire ,101333,SN16,Neighbourhood & Planning,SEN Primary Transprt,Transport Contracts,Third Party Payments,REVENUE
Wiltshire,http://opendatacommunities.org/id/unitary-authority/wiltshire,04/12/2020,1902742548,476,2020 Private Hire ,101333,SN16,Neighbourhood & Planning,SEN 16+ Transport,Transport Contracts,Third Party Payments,REVENUE
Wiltshire,http://opendatacommunities.org/id/unitary-authority/wiltshire,08/12/2020,1902741083,1341,247 Home Care ,148234,SN5 ,Community Services,CTPLD Placements,Supported Living,Third Party Payments,REVENUE
Wiltshire,http://opendatacommunities.org/id/unitary-authority/wiltshire,08/12/2020,1902741084,255.52,247 Home Care ,148234,SN5 ,Community Services,MH OP N&E Locality,Supported Living,Third Party Payments,REVENUE
Wiltshire,http://opendatacommunities.org/id/unitary-authority/wiltshire,10/12/2020,1902748001,444.16,247 Home Care ,148234,SN5 ,Community Services,North Care Packages,Adult Domiciliary Care Contribution,Income,REVENUE
Wiltshire,http://opendatacommunities.org/id/unitary-authority/wiltshire,10/12/2020,1902748003,1428.68,247 Home Care ,148234,SN5 ,Resources,Covid19 - Hospital D,Adult Domiciliary Care,Third Party Payments,REVENUE
Wiltshire,http://opendatacommunities.org/id/unitary-authority/wiltshire,10/12/2020,1902748004,3418.86,247 Home Care ,148234,SN5 ,Resources,Covid19 - Hospital D,Adult Domiciliary Care,Third Party Payments,REVENUE
Wiltshire,http://opendatacommunities.org/id/unitary-authority/wiltshire,10/12/2020,1902748005,3205.58,247 Home Care ,148234,SN5 ,Community Services,CTPLD Placements,Supported Living,Third Party Payments,REVENUE
Wiltshire,http://opendatacommunities.org/id/unitary-authority/wiltshire,16/12/2020,1902754247,2070.64,247 Home Care ,148234,SN5 ,Community Services,North Care Packages,Adult Domiciliary Care,Third Party Payments,REVENUE
Wiltshire,http://opendatacommunities.org/id/unitary-authority/wiltshire,16/12/2020,1902754248,2380.28,247 Home Care ,148234,SN5 ,Community Services,North Care Packages,Adult Domiciliary Care,Third Party Payments,REVENUE
Wiltshire,http://opendatacommunities.org/id/unitary-authority/wiltshire,23/12/2020,1902756580,2151.34,247 Home Care ,148234,SN5 ,Resources,Covid19 - Hospital D,Grants Expenditure,Supplies and Services,REVENUE
Wiltshire,http://opendatacommunities.org/id/unitary-authority/wiltshire,01/12/2020,1902739219,839.13,2get2 Taxi Services Ltd ,101102,SP4 ,Neighbourhood & Planning,SEN Primary Transprt,Transport Contracts,Third Party Payments,REVENUE
Wiltshire,http://opendatacommunities.org/id/unitary-authority/wiltshire,01/12/2020,1902739219,2037.87,2get2 Taxi Services Ltd ,101102,SP4 ,Neighbourhood & Planning,SEN Secondary Tspt,Transport Contracts,Third Party Payments,REVENUE
Wiltshire,http://opendatacommunities.org/id/unitary-authority/wiltshire,01/12/2020,1902739220,2310,2get2 Taxi Services Ltd ,101102,SP4 ,Neighbourhood & Planning,SEN Primary Transprt,Transport Contracts,Third Party Payments,REVENUE
Wiltshire,http://opendatacommunities.org/id/unitary-authority/wiltshire,01/12/2020,1902739206,3103.31,4K Travel ,146614,SN2 ,Neighbourhood & Planning,Mainstream Secondary,Transport Contracts,Third Party Payments,REVENUE
Wiltshire,http://opendatacommunities.org/id/unitary-authority/wiltshire,01/12/2020,1902739207,3071.92,4K Travel ,146614,SN2 ,Neighbourhood & Planning,Mainstream Secondary,Transport Contracts,Third Party Payments,REVENUE
Wiltshire,http://opendatacommunities.org/id/unitary-authority/wiltshire,01/12/2020,1902739208,3233.5,4K Travel ,146614,SN2 ,Neighbourhood & Planning,Mainstream Primary,Transport Contracts,Third Party Payments,REVENUE
Wiltshire,http://opendatacommunities.org/id/unitary-authority/wiltshire,01/12/2020,1902739210,2516.58,4K Travel ,146614,SN2 ,Neighbourhood & Planning,Mainstream Secondary,Transport Contracts,Third Party Payments,REVENUE
Wiltshire,http://opendatacommunities.org/id/unitary-authority/wiltshire,01/12/2020,1902739211,4284.31,4K Travel ,146614,SN2 ,Neighbourhood & Planning,Mainstream Secondary,Transport Contracts,Third Party Payments,REVENUE
Wiltshire,http://opendatacommunities.org/id/unitary-authority/wiltshire,01/12/2020,1902739215,2261,4K Travel ,146614,SN2 ,Neighbourhood & Planning,SEN Secondary Tspt,Transport Contracts,Third Party Payments,REVENUE
Wiltshire,http://opendatacommunities.org/id/unitary-authority/wiltshire,01/12/2020,1902739217,3325,4K Travel ,146614,SN2 ,Neighbourhood & Planning,Mainstream Secondary,Transport Contracts,Third Party Payments,REVENUE
Wiltshire,http://opendatacommunities.org/id/unitary-authority/wiltshire,01/12/2020,1902739221,264,4K Travel ,146614,SN2 ,Neighbourhood & Planning,Public Transport,Transport Contracts,Third Party Payments,REVENUE
Wiltshire,http://opendatacommunities.org/id/unitary-authority/wiltshire,01/12/2020,1902739223,782.85,4K Travel ,146614,SN2 ,Neighbourhood & Planning,SEN Primary Transprt,Transport Contracts,Third Party Payments,REVENUE
Wiltshire,http://opendatacommunities.org/id/unitary-authority/wiltshire,01/12/2020,1902739223,1957.15,4K Travel ,146614,SN2 ,Neighbourhood & Planning,SEN Secondary Tspt,Transport Contracts,Third Party Payments,REVENUE
Wiltshire,http://opendatacommunities.org/id/unitary-authority/wiltshire,01/12/2020,1902739224,1210.09,4K Travel ,146614,SN2 ,Neighbourhood & Planning,SEN Primary Transprt,Transport Contracts,Third Party Payments,REVENUE
Wiltshire,http://opendatacommunities.org/id/unitary-authority/wiltshire,01/12/2020,1902739224,2909.91,4K Travel ,146614,SN2 ,Neighbourhood & Planning,SEN Secondary Tspt,Transport Contracts,Third Party Payments,REVENUE
Wiltshire,http://opendatacommunities.org/id/unitary-authority/wiltshire,04/12/2020,1902742558,529.61,4K Travel ,146614,SN2 ,Community Services,North Care Packages,Transport Contracts,Third Party Payments,REVENUE
Wiltshire,http://opendatacommunities.org/id/unitary-authority/wiltshire,04/12/2020,1902742558,2621.59,4K Travel ,146614,SN2 ,Community Services,CTPLD Placements,Transport Contracts,Third Party Payments,REVENUE
Wiltshire,http://opendatacommunities.org/id/unitary-authority/wiltshire,08/12/2020,1902745780,273.83,4K Travel ,146614,SN2 ,Neighbourhood & Planning,Mainstream Secondary,Transport Contracts,Third Party Payments,REVENUE
Wiltshire,http://opendatacommunities.org/id/unitary-authority/wiltshire,08/12/2020,1902745780,821.51,4K Travel ,146614,SN2 ,Neighbourhood & Planning,SEN 16+ Transport,Transport Contracts,Third Party Payments,REVENUE
Wiltshire,http://opendatacommunities.org/id/unitary-authority/wiltshire,08/12/2020,1902745780,1095.32,4K Travel ,146614,SN2 ,Neighbourhood & Planning,Mainstream 16+ FE,Transport Contracts,Third Party Payments,REVENUE
Wiltshire,http://opendatacommunities.org/id/unitary-authority/wiltshire,08/12/2020,1902745793,272.97,4K Travel ,146614,SN2 ,Neighbourhood & Planning,Public Transport,Transport Contracts,Third Party Payments,REVENUE
Wiltshire,http://opendatacommunities.org/id/unitary-authority/wiltshire,08/12/2020,1902745793,2333.33,4K Travel ,146614,SN2 ,Neighbourhood & Planning,Mainstream Primary,Transport Contracts,Third Party Payments,REVENUE
Wiltshire,http://opendatacommunities.org/id/unitary-authority/wiltshire,23/12/2020,1902735037,1110.48,A & T Salisbury (Ltd) ,134373,SP1 ,Resources,Covid19 - Hospital D,Adult Domiciliary Care,Third Party Payments,REVENUE
Wiltshire,http://opendatacommunities.org/id/unitary-authority/wiltshire,23/12/2020,1902735038,611.82,A & T Salisbury (Ltd) ,134373,SP1 ,Community Services,South Care Packages,Adult Domiciliary Care,Third Party Payments,REVENUE
Wiltshire,http://opendatacommunities.org/id/unitary-authority/wiltshire,23/12/2020,1902745705,368.29,A & T Salisbury (Ltd) ,134373,SP1 ,Community Services,South Care Packages,Adult Domiciliary Care,Third Party Payments,REVENUE
Wiltshire,http://opendatacommunities.org/id/unitary-authority/wiltshire,23/12/2020,1902763583,758.08,A & T Salisbury (Ltd) ,134373,SP1 ,Community Services,West Care Packages,Adult Domiciliary Care,Third Party Payments,REVENUE
Wiltshire,http://opendatacommunities.org/id/unitary-authority/wiltshire,23/12/2020,1902763584,1079.44,A & T Salisbury (Ltd) ,134373,SP1 ,Community Services,South Care Packages,Adult Domiciliary Care,Third Party Payments,REVENUE
Wiltshire,http://opendatacommunities.org/id/unitary-authority/wiltshire,23/12/2020,1902763585,799.8,A & T Salisbury (Ltd) ,134373,SP1 ,Community Services,South Care Packages,Adult Domiciliary Care Contribution,Income,REVENUE
Wiltshire,http://opendatacommunities.org/id/unitary-authority/wiltshire,23/12/2020,1902763586,317.24,A & T Salisbury (Ltd) ,134373,SP1 ,Resources,Covid19 - Hospital D,Adult Domiciliary Care,Third Party Payments,REVENUE
Wiltshire,http://opendatacommunities.org/id/unitary-authority/wiltshire,23/12/2020,1902763587,430.54,A & T Salisbury (Ltd) ,134373,SP1 ,Community Services,South Care Packages,Adult Domiciliary Care,Third Party Payments,REVENUE
Wiltshire,http://opendatacommunities.org/id/unitary-authority/wiltshire,08/12/2020,1902745787,997.5,A G Minibuses Ltd ,100878,BA12,Neighbourhood & Planning,Mainstream Primary,Transport Contracts,Third Party Payments,REVENUE
Wiltshire,http://opendatacommunities.org/id/unitary-authority/wiltshire,08/12/2020,1902745787,3295.86,A G Minibuses Ltd ,100878,BA12,Neighbourhood & Planning,Public Transport,Transport Contracts,Third Party Payments,REVENUE
Wiltshire,http://opendatacommunities.org/id/unitary-authority/wiltshire,08/12/2020,1902745788,1583.33,A G Minibuses Ltd ,100878,BA12,Neighbourhood & Planning,Mainstream Secondary,Transport Contracts,Third Party Payments,REVENUE
Wiltshire,http://opendatacommunities.org/id/unitary-authority/wiltshire,08/12/2020,1902745788,3903.8,A G Minibuses Ltd ,100878,BA12,Neighbourhood & Planning,Public Transport,Transport Contracts,Third Party Payments,REVENUE
Wiltshire,http://opendatacommunities.org/id/unitary-authority/wiltshire,08/12/2020,1902745812,2255.56,A G Minibuses Ltd ,100878,BA12,Neighbourhood & Planning,Mainstream Primary,Transport Contracts,Third Party Payments,REVENUE
Wiltshire,http://opendatacommunities.org/id/unitary-authority/wiltshire,08/12/2020,1902745814,4158,A G Minibuses Ltd ,100878,BA12,Neighbourhood & Planning,SEN Primary Transprt,Transport Contracts,Third Party Payments,REVENUE
Wiltshire,http://opendatacommunities.org/id/unitary-authority/wiltshire,08/12/2020,1902745815,882.76,A G Minibuses Ltd ,100878,BA12,Neighbourhood & Planning,SEN Primary Transprt,Transport Contracts,Third Party Payments,REVENUE
Wiltshire,http://opendatacommunities.org/id/unitary-authority/wiltshire,08/12/2020,1902745815,1973.24,A G Minibuses Ltd ,100878,BA12,Neighbourhood & Planning,SEN Secondary Tspt,Transport Contracts,Third Party Payments,REVENUE
Wiltshire,http://opendatacommunities.org/id/unitary-authority/wiltshire,08/12/2020,1902745820,1784,A G Minibuses Ltd ,100878,BA12,Neighbourhood & Planning,SEN Primary Transprt,Transport Contracts,Third Party Payments,REVENUE
Wiltshire,http://opendatacommunities.org/id/unitary-authority/wiltshire,08/12/2020,1902745820,1784,A G Minibuses Ltd ,100878,BA12,Neighbourhood & Planning,SEN Secondary Tspt,Transport Contracts,Third Party Payments,REVENUE
Wiltshire,http://opendatacommunities.org/id/unitary-authority/wiltshire,08/12/2020,1902745823,366.43,A G Minibuses Ltd ,100878,BA12,Neighbourhood & Planning,SEN Primary Transprt,Transport Contracts,Third Party Payments,REVENUE
Wiltshire,http://opendatacommunities.org/id/unitary-authority/wiltshire,08/12/2020,1902745823,2198.57,A G Minibuses Ltd ,100878,BA12,Neighbourhood & Planning,SEN Secondary Tspt,Transport Contracts,Third Party Payments,REVENUE
Wiltshire,http://opendatacommunities.org/id/unitary-authority/wiltshire,08/12/2020,1902745824,2641,A G Minibuses Ltd ,100878,BA12,Neighbourhood & Planning,SEN Secondary Tspt,Transport Contracts,Third Party Payments,REVENUE
Wiltshire,http://opendatacommunities.org/id/unitary-authority/wiltshire,08/12/2020,1902745825,526.67,A G Minibuses Ltd ,100878,BA12,Neighbourhood & Planning,SEN Primary Transprt,Transport Contracts,Third Party Payments,REVENUE
Wiltshire,http://opendatacommunities.org/id/unitary-authority/wiltshire,08/12/2020,1902745825,2633.33,A G Minibuses Ltd ,100878,BA12,Neighbourhood & Planning,SEN Secondary Tspt,Transport Contracts,Third Party Payments,REVENUE
Wiltshire,http://opendatacommunities.org/id/unitary-authority/wiltshire,08/12/2020,1902745826,3918.6,A G Minibuses Ltd ,100878,BA12,Neighbourhood & Planning,SEN Secondary Tspt,Transport Contracts,Third Party Payments,REVENUE
Wiltshire,http://opendatacommunities.org/id/unitary-authority/wiltshire,08/12/2020,1902745827,2751,A G Minibuses Ltd ,100878,BA12,Neighbourhood & Planning,Mainstream Secondary,Transport Contracts,Third Party Payments,REVENUE
Wiltshire,http://opendatacommunities.org/id/unitary-authority/wiltshire,08/12/2020,1902745828,432,A G Minibuses Ltd ,100878,BA12,Neighbourhood & Planning,SEN Primary Transprt,Transport Contracts,Third Party Payments,REVENUE
Wiltshire,http://opendatacommunities.org/id/unitary-authority/wiltshire,08/12/2020,1902745828,2592,A G Minibuses Ltd ,100878,BA12,Neighbourhood & Planning,SEN Secondary Tspt,Transport Contracts,Third Party Payments,REVENUE
Wiltshire,http://opendatacommunities.org/id/unitary-authority/wiltshire,08/12/2020,1902745829,2700.39,A G Minibuses Ltd ,100878,BA12,Neighbourhood & Planning,SEN Secondary Tspt,Transport Contracts,Third Party Payments,REVENUE
Wiltshire,http://opendatacommunities.org/id/unitary-authority/wiltshire,08/12/2020,1902745830,3189.06,A G Minibuses Ltd ,100878,BA12,Neighbourhood & Planning,SEN Secondary Tspt,Transport Contracts,Third Party Payments,REVENUE
Wiltshire,http://opendatacommunities.org/id/unitary-authority/wiltshire,08/12/2020,1902745831,816.69,A G Minibuses Ltd ,100878,BA12,Neighbourhood & Planning,SEN Primary Transprt,Transport Contracts,Third Party Payments,REVENUE
Wiltshire,http://opendatacommunities.org/id/unitary-authority/wiltshire,08/12/2020,1902745831,2216.76,A G Minibuses Ltd ,100878,BA12,Neighbourhood & Planning,SEN Secondary Tspt,Transport Contracts,Third Party Payments,REVENUE
Wiltshire,http://opendatacommunities.org/id/unitary-authority/wiltshire,08/12/2020,1902745832,2310,A G Minibuses Ltd ,100878,BA12,Community Services,CTPLD Placements,Transport Contracts,Third Party Payments,REVENUE
Wiltshire,http://opendatacommunities.org/id/unitary-authority/wiltshire,08/12/2020,1902745833,1232,A G Minibuses Ltd ,100878,BA12,Neighbourhood & Planning,SEN Primary Transprt,Transport Contracts,Third Party Payments,REVENUE
Wiltshire,http://opendatacommunities.org/id/unitary-authority/wiltshire,08/12/2020,1902745833,1848,A G Minibuses Ltd ,100878,BA12,Neighbourhood & Planning,SEN Secondary Tspt,Transport Contracts,Third Party Payments,REVENUE
Wiltshire,http://opendatacommunities.org/id/unitary-authority/wiltshire,08/12/2020,1902745834,2849.7,A G Minibuses Ltd ,100878,BA12,Neighbourhood & Planning,SEN Primary Transprt,Transport Contracts,Third Party Payments,REVENUE
Wiltshire,http://opendatacommunities.org/id/unitary-authority/wiltshire,08/12/2020,1902745835,1489.1,A G Minibuses Ltd ,100878,BA12,Neighbourhood & Planning,SEN Primary Transprt,Transport Contracts,Third Party Payments,REVENUE
Wiltshire,http://opendatacommunities.org/id/unitary-authority/wiltshire,08/12/2020,1902745835,1489.1,A G Minibuses Ltd ,100878,BA12,Neighbourhood & Planning,SEN Secondary Tspt,Transport Contracts,Third Party Payments,REVENUE
Wiltshire,http://opendatacommunities.org/id/unitary-authority/wiltshire,08/12/2020,1902745836,2812,A G Minibuses Ltd ,100878,BA12,Neighbourhood & Planning,SEN Secondary Tspt,Transport Contracts,Third Party Payments,REVENUE
Wiltshire,http://opendatacommunities.org/id/unitary-authority/wiltshire,08/12/2020,1902745837,1602,A G Minibuses Ltd ,100878,BA12,Neighbourhood & Planning,SEN Secondary Tspt,Transport Contracts,Third Party Payments,REVENUE
Wiltshire,http://opendatacommunities.org/id/unitary-authority/wiltshire,08/12/2020,1902745847,1140,A G Minibuses Ltd ,100878,BA12,Neighbourhood & Planning,SEN Secondary Tspt,Transport Contracts,Third Party Payments,REVENUE
Wiltshire,http://opendatacommunities.org/id/unitary-authority/wiltshire,08/12/2020,1902745847,2280,A G Minibuses Ltd ,100878,BA12,Neighbourhood & Planning,SEN Primary Transprt,Transport Contracts,Third Party Payments,REVENUE
Wiltshire,http://opendatacommunities.org/id/unitary-authority/wiltshire,01/12/2020,1902739338,285.13,A Plan Holdings ,150212,BA1 ,Community Services,South Care Packages,Adult Domiciliary Care,Third Party Payments,REVENUE
Wiltshire,http://opendatacommunities.org/id/unitary-authority/wiltshire,02/12/2020,1902740144,1800,A W Taxis Ltd ,149135,GL16,Children & Education,CiC Team North,Transport Contracts,Third Party Payments,REVENUE
Wiltshire,http://opendatacommunities.org/id/unitary-authority/wiltshire,01/12/2020,1902739194,1680,A1 Cab Company ,101233,SP4 ,Neighbourhood & Planning,SEN Primary Transprt,Transport Contracts,Third Party Payments,REVENUE
Wiltshire,http://opendatacommunities.org/id/unitary-authority/wiltshire,01/12/2020,1902739203,417.9,A1 Cab Company ,101233,SP4 ,Neighbourhood & Planning,SEN Secondary Tspt,Transport Contracts,Third Party Payments,REVENUE
Wiltshire,http://opendatacommunities.org/id/unitary-authority/wiltshire,01/12/2020,1902739203,1671.6,A1 Cab Company ,101233,SP4 ,Neighbourhood & Planning,Mainstream Secondary,Transport Contracts,Third Party Payments,REVENUE
Wiltshire,http://opendatacommunities.org/id/unitary-authority/wiltshire,01/12/2020,1902739163,272,A2B Taxis (Dorset) ,143353,SP8 ,Community Services,CTPLD Placements,Transport Contracts,Third Party Payments,REVENUE
Wiltshire,http://opendatacommunities.org/id/unitary-authority/wiltshire,01/12/2020,1902739174,588,A2B Taxis (Dorset) ,143353,SP8 ,Neighbourhood & Planning,SEN Secondary Tspt,Transport Contracts,Third Party Payments,REVENUE
Wiltshire,http://opendatacommunities.org/id/unitary-authority/wiltshire,01/12/2020,1902739174,1176,A2B Taxis (Dorset) ,143353,SP8 ,Neighbourhood & Planning,Mainstream Secondary,Transport Contracts,Third Party Payments,REVENUE
Wiltshire,http://opendatacommunities.org/id/unitary-authority/wiltshire,01/12/2020,1902739177,810,A2B Taxis (Dorset) ,143353,SP8 ,Neighbourhood & Planning,SEN 16+ Transport,Transport Contracts,Third Party Payments,REVENUE
Wiltshire,http://opendatacommunities.org/id/unitary-authority/wiltshire,03/12/2020,1902741684,2421.6,A2B Taxis Westbury ,149947,BA13,Neighbourhood & Planning,SEN Secondary Tspt,Transport Contracts,Third Party Payments,REVENUE
Wiltshire,http://opendatacommunities.org/id/unitary-authority/wiltshire,03/12/2020,1902741685,2177.7,A2B Taxis Westbury ,149947,BA13,Neighbourhood & Planning,SEN Primary Transprt,Transport Contracts,Third Party Payments,REVENUE
Wiltshire,http://opendatacommunities.org/id/unitary-authority/wiltshire,03/12/2020,1902741683,1216,AAP Taxis and Private Hire Ltd ,143342,SN10,Children & Education,CIC Team South,Transport Contracts,Third Party Payments,REVENUE
Wiltshire,http://opendatacommunities.org/id/unitary-authority/wiltshire,16/12/2020,1902749529,6286.83,AB Learning and Education ,125864,SN8 ,Children & Education,Free Enttlmnt 3 & 4y,Childcare Free Entitlement Early Years,Supplies and Services,REVENUE
Wiltshire,http://opendatacommunities.org/id/unitary-authority/wiltshire,04/12/2020,1902742564,569.14,Abbey Taxis (Swindon) Ltd ,100920,SN2 ,Neighbourhood & Planning,SEN Primary Transprt,Transport Contracts,Third Party Payments,REVENUE
Wiltshire,http://opendatacommunities.org/id/unitary-authority/wiltshire,04/12/2020,1902742564,2755.86,Abbey Taxis (Swindon) Ltd ,100920,SN2 ,Neighbourhood & Planning,SEN Secondary Tspt,Transport Contracts,Third Party Payments,REVENUE
Wiltshire,http://opendatacommunities.org/id/unitary-authority/wiltshire,04/12/2020,1902742565,2850,Abbey Taxis (Swindon) Ltd ,100920,SN2 ,Neighbourhood & Planning,SEN Secondary Tspt,Transport Contracts,Third Party Payments,REVENUE
Wiltshire,http://opendatacommunities.org/id/unitary-authority/wiltshire,04/12/2020,1902742566,1900,Abbey Taxis (Swindon) Ltd ,100920,SN2 ,Neighbourhood & Planning,SEN Secondary Tspt,Transport Contracts,Third Party Payments,REVENUE
Wiltshire,http://opendatacommunities.org/id/unitary-authority/wiltshire,04/12/2020,1902742567,3360,Abbey Taxis (Swindon) Ltd ,100920,SN2 ,Neighbourhood & Planning,SEN Primary Transprt,Transport Contracts,Third Party Payments,REVENUE
Wiltshire,http://opendatacommunities.org/id/unitary-authority/wiltshire,04/12/2020,1902742568,2226,Abbey Taxis (Swindon) Ltd ,100920,SN2 ,Neighbourhood & Planning,SEN Secondary Tspt,Transport Contracts,Third Party Payments,REVENUE
Wiltshire,http://opendatacommunities.org/id/unitary-authority/wiltshire,04/12/2020,1902742569,1575,Abbey Taxis (Swindon) Ltd ,100920,SN2 ,Neighbourhood & Planning,Mainstream Primary,Transport Contracts,Third Party Payments,REVENUE
Wiltshire,http://opendatacommunities.org/id/unitary-authority/wiltshire,04/12/2020,1902742569,1575,Abbey Taxis (Swindon) Ltd ,100920,SN2 ,Neighbourhood & Planning,SEN Primary Transprt,Transport Contracts,Third Party Payments,REVENUE
Wiltshire,http://opendatacommunities.org/id/unitary-authority/wiltshire,04/12/2020,1902742570,499.58,Abbey Taxis (Swindon) Ltd ,100920,SN2 ,Neighbourhood & Planning,SEN Primary Transprt,Transport Contracts,Third Party Payments,REVENUE
Wiltshire,http://opendatacommunities.org/id/unitary-authority/wiltshire,04/12/2020,1902742570,2616.82,Abbey Taxis (Swindon) Ltd ,100920,SN2 ,Neighbourhood & Planning,SEN Secondary Tspt,Transport Contracts,Third Party Payments,REVENUE
Wiltshire,http://opendatacommunities.org/id/unitary-authority/wiltshire,04/12/2020,1902742571,735,Abbey Taxis (Swindon) Ltd ,100920,SN2 ,Neighbourhood & Planning,SEN Primary Transprt,Transport Contracts,Third Party Payments,REVENUE
Wiltshire,http://opendatacommunities.org/id/unitary-authority/wiltshire,04/12/2020,1902742571,2205,Abbey Taxis (Swindon) Ltd ,100920,SN2 ,Neighbourhood & Planning,SEN Secondary Tspt,Transport Contracts,Third Party Payments,REVENUE
Wiltshire,http://opendatacommunities.org/id/unitary-authority/wiltshire,04/12/2020,1902742572,1007.16,Abbey Taxis (Swindon) Ltd ,100920,SN2 ,Neighbourhood & Planning,SEN Primary Transprt,Transport Contracts,Third Party Payments,REVENUE
Wiltshire,http://opendatacommunities.org/id/unitary-authority/wiltshire,04/12/2020,1902742572,2014.32,Abbey Taxis (Swindon) Ltd ,100920,SN2 ,Neighbourhood & Planning,SEN Secondary Tspt,Transport Contracts,Third Party Payments,REVENUE
Wiltshire,http://opendatacommunities.org/id/unitary-authority/wiltshire,04/12/2020,1902742573,1336,Abbey Taxis (Swindon) Ltd ,100920,SN2 ,Community Services,CTPLD Placements,Transport Contracts,Third Party Payments,REVENUE
Wiltshire,http://opendatacommunities.org/id/unitary-authority/wiltshire,04/12/2020,1902742574,2310,Abbey Taxis (Swindon) Ltd ,100920,SN2 ,Community Services,CTPLD Placements,Transport Contracts,Third Party Payments,REVENUE
Wiltshire,http://opendatacommunities.org/id/unitary-authority/wiltshire,04/12/2020,1902742575,2310,Abbey Taxis (Swindon) Ltd ,100920,SN2 ,Neighbourhood & Planning,Mainstream Secondary,Transport Contracts,Third Party Payments,REVENUE
Wiltshire,http://opendatacommunities.org/id/unitary-authority/wiltshire,04/12/2020,1902742576,1806,Abbey Taxis (Swindon) Ltd ,100920,SN2 ,Neighbourhood & Planning,SEN Secondary Tspt,Transport Contracts,Third Party Payments,REVENUE
Wiltshire,http://opendatacommunities.org/id/unitary-authority/wiltshire,04/12/2020,1902742577,3066,Abbey Taxis (Swindon) Ltd ,100920,SN2 ,Neighbourhood & Planning,SEN Primary Transprt,Transport Contracts,Third Party Payments,REVENUE
Wiltshire,http://opendatacommunities.org/id/unitary-authority/wiltshire,04/12/2020,1902742578,1281,Abbey Taxis (Swindon) Ltd ,100920,SN2 ,Neighbourhood & Planning,Mainstream Secondary,Transport Contracts,Third Party Payments,REVENUE
Wiltshire,http://opendatacommunities.org/id/unitary-authority/wiltshire,04/12/2020,1902742579,910,Abbey Taxis (Swindon) Ltd ,100920,SN2 ,Neighbourhood & Planning,SEN Secondary Tspt,Transport Contracts,Third Party Payments,REVENUE
Wiltshire,http://opendatacommunities.org/id/unitary-authority/wiltshire,04/12/2020,1902742579,1820,Abbey Taxis (Swindon) Ltd ,100920,SN2 ,Neighbourhood & Planning,SEN Primary Transprt,Transport Contracts,Third Party Payments,REVENUE
Wiltshire,http://opendatacommunities.org/id/unitary-authority/wiltshire,04/12/2020,1902742580,2066.4,Abbey Taxis (Swindon) Ltd ,100920,SN2 ,Neighbourhood & Planning,SEN Secondary Tspt,Transport Contracts,Third Party Payments,REVENUE
Wiltshire,http://opendatacommunities.org/id/unitary-authority/wiltshire,04/12/2020,1902742581,1470,Abbey Taxis (Swindon) Ltd ,100920,SN2 ,Neighbourhood & Planning,SEN Primary Transprt,Transport Contracts,Third Party Payments,REVENUE
Wiltshire,http://opendatacommunities.org/id/unitary-authority/wiltshire,04/12/2020,1902742581,1470,Abbey Taxis (Swindon) Ltd ,100920,SN2 ,Neighbourhood & Planning,SEN Secondary Tspt,Transport Contracts,Third Party Payments,REVENUE
Wiltshire,http://opendatacommunities.org/id/unitary-authority/wiltshire,04/12/2020,1902742582,840,Abbey Taxis (Swindon) Ltd ,100920,SN2 ,Neighbourhood & Planning,SEN Secondary Tspt,Transport Contracts,Third Party Payments,REVENUE
Wiltshire,http://opendatacommunities.org/id/unitary-authority/wiltshire,04/12/2020,1902742583,3465,Abbey Taxis (Swindon) Ltd ,100920,SN2 ,Neighbourhood & Planning,SEN Secondary Tspt,Transport Contracts,Third Party Payments,REVENUE
Wiltshire,http://opendatacommunities.org/id/unitary-authority/wiltshire,04/12/2020,1902742584,1260,Abbey Taxis (Swindon) Ltd ,100920,SN2 ,Neighbourhood & Planning,SEN Primary Transprt,Transport Contracts,Third Party Payments,REVENUE
Wiltshire,http://opendatacommunities.org/id/unitary-authority/wiltshire,04/12/2020,1902742584,1260,Abbey Taxis (Swindon) Ltd ,100920,SN2 ,Neighbourhood & Planning,SEN Secondary Tspt,Transport Contracts,Third Party Payments,REVENUE
Wiltshire,http://opendatacommunities.org/id/unitary-authority/wiltshire,04/12/2020,1902742585,2200,Abbey Taxis (Swindon) Ltd ,100920,SN2 ,Neighbourhood & Planning,SEN 16+ Transport,Transport Contracts,Third Party Payments,REVENUE
Wiltshire,http://opendatacommunities.org/id/unitary-authority/wiltshire,04/12/2020,1902742586,2812,Abbey Taxis (Swindon) Ltd ,100920,SN2 ,Neighbourhood & Planning,SEN Secondary Tspt,Transport Contracts,Third Party Payments,REVENUE
Wiltshire,http://opendatacommunities.org/id/unitary-authority/wiltshire,04/12/2020,1902742587,1989,Abbey Taxis (Swindon) Ltd ,100920,SN2 ,Neighbourhood & Planning,SEN 16+ Transport,Transport Contracts,Third Party Payments,REVENUE
Wiltshire,http://opendatacommunities.org/id/unitary-authority/wiltshire,04/12/2020,1902742588,2919,Abbey Taxis (Swindon) Ltd ,100920,SN2 ,Neighbourhood & Planning,SEN Primary Transprt,Transport Contracts,Third Party Payments,REVENUE
Wiltshire,http://opendatacommunities.org/id/unitary-authority/wiltshire,04/12/2020,1902742589,2360,Abbey Taxis (Swindon) Ltd ,100920,SN2 ,Neighbourhood & Planning,SEN Secondary Tspt,Transport Contracts,Third Party Payments,REVENUE
Wiltshire,http://opendatacommunities.org/id/unitary-authority/wiltshire,04/12/2020,1902742590,2940,Abbey Taxis (Swindon) Ltd ,100920,SN2 ,Neighbourhood & Planning,SEN 16+ Transport,Transport Contracts,Third Party Payments,REVENUE
Wiltshire,http://opendatacommunities.org/id/unitary-authority/wiltshire,04/12/2020,1902742591,2793,Abbey Taxis (Swindon) Ltd ,100920,SN2 ,Neighbourhood & Planning,SEN 16+ Transport,Transport Contracts,Third Party Payments,REVENUE
Wiltshire,http://opendatacommunities.org/id/unitary-authority/wiltshire,04/12/2020,1902742592,765,Abbey Taxis (Swindon) Ltd ,100920,SN2 ,Neighbourhood & Planning,SEN 16+ Transport,Transport Contracts,Third Party Payments,REVENUE
Wiltshire,http://opendatacommunities.org/id/unitary-authority/wiltshire,04/12/2020,1902742593,846.3,Abbey Taxis (Swindon) Ltd ,100920,SN2 ,Children & Education,CIC Team South,Transport Contracts,Third Party Payments,REVENUE
Wiltshire,http://opendatacommunities.org/id/unitary-authority/wiltshire,04/12/2020,1902742593,1800,Abbey Taxis (Swindon) Ltd ,100920,SN2 ,Neighbourhood & Planning,SEN Primary Transprt,Transport Contracts,Third Party Payments,REVENUE
Wiltshire,http://opendatacommunities.org/id/unitary-authority/wiltshire,11/12/2020,1902748191,2380,Abbey Taxis (Swindon) Ltd ,100920,SN2 ,Neighbourhood & Planning,SEN Primary Transprt,Transport Contracts,Third Party Payments,REVENUE
Wiltshire,http://opendatacommunities.org/id/unitary-authority/wiltshire,11/12/2020,1902748193,2420,Abbey Taxis (Swindon) Ltd ,100920,SN2 ,Community Services,CTPLD Placements,Transport Contracts,Third Party Payments,REVENUE
Wiltshire,http://opendatacommunities.org/id/unitary-authority/wiltshire,10/12/2020,5107422688,827,Abbott Toxicology Ltd ,131373,OX14,Children & Education,Supp & Safe North,Pathology Fees,Supplies and Services,REVENUE
Wiltshire,http://opendatacommunities.org/id/unitary-authority/wiltshire,16/12/2020,5107423680,559,Abbott Toxicology Ltd ,131373,OX14,Children & Education,Supp & Safe South,Pathology Fees,Supplies and Services,REVENUE
Wiltshire,http://opendatacommunities.org/id/unitary-authority/wiltshire,17/12/2020,5107423681,569,Abbott Toxicology Ltd ,131373,OX14,Children & Education,Supp & Safe South,Pathology Fees,Supplies and Services,REVENUE
Wiltshire,http://opendatacommunities.org/id/unitary-authority/wiltshire,22/12/2020,5107423682,719,Abbott Toxicology Ltd ,131373,OX14,Children & Education,Supp & Safe South,Pathology Fees,Supplies and Services,REVENUE
Wiltshire,http://opendatacommunities.org/id/unitary-authority/wiltshire,30/12/2020,5107424341,531,Abbott Toxicology Ltd ,131373,OX14,Children & Education,Supp & Safe South,Pathology Fees,Supplies and Services,REVENUE
Wiltshire,http://opendatacommunities.org/id/unitary-authority/wiltshire,30/12/2020,5107424343,365,Abbott Toxicology Ltd ,131373,OX14,Children & Education,Supp & Safe South,Pathology Fees,Supplies and Services,REVENUE
Wiltshire,http://opendatacommunities.org/id/unitary-authority/wiltshire,17/12/2020,1902749651,7986.4,ABC Day Nursery 1027 ,110028,SN12,Children & Education,Free Enttlmnt 3 & 4y,Childcare Free Entitlement Early Years,Supplies and Services,REVENUE
Wiltshire,http://opendatacommunities.org/id/unitary-authority/wiltshire,17/12/2020,1902749652,1984.5,ABC Day Nursery 1027 ,110028,SN12,Children & Education,Free Entitlement 2 Y,Childcare Free Entitlement Early Years,Supplies and Services,REVENUE
Wiltshire,http://opendatacommunities.org/id/unitary-authority/wiltshire,08/12/2020,1902745970,600,ABC Nursery ,143051,SN13,Resources,Covid 19 Winter Gra,Childcare Free Entitlement Early Years,Supplies and Services,REVENUE
Wiltshire,http://opendatacommunities.org/id/unitary-authority/wiltshire,16/12/2020,1902749691,6765.87,ABC Nursery ,143051,SN13,Children & Education,Free Enttlmnt 3 & 4y,Childcare Free Entitlement Early Years,Supplies and Services,REVENUE
Wiltshire,http://opendatacommunities.org/id/unitary-authority/wiltshire,16/12/2020,1902749692,2670.3,ABC Nursery ,143051,SN13,Children & Education,Free Entitlement 2 Y,Childcare Free Entitlement Early Years,Supplies and Services,REVENUE
Wiltshire,http://opendatacommunities.org/id/unitary-authority/wiltshire,21/12/2020,1902758703,1270.41,ABC Nursery ,143051,SN13,Children & Education,Early Years PPG,Childcare Free Entitlement Early Years,Supplies and Services,REVENUE
Wiltshire,http://opendatacommunities.org/id/unitary-authority/wiltshire,22/12/2020,1902760666,1135.75,Abicare Services (CareMatch) ,148189,SP2 ,Community Services,South Care Packages,Adult Domiciliary Care Contribution,Income,REVENUE
Wiltshire,http://opendatacommunities.org/id/unitary-authority/wiltshire,08/12/2020,1902742033,323.37,Abicare Services Ltd Homecare ,110031,SP2 ,Community Services,West Care Packages,Adult Domiciliary Care Contribution,Income,REVENUE
Wiltshire,http://opendatacommunities.org/id/unitary-authority/wiltshire,08/12/2020,1902742035,1143.18,Abicare Services Ltd Homecare ,110031,SP2 ,Community Services,West Care Packages,Adult Domiciliary Care,Third Party Payments,REVENUE
Wiltshire,http://opendatacommunities.org/id/unitary-authority/wiltshire,08/12/2020,1902742036,1214.92,Abicare Services Ltd Homecare ,110031,SP2 ,Community Services,West Care Packages,Adult Domiciliary Care,Third Party Payments,REVENUE
Wiltshire,http://opendatacommunities.org/id/unitary-authority/wiltshire,08/12/2020,1902742037,1214.92,Abicare Services Ltd Homecare ,110031,SP2 ,Community Services,West Care Packages,Adult Domiciliary Care,Third Party Payments,REVENUE
Wiltshire,http://opendatacommunities.org/id/unitary-authority/wiltshire,08/12/2020,1902742038,1214.92,Abicare Services Ltd Homecare ,110031,SP2 ,Community Services,West Care Packages,Adult Domiciliary Care,Third Party Payments,REVENUE
Wiltshire,http://opendatacommunities.org/id/unitary-authority/wiltshire,08/12/2020,1902742039,1214.92,Abicare Services Ltd Homecare ,110031,SP2 ,Community Services,West Care Packages,Adult Domiciliary Care,Third Party Payments,REVENUE
Wiltshire,http://opendatacommunities.org/id/unitary-authority/wiltshire,08/12/2020,1902742040,1684.69,Abicare Services Ltd Homecare ,110031,SP2 ,Community Services,West Care Packages,Adult Domiciliary Care,Third Party Payments,REVENUE
Wiltshire,http://opendatacommunities.org/id/unitary-authority/wiltshire,08/12/2020,1902742041,1684.69,Abicare Services Ltd Homecare ,110031,SP2 ,Community Services,West Care Packages,Adult Domiciliary Care,Third Party Payments,REVENUE
Wiltshire,http://opendatacommunities.org/id/unitary-authority/wiltshire,08/12/2020,1902742042,1684.69,Abicare Services Ltd Homecare ,110031,SP2 ,Community Services,West Care Packages,Adult Domiciliary Care,Third Party Payments,REVENUE
Wiltshire,http://opendatacommunities.org/id/unitary-authority/wiltshire,08/12/2020,1902742043,1684.69,Abicare Services Ltd Homecare ,110031,SP2 ,Community Services,West Care Packages,Adult Domiciliary Care,Third Party Payments,REVENUE
Wiltshire,http://opendatacommunities.org/id/unitary-authority/wiltshire,08/12/2020,1902742044,1684.69,Abicare Services Ltd Homecare ,110031,SP2 ,Community Services,West Care Packages,Adult Domiciliary Care,Third Party Payments,REVENUE
Wiltshire,http://opendatacommunities.org/id/unitary-authority/wiltshire,08/12/2020,1902742045,1684.69,Abicare Services Ltd Homecare ,110031,SP2 ,Community Services,West Care Packages,Adult Domiciliary Care,Third Party Payments,REVENUE
Wiltshire,http://opendatacommunities.org/id/unitary-authority/wiltshire,08/12/2020,1902742046,1684.69,Abicare Services Ltd Homecare ,110031,SP2 ,Community Services,West Care Packages,Adult Domiciliary Care,Third Party Payments,REVENUE
Wiltshire,http://opendatacommunities.org/id/unitary-authority/wiltshire,08/12/2020,1902742047,314.72,Abicare Services Ltd Homecare ,110031,SP2 ,Community Services,West Care Packages,Adult Domiciliary Care,Third Party Payments,REVENUE
Wiltshire,http://opendatacommunities.org/id/unitary-authority/wiltshire,08/12/2020,1902742048,552.5,Abicare Services Ltd Homecare ,110031,SP2 ,Resources,Covid19 - Hospital D,Adult Domiciliary Care,Third Party Payments,REVENUE
Wiltshire,http://opendatacommunities.org/id/unitary-authority/wiltshire,08/12/2020,1902742049,607.46,Abicare Services Ltd Homecare ,110031,SP2 ,Resources,Covid19 - Hospital D,Adult Domiciliary Care,Third Party Payments,REVENUE
Wiltshire,http://opendatacommunities.org/id/unitary-authority/wiltshire,08/12/2020,1902742050,663,Abicare Services Ltd Homecare ,110031,SP2 ,Resources,Covid19 - Hospital D,Adult Domiciliary Care,Third Party Payments,REVENUE
Wiltshire,http://opendatacommunities.org/id/unitary-authority/wiltshire,08/12/2020,1902742053,1721.44,Abicare Services Ltd Homecare ,110031,SP2 ,Resources,Covid19 - Hospital D,Adult Domiciliary Care,Third Party Payments,REVENUE
Wiltshire,http://opendatacommunities.org/id/unitary-authority/wiltshire,08/12/2020,1902742054,860.72,Abicare Services Ltd Homecare ,110031,SP2 ,Resources,Covid19 - Hospital D,Adult Domiciliary Care,Third Party Payments,REVENUE
Wiltshire,http://opendatacommunities.org/id/unitary-authority/wiltshire,08/12/2020,1902742056,738,Abicare Services Ltd Homecare ,110031,SP2 ,Community Services,West Care Packages,Adult Domiciliary Care,Third Party Payments,REVENUE
Wiltshire,http://opendatacommunities.org/id/unitary-authority/wiltshire,08/12/2020,1902741017,443.44,ABLE ,101029,BA14,Community Services,MH AOWA N&E Locality,Supported Living,Third Party Payments,REVENUE
Wiltshire,http://opendatacommunities.org/id/unitary-authority/wiltshire,08/12/2020,1902741018,443.44,ABLE ,101029,BA14,Community Services,MH AOWA N&E Locality,Supported Living,Third Party Payments,REVENUE
Wiltshire,http://opendatacommunities.org/id/unitary-authority/wiltshire,08/12/2020,1902741019,443.44,ABLE ,101029,BA14,Community Services,MH AOWA N&E Locality,Supported Living,Third Party Payments,REVENUE
Wiltshire,http://opendatacommunities.org/id/unitary-authority/wiltshire,08/12/2020,1902741020,443.44,ABLE ,101029,BA14,Community Services,MH AOWA N&E Locality,Supported Living,Third Party Payments,REVENUE
Wiltshire,http://opendatacommunities.org/id/unitary-authority/wiltshire,08/12/2020,1902741021,443.44,ABLE ,101029,BA14,Community Services,MH AOWA N&E Locality,Supported Living,Third Party Payments,REVENUE
Wiltshire,http://opendatacommunities.org/id/unitary-authority/wiltshire,23/12/2020,1902756240,2125.34,ABLE ,101029,BA14,Resources,Covid19 - Hospital D,Grants Expenditure,Supplies and Services,REVENUE
Wiltshire,http://opendatacommunities.org/id/unitary-authority/wiltshire,23/12/2020,1902756241,2479.57,ABLE ,101029,BA14,Resources,Covid19 - Hospital D,Grants Expenditure,Supplies and Services,REVENUE
Wiltshire,http://opendatacommunities.org/id/unitary-authority/wiltshire,23/12/2020,1902756508,3542.24,ABLE ,101029,BA14,Resources,Covid19 - Hospital D,Grants Expenditure,Supplies and Services,REVENUE
Wiltshire,http://opendatacommunities.org/id/unitary-authority/wiltshire,29/12/2020,5107424298,3353.76,ABLE ,101029,BA14,Community Services,MH Commissioned Cont,Grants Expenditure,Supplies and Services,REVENUE
Wiltshire,http://opendatacommunities.org/id/unitary-authority/wiltshire,08/12/2020,1902742267,3120,ABLE ,110034,BA14,Community Services,MH OP West Locality,Adult Residential Placements - Spot Purchase,Third Party Payments,REVENUE
Wiltshire,http://opendatacommunities.org/id/unitary-authority/wiltshire,08/12/2020,1902742268,3194.88,ABLE ,110034,BA14,Community Services,MH AOWA West Localit,Adult Residential Placements - Spot Purchase,Third Party Payments,REVENUE
Wiltshire,http://opendatacommunities.org/id/unitary-authority/wiltshire,08/12/2020,1902742269,3194.88,ABLE ,110034,BA14,Community Services,MH AOWA West Localit,Adult Residential Placements - Spot Purchase,Third Party Payments,REVENUE
Wiltshire,http://opendatacommunities.org/id/unitary-authority/wiltshire,08/12/2020,1902742270,3680,ABLE ,110034,BA14,Community Services,MH AOWA N&E Locality,Adult Residential Placements - Spot Purchase,Third Party Payments,REVENUE
Wiltshire,http://opendatacommunities.org/id/unitary-authority/wiltshire,08/12/2020,1902742271,3680,ABLE ,110034,BA14,Community Services,MH AOWA N&E Locality,Adult Residential Placements - Spot Purchase,Third Party Payments,REVENUE
Wiltshire,http://opendatacommunities.org/id/unitary-authority/wiltshire,08/12/2020,1902742272,3680,ABLE ,110034,BA14,Community Services,MH AOWA West Localit,Adult Residential Placements - Spot Purchase,Third Party Payments,REVENUE
Wiltshire,http://opendatacommunities.org/id/unitary-authority/wiltshire,23/12/2020,1902763590,420,Able Hands Together CIC ,144783,SP11,Community Services,CTPLD Placements,Adult Day Care Contracts,Third Party Payments,REVENUE
Wiltshire,http://opendatacommunities.org/id/unitary-authority/wiltshire,23/12/2020,1902763592,480,Able Hands Together CIC ,144783,SP11,Community Services,CTPLD Placements,Adult Day Care - Spot Income Contribution,Income,REVENUE
Wiltshire,http://opendatacommunities.org/id/unitary-authority/wiltshire,23/12/2020,1902763594,1200,Able Hands Together CIC ,144783,SP11,Community Services,CTPLD Placements,Adult Day Care Contracts,Third Party Payments,REVENUE
Wiltshire,http://opendatacommunities.org/id/unitary-authority/wiltshire,23/12/2020,1902763595,480,Able Hands Together CIC ,144783,SP11,Community Services,CTPLD Placements,Adult Day Care Contracts,Third Party Payments,REVENUE
Wiltshire,http://opendatacommunities.org/id/unitary-authority/wiltshire,23/12/2020,1902763597,540,Able Hands Together CIC ,144783,SP11,Community Services,CTPLD Placements,Adult Day Care Contracts,Third Party Payments,REVENUE
Wiltshire,http://opendatacommunities.org/id/unitary-authority/wiltshire,08/12/2020,1902743608,2367.36,Acacia London Residential Healthcar ,147333,KT6 ,Community Services,North Care Packages,Adult Care Nursing Placements - Spot,Third Party Payments,REVENUE
Wiltshire,http://opendatacommunities.org/id/unitary-authority/wiltshire,29/12/2020,5107424270,1150,Academy21 Ltd ,136859,NP8 ,Children & Education,EOTAS Service,Educational Fees,Supplies and Services,REVENUE
Wiltshire,http://opendatacommunities.org/id/unitary-authority/wiltshire,08/12/2020,1902742828,6172.68,Accomplish Group Limited ,112775,B45 ,Community Services,CTPLD Placements,Adult Residential Placements - Spot Purchase,Third Party Payments,REVENUE
Wiltshire,http://opendatacommunities.org/id/unitary-authority/wiltshire,08/12/2020,1902742829,6740,Accomplish Group Limited ,112775,B45 ,Community Services,MH AOWA N&E Locality,Adult Residential Placements - Spot Purchase,Third Party Payments,REVENUE
Wiltshire,http://opendatacommunities.org/id/unitary-authority/wiltshire,08/12/2020,1902742830,7775.04,Accomplish Group Limited ,112775,B45 ,Community Services,CTPLD Placements,Adult Residential Placements - Spot Purchase,Third Party Payments,REVENUE
Wiltshire,http://opendatacommunities.org/id/unitary-authority/wiltshire,08/12/2020,1902742831,8266,Accomplish Group Limited ,112775,B45 ,Community Services,CTPLD Placements,Adult Residential Placements - Spot Purchase,Third Party Payments,REVENUE
Wiltshire,http://opendatacommunities.org/id/unitary-authority/wiltshire,09/12/2020,1902746991,7048,Accomplish Group Limited ,112775,B45 ,Community Services,MH AOWA West Localit,Adult Residential Placements - Spot Purchase,Third Party Payments,REVENUE
Wiltshire,http://opendatacommunities.org/id/unitary-authority/wiltshire,08/12/2020,1902745796,2205,Ace Cabs ,139613,SP4 ,Neighbourhood & Planning,SEN Primary Transprt,Transport Contracts,Third Party Payments,REVENUE
Wiltshire,http://opendatacommunities.org/id/unitary-authority/wiltshire,10/12/2020,5107423357,325,Acer Tree Surgeons Ltd ,113296,BA13,Neighbourhood & Planning,Rights of Way,Grounds Maintenance,Premises Related,REVENUE
Wiltshire,http://opendatacommunities.org/id/unitary-authority/wiltshire,22/12/2020,5107424116,1280,Acer Tree Surgeons Ltd ,113296,BA13,Neighbourhood & Planning,Rights of Way,Grounds Maintenance,Premises Related,REVENUE
Wiltshire,http://opendatacommunities.org/id/unitary-authority/wiltshire,08/12/2020,1902741028,15330,Achieve Together ,110312,KT22,Community Services,CTPLD Placements,Supported Living,Third Party Payments,REVENUE
Wiltshire,http://opendatacommunities.org/id/unitary-authority/wiltshire,08/12/2020,1902741029,3669.76,Achieve Together ,110312,KT22,Community Services,West Care Packages,Supported Living,Third Party Payments,REVENUE
Wiltshire,http://opendatacommunities.org/id/unitary-authority/wiltshire,08/12/2020,1902741030,4118.32,Achieve Together ,110312,KT22,Community Services,MH AOWA West Localit,Supported Living,Third Party Payments,REVENUE
Wiltshire,http://opendatacommunities.org/id/unitary-authority/wiltshire,08/12/2020,1902742289,13418.6,Achieve Together ,110312,KT22,Community Services,CTPLD Placements,Adult Residential Placements - Spot Purchase,Third Party Payments,REVENUE
Wiltshire,http://opendatacommunities.org/id/unitary-authority/wiltshire,08/12/2020,1902742290,14442.6,Achieve Together ,110312,KT22,Community Services,CTPLD Placements,Adult Residential Placements - Spot Purchase,Third Party Payments,REVENUE
Wiltshire,http://opendatacommunities.org/id/unitary-authority/wiltshire,08/12/2020,1902743333,11333.32,Achieve Together ,110312,KT22,Community Services,CTPLD Placements,Adult Residential Placements - Spot Purchase,Third Party Payments,REVENUE
Wiltshire,http://opendatacommunities.org/id/unitary-authority/wiltshire,08/12/2020,1902743334,12206.32,Achieve Together ,110312,KT22,Community Services,CTPLD Placements,Adult Residential Placements - Spot Purchase,Third Party Payments,REVENUE
Wiltshire,http://opendatacommunities.org/id/unitary-authority/wiltshire,08/12/2020,1902743335,13507.88,Achieve Together ,110312,KT22,Community Services,CTPLD Placements,Adult Residential Placements - Spot Purchase,Third Party Payments,REVENUE
Wiltshire,http://opendatacommunities.org/id/unitary-authority/wiltshire,08/12/2020,1902743336,13844.96,Achieve Together ,110312,KT22,Community Services,CTPLD Placements,Adult Residential Placements - Spot Purchase,Third Party Payments,REVENUE
Wiltshire,http://opendatacommunities.org/id/unitary-authority/wiltshire,08/12/2020,1902743546,16041.28,Achieve Together ,110312,KT22,Community Services,CTPLD Placements,Adult Residential Placements - Spot Purchase,Third Party Payments,REVENUE
Wiltshire,http://opendatacommunities.org/id/unitary-authority/wiltshire,08/12/2020,1902743547,8564.12,Achieve Together ,110312,KT22,Community Services,CTPLD Placements,Adult Residential Placements - Spot Purchase,Third Party Payments,REVENUE
Wiltshire,http://opendatacommunities.org/id/unitary-authority/wiltshire,08/12/2020,1902743548,8673.68,Achieve Together ,110312,KT22,Community Services,CTPLD Placements,Adult Residential Placements - Spot Purchase,Third Party Payments,REVENUE
Wiltshire,http://opendatacommunities.org/id/unitary-authority/wiltshire,08/12/2020,1902743654,12884.92,Achieve Together ,110312,KT22,Community Services,CTPLD Placements,Adult Residential Placements - Spot Purchase,Third Party Payments,REVENUE
Wiltshire,http://opendatacommunities.org/id/unitary-authority/wiltshire,08/12/2020,1902743655,11832.16,Achieve Together ,110312,KT22,Community Services,CTPLD Placements,Adult Residential Placements - Spot Purchase,Third Party Payments,REVENUE
Wiltshire,http://opendatacommunities.org/id/unitary-authority/wiltshire,08/12/2020,1902743656,12642.68,Achieve Together ,110312,KT22,Community Services,CTPLD Placements,Adult Residential Placements - Spot Purchase,Third Party Payments,REVENUE
Wiltshire,http://opendatacommunities.org/id/unitary-authority/wiltshire,08/12/2020,1902743657,12985.56,Achieve Together ,110312,KT22,Community Services,CTPLD Placements,Adult Residential Placements - Spot Purchase,Third Party Payments,REVENUE
Wiltshire,http://opendatacommunities.org/id/unitary-authority/wiltshire,08/12/2020,1902743658,13137,Achieve Together ,110312,KT22,Community Services,CTPLD Placements,Adult Residential Placements - Spot Purchase,Third Party Payments,REVENUE
Wiltshire,http://opendatacommunities.org/id/unitary-authority/wiltshire,08/12/2020,1902743659,13469.24,Achieve Together ,110312,KT22,Community Services,CTPLD Placements,Adult Residential Placements - Spot Purchase,Third Party Payments,REVENUE
Wiltshire,http://opendatacommunities.org/id/unitary-authority/wiltshire,08/12/2020,1902743660,15316.24,Achieve Together ,110312,KT22,Community Services,CTPLD Placements,Adult Residential Placements - Spot Purchase,Third Party Payments,REVENUE
Wiltshire,http://opendatacommunities.org/id/unitary-authority/wiltshire,23/12/2020,1902756249,1771.11,Achieve Together ,110312,KT22,Resources,Covid19 - Hospital D,Grants Expenditure,Supplies and Services,REVENUE
Wiltshire,http://opendatacommunities.org/id/unitary-authority/wiltshire,23/12/2020,1902756250,2125.34,Achieve Together ,110312,KT22,Resources,Covid19 - Hospital D,Grants Expenditure,Supplies and Services,REVENUE
Wiltshire,http://opendatacommunities.org/id/unitary-authority/wiltshire,23/12/2020,1902756251,2125.34,Achieve Together ,110312,KT22,Resources,Covid19 - Hospital D,Grants Expenditure,Supplies and Services,REVENUE
Wiltshire,http://opendatacommunities.org/id/unitary-authority/wiltshire,23/12/2020,1902756252,2125.34,Achieve Together ,110312,KT22,Resources,Covid19 - Hospital D,Grants Expenditure,Supplies and Services,REVENUE
Wiltshire,http://opendatacommunities.org/id/unitary-authority/wiltshire,16/12/2020,1902749810,2076,Acorn Education Trust - New Close ,148417,BA12,Children & Education,Free Enttlmnt 3 & 4y,Childcare Free Entitlement Early Years,Supplies and Services,REVENUE
Wiltshire,http://opendatacommunities.org/id/unitary-authority/wiltshire,31/12/2020,5107424365,859.38,Activate for Kids ,113313,SP2 ,Children & Education,SEND Central Equipme,Client Aids and Adaptations,Third Party Payments,REVENUE
Wiltshire,http://opendatacommunities.org/id/unitary-authority/wiltshire,22/12/2020,5107422510,576.63,Adams Morey Ltd ,110053,SP2 ,Neighbourhood & Planning,Fleet,Vehicle 3rd Party Repairs,Transport Related,REVENUE
Wiltshire,http://opendatacommunities.org/id/unitary-authority/wiltshire,08/12/2020,5107423206,2253,ADASS [London] ,125245,SW1P,Resources,Corporate Directors,Professional Subscriptions/Memberships,Employee Related,REVENUE
Wiltshire,http://opendatacommunities.org/id/unitary-authority/wiltshire,23/12/2020,5107422730,3594.5,Adler  and  Allen Limited ,113326,HG1 ,Neighbourhood & Planning,Fleet,Vehicle Fuel,Transport Related,REVENUE
Wiltshire,http://opendatacommunities.org/id/unitary-authority/wiltshire,08/12/2020,1902745228,732220.09,Adoption West ,148312,BA14,Children & Education,Apoption West - RAA,Other Contracts,Third Party Payments,REVENUE
Wiltshire,http://opendatacommunities.org/id/unitary-authority/wiltshire,17/12/2020,5107423861,4755,Adoption West ,148312,BA14,Children & Education,Adoption Services,Adoption Support,Third Party Payments,REVENUE
Wiltshire,http://opendatacommunities.org/id/unitary-authority/wiltshire,18/12/2020,5107423893,4580,Adoption West ,148312,BA14,Children & Education,Adoption Services,Adoption Support,Third Party Payments,REVENUE
Wiltshire,http://opendatacommunities.org/id/unitary-authority/wiltshire,21/12/2020,5107423930,270,Adoption West ,148312,BA14,Children & Education,Adoption Services,Adoption Support,Third Party Payments,REVENUE
Wiltshire,http://opendatacommunities.org/id/unitary-authority/wiltshire,09/12/2020,1902747320,3459.58,Adrains Engineering Psv ,100848,SN15,Neighbourhood & Planning,Mainstream Primary,Transport Contracts,Third Party Payments,REVENUE
Wiltshire,http://opendatacommunities.org/id/unitary-authority/wiltshire,09/12/2020,1902747321,3720.83,Adrains Engineering Psv ,100848,SN15,Neighbourhood & Planning,Mainstream Secondary,Transport Contracts,Third Party Payments,REVENUE
Wiltshire,http://opendatacommunities.org/id/unitary-authority/wiltshire,09/12/2020,1902747322,3288.85,Adrains Engineering Psv ,100848,SN15,Neighbourhood & Planning,Mainstream Secondary,Transport Contracts,Third Party Payments,REVENUE
Wiltshire,http://opendatacommunities.org/id/unitary-authority/wiltshire,09/12/2020,1902747327,3250.75,Adrains Engineering Psv ,100848,SN15,Neighbourhood & Planning,Mainstream Secondary,Transport Contracts,Third Party Payments,REVENUE
Wiltshire,http://opendatacommunities.org/id/unitary-authority/wiltshire,09/12/2020,1902747310,2835,Adrian Shephard Taxi Service ,146753,BA12,Neighbourhood & Planning,SEN Primary Transprt,Transport Contracts,Third Party Payments,REVENUE
Wiltshire,http://opendatacommunities.org/id/unitary-authority/wiltshire,08/12/2020,1902745794,528,Adrian's Taxi ,138861,SN10,Neighbourhood & Planning,Mainstream Primary,Transport Contracts,Third Party Payments,REVENUE
Wiltshire,http://opendatacommunities.org/id/unitary-authority/wiltshire,08/12/2020,1902745794,2112,Adrian's Taxi ,138861,SN10,Neighbourhood & Planning,SEN Secondary Tspt,Transport Contracts,Third Party Payments,REVENUE
Wiltshire,http://opendatacommunities.org/id/unitary-authority/wiltshire,04/12/2020,5107422993,3000,Advance Social Care Limited ,150285,BB11,Children & Education,Independent Fosterin,Childrens Agency Placement,Third Party Payments,REVENUE
Wiltshire,http://opendatacommunities.org/id/unitary-authority/wiltshire,09/12/2020,1902747330,693,Ady Cars ,136208,SP11,Neighbourhood & Planning,SEN Secondary Tspt,Transport Contracts,Third Party Payments,REVENUE
Wiltshire,http://opendatacommunities.org/id/unitary-authority/wiltshire,09/12/2020,1902747330,1386,Ady Cars ,136208,SP11,Neighbourhood & Planning,SEN Primary Transprt,Transport Contracts,Third Party Payments,REVENUE
Wiltshire,http://opendatacommunities.org/id/unitary-authority/wiltshire,04/12/2020,1902744037,650,Aerian Studios ,113351,SN13,Resources,Marketing & Events,Marketing and Promotions,Supplies and Services,REVENUE
Wiltshire,http://opendatacommunities.org/id/unitary-authority/wiltshire,17/12/2020,1902754631,227550,Age UK Wiltshire ,100129,SN10,Community Services,ASC Community C&G,Grants Expenditure,Supplies and Services,REVENUE
Wiltshire,http://opendatacommunities.org/id/unitary-authority/wiltshire,01/12/2020,1902739190,1750,Akcess Ltd ,101402,SN2 ,Neighbourhood & Planning,SEN Secondary Tspt,Transport Contracts,Third Party Payments,REVENUE
Wiltshire,http://opendatacommunities.org/id/unitary-authority/wiltshire,01/12/2020,1902739190,1750,Akcess Ltd ,101402,SN2 ,Neighbourhood & Planning,SEN 16+ Transport,Transport Contracts,Third Party Payments,REVENUE
Wiltshire,http://opendatacommunities.org/id/unitary-authority/wiltshire,01/12/2020,1902739248,743.78,Akcess Ltd ,101402,SN2 ,Neighbourhood & Planning,Mainstream 16+ Sec,Transport Contracts,Third Party Payments,REVENUE
Wiltshire,http://opendatacommunities.org/id/unitary-authority/wiltshire,01/12/2020,1902739248,2975.11,Akcess Ltd ,101402,SN2 ,Neighbourhood & Planning,SEN Secondary Tspt,Transport Contracts,Third Party Payments,REVENUE
Wiltshire,http://opendatacommunities.org/id/unitary-authority/wiltshire,01/12/2020,1902739251,2945,Akcess Ltd ,101402,SN2 ,Neighbourhood & Planning,SEN Secondary Tspt,Transport Contracts,Third Party Payments,REVENUE
Wiltshire,http://opendatacommunities.org/id/unitary-authority/wiltshire,01/12/2020,1902739252,2375,Akcess Ltd ,101402,SN2 ,Neighbourhood & Planning,SEN Secondary Tspt,Transport Contracts,Third Party Payments,REVENUE
Wiltshire,http://opendatacommunities.org/id/unitary-authority/wiltshire,01/12/2020,1902739253,2177.16,Akcess Ltd ,101402,SN2 ,Neighbourhood & Planning,Mainstream Primary,Transport Contracts,Third Party Payments,REVENUE
Wiltshire,http://opendatacommunities.org/id/unitary-authority/wiltshire,01/12/2020,1902739254,2666.67,Akcess Ltd ,101402,SN2 ,Neighbourhood & Planning,Mainstream Secondary,Transport Contracts,Third Party Payments,REVENUE
Wiltshire,http://opendatacommunities.org/id/unitary-authority/wiltshire,01/12/2020,1902739255,1780,Akcess Ltd ,101402,SN2 ,Neighbourhood & Planning,Mainstream Primary,Transport Contracts,Third Party Payments,REVENUE
Wiltshire,http://opendatacommunities.org/id/unitary-authority/wiltshire,01/12/2020,1902739256,2058,Akcess Ltd ,101402,SN2 ,Neighbourhood & Planning,Mainstream Primary,Transport Contracts,Third Party Payments,REVENUE
Wiltshire,http://opendatacommunities.org/id/unitary-authority/wiltshire,01/12/2020,1902739257,3108,Akcess Ltd ,101402,SN2 ,Community Services,CTPLD Placements,Transport Contracts,Third Party Payments,REVENUE
Wiltshire,http://opendatacommunities.org/id/unitary-authority/wiltshire,01/12/2020,1902739258,12948,Akcess Ltd ,101402,SN2 ,Neighbourhood & Planning,SEN Secondary Tspt,Transport Contracts,Third Party Payments,REVENUE
Wiltshire,http://opendatacommunities.org/id/unitary-authority/wiltshire,01/12/2020,1902739259,2216,Akcess Ltd ,101402,SN2 ,Neighbourhood & Planning,Mainstream Primary,Transport Contracts,Third Party Payments,REVENUE
Wiltshire,http://opendatacommunities.org/id/unitary-authority/wiltshire,01/12/2020,1902739260,2959.96,Akcess Ltd ,101402,SN2 ,Neighbourhood & Planning,Mainstream Secondary,Transport Contracts,Third Party Payments,REVENUE
Wiltshire,http://opendatacommunities.org/id/unitary-authority/wiltshire,01/12/2020,1902739261,1943.19,Akcess Ltd ,101402,SN2 ,Neighbourhood & Planning,Mainstream Secondary,Transport Contracts,Third Party Payments,REVENUE
Wiltshire,http://opendatacommunities.org/id/unitary-authority/wiltshire,09/12/2020,1902747328,1998,Akcess Ltd ,101402,SN2 ,Neighbourhood & Planning,Mainstream Secondary,Transport Contracts,Third Party Payments,REVENUE
Wiltshire,http://opendatacommunities.org/id/unitary-authority/wiltshire,15/12/2020,1902749065,3108,Akcess Ltd ,101402,SN2 ,Neighbourhood & Planning,SEN Primary Transprt,Transport Contracts,Third Party Payments,REVENUE
Wiltshire,http://opendatacommunities.org/id/unitary-authority/wiltshire,08/12/2020,1902740942,1009.84,Alabare Christian Care Centre ,100837,SP2 ,Community Services,CTPLD Placements,Supported Living,Third Party Payments,REVENUE
Wiltshire,http://opendatacommunities.org/id/unitary-authority/wiltshire,08/12/2020,1902740943,1453.92,Alabare Christian Care Centre ,100837,SP2 ,Community Services,CTPLD Placements,Supported Living,Third Party Payments,REVENUE
Wiltshire,http://opendatacommunities.org/id/unitary-authority/wiltshire,08/12/2020,1902740947,1508.4,Alabare Christian Care Centre ,100837,SP2 ,Community Services,CTPLD Placements,Supported Living,Third Party Payments,REVENUE
Wiltshire,http://opendatacommunities.org/id/unitary-authority/wiltshire,08/12/2020,1902740948,1752,Alabare Christian Care Centre ,100837,SP2 ,Community Services,CTPLD Placements,Supported Living,Third Party Payments,REVENUE
Wiltshire,http://opendatacommunities.org/id/unitary-authority/wiltshire,08/12/2020,1902740949,1868.68,Alabare Christian Care Centre ,100837,SP2 ,Community Services,CTPLD Placements,Supported Living,Third Party Payments,REVENUE
Wiltshire,http://opendatacommunities.org/id/unitary-authority/wiltshire,08/12/2020,1902740950,1911.06,Alabare Christian Care Centre ,100837,SP2 ,Community Services,CTPLD Placements,Supported Living,Third Party Payments,REVENUE
Wiltshire,http://opendatacommunities.org/id/unitary-authority/wiltshire,08/12/2020,1902740951,1956.16,Alabare Christian Care Centre ,100837,SP2 ,Community Services,CTPLD Placements,Supported Living,Third Party Payments,REVENUE
Wiltshire,http://opendatacommunities.org/id/unitary-authority/wiltshire,08/12/2020,1902740952,2102.44,Alabare Christian Care Centre ,100837,SP2 ,Community Services,CTPLD Placements,Supported Living,Third Party Payments,REVENUE
Wiltshire,http://opendatacommunities.org/id/unitary-authority/wiltshire,08/12/2020,1902740953,2143.52,Alabare Christian Care Centre ,100837,SP2 ,Community Services,CTPLD Placements,Supported Living,Third Party Payments,REVENUE
Wiltshire,http://opendatacommunities.org/id/unitary-authority/wiltshire,08/12/2020,1902740956,2204.76,Alabare Christian Care Centre ,100837,SP2 ,Community Services,CTPLD Placements,Supported Living,Third Party Payments,REVENUE
Wiltshire,http://opendatacommunities.org/id/unitary-authority/wiltshire,08/12/2020,1902740957,2229.12,Alabare Christian Care Centre ,100837,SP2 ,Community Services,CTPLD Placements,Supported Living,Third Party Payments,REVENUE
Wiltshire,http://opendatacommunities.org/id/unitary-authority/wiltshire,08/12/2020,1902740958,2234.76,Alabare Christian Care Centre ,100837,SP2 ,Community Services,CTPLD Placements,Supported Living,Third Party Payments,REVENUE
Wiltshire,http://opendatacommunities.org/id/unitary-authority/wiltshire,08/12/2020,1902740959,2287.12,Alabare Christian Care Centre ,100837,SP2 ,Community Services,CTPLD Placements,Supported Living,Third Party Payments,REVENUE
Wiltshire,http://opendatacommunities.org/id/unitary-authority/wiltshire,08/12/2020,1902740960,2339.96,Alabare Christian Care Centre ,100837,SP2 ,Community Services,CTPLD Placements,Supported Living,Third Party Payments,REVENUE
Wiltshire,http://opendatacommunities.org/id/unitary-authority/wiltshire,08/12/2020,1902740961,2522.2,Alabare Christian Care Centre ,100837,SP2 ,Community Services,CTPLD Placements,Supported Living,Third Party Payments,REVENUE
Wiltshire,http://opendatacommunities.org/id/unitary-authority/wiltshire,08/12/2020,1902740962,2548.08,Alabare Christian Care Centre ,100837,SP2 ,Community Services,CTPLD Placements,Supported Living,Third Party Payments,REVENUE
Wiltshire,http://opendatacommunities.org/id/unitary-authority/wiltshire,08/12/2020,1902740963,255.56,Alabare Christian Care Centre ,100837,SP2 ,Community Services,CTPLD Placements,Supported Living,Third Party Payments,REVENUE
Wiltshire,http://opendatacommunities.org/id/unitary-authority/wiltshire,08/12/2020,1902740964,2889.48,Alabare Christian Care Centre ,100837,SP2 ,Community Services,CTPLD Placements,Supported Living,Third Party Payments,REVENUE
Wiltshire,http://opendatacommunities.org/id/unitary-authority/wiltshire,08/12/2020,1902740965,3128.68,Alabare Christian Care Centre ,100837,SP2 ,Community Services,CTPLD Placements,Supported Living,Third Party Payments,REVENUE
Wiltshire,http://opendatacommunities.org/id/unitary-authority/wiltshire,08/12/2020,1902740966,3158.64,Alabare Christian Care Centre ,100837,SP2 ,Community Services,CTPLD Placements,Supported Living,Third Party Payments,REVENUE
Wiltshire,http://opendatacommunities.org/id/unitary-authority/wiltshire,08/12/2020,1902740967,3403.2,Alabare Christian Care Centre ,100837,SP2 ,Community Services,CTPLD Placements,Supported Living,Third Party Payments,REVENUE
Wiltshire,http://opendatacommunities.org/id/unitary-authority/wiltshire,08/12/2020,1902740968,365,Alabare Christian Care Centre ,100837,SP2 ,Community Services,MH AOWA South Locali,Supported Living,Third Party Payments,REVENUE
Wiltshire,http://opendatacommunities.org/id/unitary-authority/wiltshire,08/12/2020,1902740969,365,Alabare Christian Care Centre ,100837,SP2 ,Community Services,CTPLD Placements,Supported Living,Third Party Payments,REVENUE
Wiltshire,http://opendatacommunities.org/id/unitary-authority/wiltshire,08/12/2020,1902740970,3684.12,Alabare Christian Care Centre ,100837,SP2 ,Community Services,CTPLD Placements,Supported Living,Third Party Payments,REVENUE
Wiltshire,http://opendatacommunities.org/id/unitary-authority/wiltshire,08/12/2020,1902740971,3822.2,Alabare Christian Care Centre ,100837,SP2 ,Community Services,CTPLD Placements,Supported Living,Third Party Payments,REVENUE
Wiltshire,http://opendatacommunities.org/id/unitary-authority/wiltshire,08/12/2020,1902740972,3921.36,Alabare Christian Care Centre ,100837,SP2 ,Community Services,CTPLD Placements,Supported Living,Third Party Payments,REVENUE
Wiltshire,http://opendatacommunities.org/id/unitary-authority/wiltshire,08/12/2020,1902740973,401.52,Alabare Christian Care Centre ,100837,SP2 ,Community Services,MH AOWA South Locali,Supported Living,Third Party Payments,REVENUE
Wiltshire,http://opendatacommunities.org/id/unitary-authority/wiltshire,08/12/2020,1902740974,4189.28,Alabare Christian Care Centre ,100837,SP2 ,Community Services,CTPLD Placements,Supported Living,Third Party Payments,REVENUE
Wiltshire,http://opendatacommunities.org/id/unitary-authority/wiltshire,08/12/2020,1902740975,438,Alabare Christian Care Centre ,100837,SP2 ,Community Services,MH AOWA South Locali,Supported Living,Third Party Payments,REVENUE
Wiltshire,http://opendatacommunities.org/id/unitary-authority/wiltshire,08/12/2020,1902740976,511,Alabare Christian Care Centre ,100837,SP2 ,Community Services,CTPLD Placements,Supported Living,Third Party Payments,REVENUE
Wiltshire,http://opendatacommunities.org/id/unitary-authority/wiltshire,08/12/2020,1902740977,511,Alabare Christian Care Centre ,100837,SP2 ,Community Services,MH AOWA South Locali,Supported Living,Third Party Payments,REVENUE
Wiltshire,http://opendatacommunities.org/id/unitary-authority/wiltshire,08/12/2020,1902740978,511,Alabare Christian Care Centre ,100837,SP2 ,Community Services,CTPLD Placements,Supported Living,Third Party Payments,REVENUE
Wiltshire,http://opendatacommunities.org/id/unitary-authority/wiltshire,08/12/2020,1902740979,545.16,Alabare Christian Care Centre ,100837,SP2 ,Community Services,CTPLD Placements,Supported Living,Third Party Payments,REVENUE
Wiltshire,http://opendatacommunities.org/id/unitary-authority/wiltshire,08/12/2020,1902740980,644.84,Alabare Christian Care Centre ,100837,SP2 ,Community Services,CTPLD Placements,Supported Living,Third Party Payments,REVENUE
Wiltshire,http://opendatacommunities.org/id/unitary-authority/wiltshire,08/12/2020,1902740981,657,Alabare Christian Care Centre ,100837,SP2 ,Community Services,South Care Packages,Supported Living,Third Party Payments,REVENUE
Wiltshire,http://opendatacommunities.org/id/unitary-authority/wiltshire,08/12/2020,1902740982,693.52,Alabare Christian Care Centre ,100837,SP2 ,Community Services,CTPLD Placements,Supported Living,Third Party Payments,REVENUE
Wiltshire,http://opendatacommunities.org/id/unitary-authority/wiltshire,08/12/2020,1902740984,766.52,Alabare Christian Care Centre ,100837,SP2 ,Community Services,CTPLD Placements,Supported Living,Third Party Payments,REVENUE
Wiltshire,http://opendatacommunities.org/id/unitary-authority/wiltshire,08/12/2020,1902740985,803,Alabare Christian Care Centre ,100837,SP2 ,Community Services,MH AOWA South Locali,Supported Living,Third Party Payments,REVENUE
Wiltshire,http://opendatacommunities.org/id/unitary-authority/wiltshire,08/12/2020,1902740986,9098.72,Alabare Christian Care Centre ,100837,SP2 ,Community Services,CTPLD Placements,Supported Living,Third Party Payments,REVENUE
Wiltshire,http://opendatacommunities.org/id/unitary-authority/wiltshire,08/12/2020,1902740987,955.08,Alabare Christian Care Centre ,100837,SP2 ,Community Services,CTPLD Placements,Supported Living,Third Party Payments,REVENUE
Wiltshire,http://opendatacommunities.org/id/unitary-authority/wiltshire,15/12/2020,1902748793,2884.12,Alabare Christian Care Centre ,100837,SP2 ,Wiltshire Council,Wiltshire Council,Area Board Grants,Supplies and Services,CAPITAL
Wiltshire,http://opendatacommunities.org/id/unitary-authority/wiltshire,23/12/2020,1902756503,22316.08,Alabare Christian Care Centre ,100837,SP2 ,Resources,Covid19 - Hospital D,Grants Expenditure,Supplies and Services,REVENUE
Wiltshire,http://opendatacommunities.org/id/unitary-authority/wiltshire,23/12/2020,1902763509,320,Alabare Christian Care Centre ,100837,SP2 ,Community Services,CTPLD Placements,Adult Day Care Contracts,Third Party Payments,REVENUE
Wiltshire,http://opendatacommunities.org/id/unitary-authority/wiltshire,23/12/2020,1902763511,640,Alabare Christian Care Centre ,100837,SP2 ,Community Services,CTPLD Placements,Adult Day Care Contracts,Third Party Payments,REVENUE
Wiltshire,http://opendatacommunities.org/id/unitary-authority/wiltshire,23/12/2020,1902763512,320,Alabare Christian Care Centre ,100837,SP2 ,Community Services,CTPLD Placements,Adult Day Care Contracts,Third Party Payments,REVENUE
Wiltshire,http://opendatacommunities.org/id/unitary-authority/wiltshire,23/12/2020,1902763513,400,Alabare Christian Care Centre ,100837,SP2 ,Community Services,CTPLD Placements,Adult Day Care Contracts,Third Party Payments,REVENUE
Wiltshire,http://opendatacommunities.org/id/unitary-authority/wiltshire,23/12/2020,1902763536,320,Alabare Christian Care Centre ,100837,SP2 ,Community Services,CTPLD Placements,Adult Day Care Contracts,Third Party Payments,REVENUE
Wiltshire,http://opendatacommunities.org/id/unitary-authority/wiltshire,23/12/2020,1902763538,320,Alabare Christian Care Centre ,100837,SP2 ,Community Services,CTPLD Placements,Adult Day Care Contracts,Third Party Payments,REVENUE
Wiltshire,http://opendatacommunities.org/id/unitary-authority/wiltshire,23/12/2020,1902763542,320,Alabare Christian Care Centre ,100837,SP2 ,Community Services,MH AOWA South Locali,Adult Day Care Contracts,Third Party Payments,REVENUE
Wiltshire,http://opendatacommunities.org/id/unitary-authority/wiltshire,23/12/2020,1902763545,320,Alabare Christian Care Centre ,100837,SP2 ,Community Services,MH AOWA N&E Locality,Adult Day Care Contracts,Third Party Payments,REVENUE
Wiltshire,http://opendatacommunities.org/id/unitary-authority/wiltshire,23/12/2020,1902763546,320,Alabare Christian Care Centre ,100837,SP2 ,Community Services,CTPLD Placements,Adult Day Care Contracts,Third Party Payments,REVENUE
Wiltshire,http://opendatacommunities.org/id/unitary-authority/wiltshire,23/12/2020,1902763547,480,Alabare Christian Care Centre ,100837,SP2 ,Community Services,MH AOWA South Locali,Adult Day Care Contracts,Third Party Payments,REVENUE
Wiltshire,http://opendatacommunities.org/id/unitary-authority/wiltshire,23/12/2020,1902763549,680,Alabare Christian Care Centre ,100837,SP2 ,Community Services,South Care Packages,Adult Day Care Contracts,Third Party Payments,REVENUE
Wiltshire,http://opendatacommunities.org/id/unitary-authority/wiltshire,23/12/2020,1902763552,320,Alabare Christian Care Centre ,100837,SP2 ,Community Services,CTPLD Placements,Adult Day Care Contracts,Third Party Payments,REVENUE
Wiltshire,http://opendatacommunities.org/id/unitary-authority/wiltshire,23/12/2020,1902763553,266.44,Alabare Christian Care Centre ,100837,SP2 ,Community Services,CTPLD Placements,Adult Day Care - Spot Income Contribution,Income,REVENUE
Wiltshire,http://opendatacommunities.org/id/unitary-authority/wiltshire,23/12/2020,1902763554,342,Alabare Christian Care Centre ,100837,SP2 ,Community Services,CTPLD Placements,Adult Day Care Contracts,Third Party Payments,REVENUE
Wiltshire,http://opendatacommunities.org/id/unitary-authority/wiltshire,23/12/2020,1902763555,360,Alabare Christian Care Centre ,100837,SP2 ,Community Services,CTPLD Placements,Adult Day Care Contracts,Third Party Payments,REVENUE
Wiltshire,http://opendatacommunities.org/id/unitary-authority/wiltshire,23/12/2020,1902763556,360,Alabare Christian Care Centre ,100837,SP2 ,Community Services,CTPLD Placements,Adult Day Care Contracts,Third Party Payments,REVENUE
Wiltshire,http://opendatacommunities.org/id/unitary-authority/wiltshire,23/12/2020,1902763557,520,Alabare Christian Care Centre ,100837,SP2 ,Community Services,CTPLD Placements,Adult Day Care Contracts,Third Party Payments,REVENUE
Wiltshire,http://opendatacommunities.org/id/unitary-authority/wiltshire,23/12/2020,1902763558,320,Alabare Christian Care Centre ,100837,SP2 ,Community Services,CTPLD Placements,Adult Day Care Contracts,Third Party Payments,REVENUE
Wiltshire,http://opendatacommunities.org/id/unitary-authority/wiltshire,23/12/2020,1902763559,560,Alabare Christian Care Centre ,100837,SP2 ,Community Services,CTPLD Placements,Adult Day Care Contracts,Third Party Payments,REVENUE
Wiltshire,http://opendatacommunities.org/id/unitary-authority/wiltshire,23/12/2020,1902763561,360,Alabare Christian Care Centre ,100837,SP2 ,Community Services,CTPLD Placements,Adult Day Care Contracts,Third Party Payments,REVENUE
Wiltshire,http://opendatacommunities.org/id/unitary-authority/wiltshire,23/12/2020,1902763562,680,Alabare Christian Care Centre ,100837,SP2 ,Community Services,South Care Packages,Adult Day Care Contracts,Third Party Payments,REVENUE
Wiltshire,http://opendatacommunities.org/id/unitary-authority/wiltshire,23/12/2020,1902763563,520,Alabare Christian Care Centre ,100837,SP2 ,Community Services,CTPLD Placements,Adult Day Care Contracts,Third Party Payments,REVENUE
Wiltshire,http://opendatacommunities.org/id/unitary-authority/wiltshire,23/12/2020,1902763564,320,Alabare Christian Care Centre ,100837,SP2 ,Community Services,CTPLD Placements,Adult Day Care Contracts,Third Party Payments,REVENUE
Wiltshire,http://opendatacommunities.org/id/unitary-authority/wiltshire,23/12/2020,1902763565,360,Alabare Christian Care Centre ,100837,SP2 ,Community Services,CTPLD Placements,Adult Day Care Contracts,Third Party Payments,REVENUE
Wiltshire,http://opendatacommunities.org/id/unitary-authority/wiltshire,23/12/2020,1902763567,520,Alabare Christian Care Centre ,100837,SP2 ,Community Services,CTPLD Placements,Adult Day Care - Spot Income Contribution,Income,REVENUE
Wiltshire,http://opendatacommunities.org/id/unitary-authority/wiltshire,23/12/2020,1902763568,320,Alabare Christian Care Centre ,100837,SP2 ,Community Services,CTPLD Placements,Adult Day Care Contracts,Third Party Payments,REVENUE
Wiltshire,http://opendatacommunities.org/id/unitary-authority/wiltshire,23/12/2020,1902763569,360,Alabare Christian Care Centre ,100837,SP2 ,Community Services,MH AOWA South Locali,Adult Day Care Contracts,Third Party Payments,REVENUE
Wiltshire,http://opendatacommunities.org/id/unitary-authority/wiltshire,23/12/2020,1902763570,360,Alabare Christian Care Centre ,100837,SP2 ,Community Services,MH AOWA N&E Locality,Adult Day Care Contracts,Third Party Payments,REVENUE
Wiltshire,http://opendatacommunities.org/id/unitary-authority/wiltshire,23/12/2020,1902763571,520,Alabare Christian Care Centre ,100837,SP2 ,Community Services,MH AOWA South Locali,Adult Day Care Contracts,Third Party Payments,REVENUE
Wiltshire,http://opendatacommunities.org/id/unitary-authority/wiltshire,23/12/2020,1902763573,360,Alabare Christian Care Centre ,100837,SP2 ,Community Services,CTPLD Placements,Adult Day Care Contracts,Third Party Payments,REVENUE
Wiltshire,http://opendatacommunities.org/id/unitary-authority/wiltshire,23/12/2020,1902763575,360,Alabare Christian Care Centre ,100837,SP2 ,Community Services,CTPLD Placements,Adult Day Care Contracts,Third Party Payments,REVENUE
Wiltshire,http://opendatacommunities.org/id/unitary-authority/wiltshire,23/12/2020,1902763580,360,Alabare Christian Care Centre ,100837,SP2 ,Community Services,CTPLD Placements,Adult Day Care Contracts,Third Party Payments,REVENUE
Wiltshire,http://opendatacommunities.org/id/unitary-authority/wiltshire,23/12/2020,1902763581,680,Alabare Christian Care Centre ,100837,SP2 ,Community Services,South Care Packages,Adult Day Care Contracts,Third Party Payments,REVENUE
Wiltshire,http://opendatacommunities.org/id/unitary-authority/wiltshire,23/12/2020,1902763582,400,Alabare Christian Care Centre ,100837,SP2 ,Community Services,CTPLD Placements,Adult Day Care Contracts,Third Party Payments,REVENUE
Wiltshire,http://opendatacommunities.org/id/unitary-authority/wiltshire,29/12/2020,1902764032,562.8,Alabare Christian Care Centre ,100837,SP2 ,Wiltshire Council,Wiltshire Council,Area Board Grants,Supplies and Services,CAPITAL
Wiltshire,http://opendatacommunities.org/id/unitary-authority/wiltshire,18/12/2020,5107423899,480,Alabare Christian Care Centre ,100837,SP2 ,Children & Education,CDT DP & Care Packag,Other Social & Welfare Costs,Third Party Payments,REVENUE
Wiltshire,http://opendatacommunities.org/id/unitary-authority/wiltshire,21/12/2020,5107424015,256.7,Alan Earl Consultancy Ltd ,146914,BS36,Resources,HR Central Training,Staff Training - General,Employee Related,REVENUE
Wiltshire,http://opendatacommunities.org/id/unitary-authority/wiltshire,08/12/2020,1902744256,4826.64,Aldbourne Nursing Home ,110090,SN8 ,Community Services,Home Loans,Adult Residential Placements - Spot Purchase,Third Party Payments,REVENUE
Wiltshire,http://opendatacommunities.org/id/unitary-authority/wiltshire,09/12/2020,1902746988,2100,Aldbourne Nursing Home ,110090,SN8 ,Resources,Covid19 - Hospital D,Adult Care Nursing Placements - Spot,Third Party Payments,REVENUE
Wiltshire,http://opendatacommunities.org/id/unitary-authority/wiltshire,09/12/2020,1902746989,3150,Aldbourne Nursing Home ,110090,SN8 ,Resources,Covid19 - Hospital D,Adult Care Nursing Placements - Spot,Third Party Payments,REVENUE
Wiltshire,http://opendatacommunities.org/id/unitary-authority/wiltshire,23/12/2020,1902756242,14168.93,Aldbourne Nursing Home ,110090,SN8 ,Resources,Covid19 - Hospital D,Grants Expenditure,Supplies and Services,REVENUE
Wiltshire,http://opendatacommunities.org/id/unitary-authority/wiltshire,23/12/2020,1902745722,2075,Alder King ,100899,BS8 ,Resources,CastledownBusinessPa,Consultants Fees,Supplies and Services,REVENUE
Wiltshire,http://opendatacommunities.org/id/unitary-authority/wiltshire,08/12/2020,1902742304,6237.48,Alexandra Homes (Bristol) Ltd ,131787,BS15,Community Services,MH AOWA West Localit,Adult Residential Placements - Spot Purchase,Third Party Payments,REVENUE
Wiltshire,http://opendatacommunities.org/id/unitary-authority/wiltshire,08/12/2020,1902742101,380.9,Alina Homecare - Disabilty Support ,139903,BH12,Community Services,West Care Packages,Adult Domiciliary Care,Third Party Payments,REVENUE
Wiltshire,http://opendatacommunities.org/id/unitary-authority/wiltshire,08/12/2020,1902742102,1335.01,Alina Homecare - Disabilty Support ,139903,BH12,Community Services,South Care Packages,Adult Domiciliary Care,Third Party Payments,REVENUE
Wiltshire,http://opendatacommunities.org/id/unitary-authority/wiltshire,08/12/2020,1902742104,1978.02,Alina Homecare - Disabilty Support ,139903,BH12,Community Services,South Care Packages,Adult Domiciliary Care,Third Party Payments,REVENUE
Wiltshire,http://opendatacommunities.org/id/unitary-authority/wiltshire,08/12/2020,1902742106,620.33,Alina Homecare - Disabilty Support ,139903,BH12,Community Services,South Care Packages,Adult Domiciliary Care,Third Party Payments,REVENUE
Wiltshire,http://opendatacommunities.org/id/unitary-authority/wiltshire,08/12/2020,1902746703,16450.56,Alina Homecare - Disabilty Support ,139903,BH12,Community Services,CTPLD Placements,Supported Living,Third Party Payments,REVENUE
Wiltshire,http://opendatacommunities.org/id/unitary-authority/wiltshire,08/12/2020,1902746704,2117,Alina Homecare - Disabilty Support ,139903,BH12,Community Services,CTPLD Placements,Supported Living,Third Party Payments,REVENUE
Wiltshire,http://opendatacommunities.org/id/unitary-authority/wiltshire,08/12/2020,1902746705,2384.68,Alina Homecare - Disabilty Support ,139903,BH12,Community Services,CTPLD Placements,Supported Living,Third Party Payments,REVENUE
Wiltshire,http://opendatacommunities.org/id/unitary-authority/wiltshire,08/12/2020,1902746706,2801.36,Alina Homecare - Disabilty Support ,139903,BH12,Community Services,CTPLD Placements,Supported Living,Third Party Payments,REVENUE
Wiltshire,http://opendatacommunities.org/id/unitary-authority/wiltshire,08/12/2020,1902746707,3467.52,Alina Homecare - Disabilty Support ,139903,BH12,Community Services,CTPLD Placements,Supported Living,Third Party Payments,REVENUE
Wiltshire,http://opendatacommunities.org/id/unitary-authority/wiltshire,08/12/2020,1902746708,3467.52,Alina Homecare - Disabilty Support ,139903,BH12,Community Services,CTPLD Placements,Supported Living,Third Party Payments,REVENUE
Wiltshire,http://opendatacommunities.org/id/unitary-authority/wiltshire,08/12/2020,1902746709,3467.52,Alina Homecare - Disabilty Support ,139903,BH12,Community Services,CTPLD Placements,Supported Living,Third Party Payments,REVENUE
Wiltshire,http://opendatacommunities.org/id/unitary-authority/wiltshire,08/12/2020,1902746710,3544.2,Alina Homecare - Disabilty Support ,139903,BH12,Community Services,CTPLD Placements,Supported Living,Third Party Payments,REVENUE
Wiltshire,http://opendatacommunities.org/id/unitary-authority/wiltshire,08/12/2020,1902746711,365,Alina Homecare - Disabilty Support ,139903,BH12,Community Services,CTPLD Placements,Supported Living,Third Party Payments,REVENUE
Wiltshire,http://opendatacommunities.org/id/unitary-authority/wiltshire,08/12/2020,1902746712,3909.2,Alina Homecare - Disabilty Support ,139903,BH12,Community Services,CTPLD Placements,Supported Living,Third Party Payments,REVENUE
Wiltshire,http://opendatacommunities.org/id/unitary-authority/wiltshire,08/12/2020,1902746713,3922.12,Alina Homecare - Disabilty Support ,139903,BH12,Community Services,CTPLD Placements,Supported Living,Third Party Payments,REVENUE
Wiltshire,http://opendatacommunities.org/id/unitary-authority/wiltshire,08/12/2020,1902746714,3982.2,Alina Homecare - Disabilty Support ,139903,BH12,Community Services,CTPLD Placements,Supported Living,Third Party Payments,REVENUE
Wiltshire,http://opendatacommunities.org/id/unitary-authority/wiltshire,08/12/2020,1902746715,4088,Alina Homecare - Disabilty Support ,139903,BH12,Community Services,CTPLD Placements,Supported Living,Third Party Payments,REVENUE
Wiltshire,http://opendatacommunities.org/id/unitary-authority/wiltshire,08/12/2020,1902746716,438,Alina Homecare - Disabilty Support ,139903,BH12,Community Services,CTPLD Placements,Supported Living,Third Party Payments,REVENUE
Wiltshire,http://opendatacommunities.org/id/unitary-authority/wiltshire,08/12/2020,1902746717,4468.84,Alina Homecare - Disabilty Support ,139903,BH12,Community Services,CTPLD Placements,Supported Living,Third Party Payments,REVENUE
Wiltshire,http://opendatacommunities.org/id/unitary-authority/wiltshire,08/12/2020,1902746718,4853.96,Alina Homecare - Disabilty Support ,139903,BH12,Community Services,CTPLD Placements,Supported Living,Third Party Payments,REVENUE
Wiltshire,http://opendatacommunities.org/id/unitary-authority/wiltshire,08/12/2020,1902746719,6374.24,Alina Homecare - Disabilty Support ,139903,BH12,Community Services,CTPLD Placements,Supported Living,Third Party Payments,REVENUE
Wiltshire,http://opendatacommunities.org/id/unitary-authority/wiltshire,08/12/2020,1902746720,9575.56,Alina Homecare - Disabilty Support ,139903,BH12,Community Services,CTPLD Placements,Supported Living,Third Party Payments,REVENUE
Wiltshire,http://opendatacommunities.org/id/unitary-authority/wiltshire,08/12/2020,1902746721,11337.32,Alina Homecare - Disabilty Support ,139903,BH12,Community Services,CTPLD Placements,Supported Living,Third Party Payments,REVENUE
Wiltshire,http://opendatacommunities.org/id/unitary-authority/wiltshire,08/12/2020,1902746722,11337.32,Alina Homecare - Disabilty Support ,139903,BH12,Community Services,CTPLD Placements,Supported Living,Third Party Payments,REVENUE
Wiltshire,http://opendatacommunities.org/id/unitary-authority/wiltshire,08/12/2020,1902746723,6478.47,Alina Homecare - Disabilty Support ,139903,BH12,Community Services,CTPLD Placements,Supported Living,Third Party Payments,REVENUE
Wiltshire,http://opendatacommunities.org/id/unitary-authority/wiltshire,23/12/2020,1902756547,5313.35,Alina Homecare - Disabilty Support ,139903,BH12,Resources,Covid19 - Hospital D,Grants Expenditure,Supplies and Services,REVENUE
Wiltshire,http://opendatacommunities.org/id/unitary-authority/wiltshire,23/12/2020,1902756581,10326.44,Alina Homecare Ltd ,148259,KT22,Resources,Covid19 - Hospital D,Grants Expenditure,Supplies and Services,REVENUE
Wiltshire,http://opendatacommunities.org/id/unitary-authority/wiltshire,10/12/2020,5107423294,4284.52,Alina Homecare Ltd ,148259,KT22,Children & Education,0-25 extnl disabty p,Other Social & Welfare Costs,Third Party Payments,REVENUE
Wiltshire,http://opendatacommunities.org/id/unitary-authority/wiltshire,10/12/2020,5107423295,4102.63,Alina Homecare Ltd ,148259,KT22,Children & Education,0-25 extnl disabty p,Other Social & Welfare Costs,Third Party Payments,REVENUE
Wiltshire,http://opendatacommunities.org/id/unitary-authority/wiltshire,10/12/2020,5107423296,4375.46,Alina Homecare Ltd ,148259,KT22,Children & Education,0-25 extnl disabty p,Other Social & Welfare Costs,Third Party Payments,REVENUE
Wiltshire,http://opendatacommunities.org/id/unitary-authority/wiltshire,10/12/2020,5107423297,2182.68,Alina Homecare Ltd ,148259,KT22,Children & Education,0-25 extnl disabty p,Other Social & Welfare Costs,Third Party Payments,REVENUE
Wiltshire,http://opendatacommunities.org/id/unitary-authority/wiltshire,16/12/2020,5107423633,4679.62,All the other Lucy's (ATOL) ,148945,SW18,Children & Education,0-25 extnl disabty p,Other Social & Welfare Costs,Third Party Payments,REVENUE
Wiltshire,http://opendatacommunities.org/id/unitary-authority/wiltshire,16/12/2020,5107422333,305.47,Allan Fuller Ltd ,113428,NP16,Neighbourhood & Planning,Fleet,Vehicle Parts,Transport Related,REVENUE
Wiltshire,http://opendatacommunities.org/id/unitary-authority/wiltshire,08/12/2020,1902743715,3346.28,Alliance Home Care ,110986,SN15,Community Services,MH AOWA N&E Locality,Adult Residential Placements - Spot Purchase,Third Party Payments,REVENUE
Wiltshire,http://opendatacommunities.org/id/unitary-authority/wiltshire,08/12/2020,1902743716,3601.96,Alliance Home Care ,110986,SN15,Community Services,MH AOWA N&E Locality,Adult Residential Placements - Spot Purchase,Third Party Payments,REVENUE
Wiltshire,http://opendatacommunities.org/id/unitary-authority/wiltshire,08/12/2020,1902743717,3764.28,Alliance Home Care ,110986,SN15,Community Services,MH AOWA N&E Locality,Adult Residential Placements - Spot Purchase,Third Party Payments,REVENUE
Wiltshire,http://opendatacommunities.org/id/unitary-authority/wiltshire,08/12/2020,1902743718,3818,Alliance Home Care ,110986,SN15,Community Services,MH AOWA N&E Locality,Adult Residential Placements - Spot Purchase,Third Party Payments,REVENUE
Wiltshire,http://opendatacommunities.org/id/unitary-authority/wiltshire,08/12/2020,1902743719,3827.52,Alliance Home Care ,110986,SN15,Community Services,MH AOWA N&E Locality,Adult Residential Placements - Spot Purchase,Third Party Payments,REVENUE
Wiltshire,http://opendatacommunities.org/id/unitary-authority/wiltshire,07/12/2020,1902745223,9993.39,Alliance Home Care ,110986,SN15,Resources,Covid19 - Hospital D,Grants Expenditure,Supplies and Services,REVENUE
Wiltshire,http://opendatacommunities.org/id/unitary-authority/wiltshire,23/12/2020,1902756266,9209.81,Alliance Home Care ,110986,SN15,Resources,Covid19 - Hospital D,Grants Expenditure,Supplies and Services,REVENUE
Wiltshire,http://opendatacommunities.org/id/unitary-authority/wiltshire,08/12/2020,1902745960,300,Allsorts Pre-school Nursery ,113437,SN4 ,Resources,Covid 19 Winter Gra,Childcare Free Entitlement Early Years,Supplies and Services,REVENUE
Wiltshire,http://opendatacommunities.org/id/unitary-authority/wiltshire,16/12/2020,1902749405,7403.7,Allsorts Pre-school Nursery ,113437,SN4 ,Children & Education,Free Enttlmnt 3 & 4y,Childcare Free Entitlement Early Years,Supplies and Services,REVENUE
Wiltshire,http://opendatacommunities.org/id/unitary-authority/wiltshire,16/12/2020,1902749406,1984.5,Allsorts Pre-school Nursery ,113437,SN4 ,Children & Education,Free Entitlement 2 Y,Childcare Free Entitlement Early Years,Supplies and Services,REVENUE
Wiltshire,http://opendatacommunities.org/id/unitary-authority/wiltshire,21/12/2020,1902758760,389.55,Allsorts Pre-school Nursery ,113437,SN4 ,Children & Education,Early Years PPG,Childcare Free Entitlement Early Years,Supplies and Services,REVENUE
Wiltshire,http://opendatacommunities.org/id/unitary-authority/wiltshire,22/12/2020,5107424084,340,ALLSPARES  AUTO  LTD ,110116,CF33,Neighbourhood & Planning,Fleet,Vehicle Parts,Transport Related,REVENUE
Wiltshire,http://opendatacommunities.org/id/unitary-authority/wiltshire,04/12/2020,5107421779,742,Alpha Plus Training  and  Translati Ltd,110120,TA4 ,Children & Education,HQ Social Care,Professional Fees,Supplies and Services,REVENUE
Wiltshire,http://opendatacommunities.org/id/unitary-authority/wiltshire,04/12/2020,5107421780,276,Alpha Plus Training  and  Translati Ltd,110120,TA4 ,Children & Education,HQ Social Care,Professional Fees,Supplies and Services,REVENUE
Wiltshire,http://opendatacommunities.org/id/unitary-authority/wiltshire,04/12/2020,5107422358,410.8,Alpha Plus Training  and  Translati Ltd,110120,TA4 ,Children & Education,Kinship & Fostering,Carer Recruitment & Training,Third Party Payments,REVENUE
Wiltshire,http://opendatacommunities.org/id/unitary-authority/wiltshire,04/12/2020,5107422885,333.57,Alpha Plus Training  and  Translati Ltd,110120,TA4 ,Children & Education,HQ Social Care,Professional Fees,Supplies and Services,REVENUE
Wiltshire,http://opendatacommunities.org/id/unitary-authority/wiltshire,04/12/2020,5107422886,490.5,Alpha Plus Training  and  Translati Ltd,110120,TA4 ,Children & Education,HQ Social Care,Professional Fees,Supplies and Services,REVENUE
Wiltshire,http://opendatacommunities.org/id/unitary-authority/wiltshire,04/12/2020,5107422888,748,Alpha Plus Training  and  Translati Ltd,110120,TA4 ,Children & Education,HQ Social Care,Professional Fees,Supplies and Services,REVENUE
Wiltshire,http://opendatacommunities.org/id/unitary-authority/wiltshire,23/12/2020,5107423710,365,Alpha Plus Training  and  Translati Ltd,110120,TA4 ,Children & Education,HQ Social Care,Professional Fees,Supplies and Services,REVENUE
Wiltshire,http://opendatacommunities.org/id/unitary-authority/wiltshire,23/12/2020,5107423711,595,Alpha Plus Training  and  Translati Ltd,110120,TA4 ,Children & Education,HQ Social Care,Professional Fees,Supplies and Services,REVENUE
Wiltshire,http://opendatacommunities.org/id/unitary-authority/wiltshire,18/12/2020,5107423718,699,Alpha Plus Training  and  Translati Ltd,110120,TA4 ,Children & Education,HQ Social Care,Professional Fees,Supplies and Services,REVENUE
Wiltshire,http://opendatacommunities.org/id/unitary-authority/wiltshire,16/12/2020,5107423721,354,Alpha Plus Training  and  Translati Ltd,110120,TA4 ,Children & Education,HQ Social Care,Professional Fees,Supplies and Services,REVENUE
Wiltshire,http://opendatacommunities.org/id/unitary-authority/wiltshire,16/12/2020,5107423722,620,Alpha Plus Training  and  Translati Ltd,110120,TA4 ,Children & Education,HQ Social Care,Professional Fees,Supplies and Services,REVENUE
Wiltshire,http://opendatacommunities.org/id/unitary-authority/wiltshire,30/12/2020,5107424273,340,Alpha Plus Training  and  Translati Ltd,110120,TA4 ,Children & Education,HQ Social Care,Professional Fees,Supplies and Services,REVENUE
Wiltshire,http://opendatacommunities.org/id/unitary-authority/wiltshire,10/12/2020,1902747957,1965.6,Alpha Taxis ,100124,BA14,Neighbourhood & Planning,SEN Primary Transprt,Transport Contracts,Third Party Payments,REVENUE
Wiltshire,http://opendatacommunities.org/id/unitary-authority/wiltshire,10/12/2020,1902747958,445.33,Alpha Taxis ,100124,BA14,Neighbourhood & Planning,SEN Secondary Tspt,Transport Contracts,Third Party Payments,REVENUE
Wiltshire,http://opendatacommunities.org/id/unitary-authority/wiltshire,10/12/2020,1902747958,890.67,Alpha Taxis ,100124,BA14,Neighbourhood & Planning,Mainstream Secondary,Transport Contracts,Third Party Payments,REVENUE
Wiltshire,http://opendatacommunities.org/id/unitary-authority/wiltshire,10/12/2020,1902747959,2000,Alpha Taxis ,100124,BA14,Neighbourhood & Planning,SEN Primary Transprt,Transport Contracts,Third Party Payments,REVENUE
Wiltshire,http://opendatacommunities.org/id/unitary-authority/wiltshire,10/12/2020,1902747960,1377.89,Alpha Taxis ,100124,BA14,Neighbourhood & Planning,SEN Secondary Tspt,Transport Contracts,Third Party Payments,REVENUE
Wiltshire,http://opendatacommunities.org/id/unitary-authority/wiltshire,10/12/2020,1902747960,1702.11,Alpha Taxis ,100124,BA14,Neighbourhood & Planning,SEN Primary Transprt,Transport Contracts,Third Party Payments,REVENUE
Wiltshire,http://opendatacommunities.org/id/unitary-authority/wiltshire,10/12/2020,1902747961,1200,Alpha Taxis ,100124,BA14,Neighbourhood & Planning,Mainstream Secondary,Transport Contracts,Third Party Payments,REVENUE
Wiltshire,http://opendatacommunities.org/id/unitary-authority/wiltshire,10/12/2020,1902747962,1938,Alpha Taxis ,100124,BA14,Neighbourhood & Planning,SEN Secondary Tspt,Transport Contracts,Third Party Payments,REVENUE
Wiltshire,http://opendatacommunities.org/id/unitary-authority/wiltshire,10/12/2020,1902747963,1330,Alpha Taxis ,100124,BA14,Neighbourhood & Planning,SEN Secondary Tspt,Transport Contracts,Third Party Payments,REVENUE
Wiltshire,http://opendatacommunities.org/id/unitary-authority/wiltshire,10/12/2020,1902747964,510,Alpha Taxis ,100124,BA14,Children & Education,CIC Team South,Transport Contracts,Third Party Payments,REVENUE
Wiltshire,http://opendatacommunities.org/id/unitary-authority/wiltshire,10/12/2020,1902747966,2520,Alpha Taxis ,100124,BA14,Neighbourhood & Planning,SEN 16+ Transport,Transport Contracts,Third Party Payments,REVENUE
Wiltshire,http://opendatacommunities.org/id/unitary-authority/wiltshire,10/12/2020,1902747967,1848,Alpha Taxis ,100124,BA14,Neighbourhood & Planning,SEN 16+ Transport,Transport Contracts,Third Party Payments,REVENUE
Wiltshire,http://opendatacommunities.org/id/unitary-authority/wiltshire,10/12/2020,1902747968,972,Alpha Taxis ,100124,BA14,Neighbourhood & Planning,SEN Primary Transprt,Transport Contracts,Third Party Payments,REVENUE
Wiltshire,http://opendatacommunities.org/id/unitary-authority/wiltshire,10/12/2020,1902747969,375.02,Alpha Taxis ,100124,BA14,Neighbourhood & Planning,Mainstream Secondary,Transport Contracts,Third Party Payments,REVENUE
Wiltshire,http://opendatacommunities.org/id/unitary-authority/wiltshire,16/12/2020,1902754014,544.4,Alpha Taxis ,100124,BA14,Children & Education,CIC Team South,Transport Contracts,Third Party Payments,REVENUE
Wiltshire,http://opendatacommunities.org/id/unitary-authority/wiltshire,16/12/2020,1902754014,805.4,Alpha Taxis ,100124,BA14,Neighbourhood & Planning,SEN Primary Transprt,Transport Contracts,Third Party Payments,REVENUE
Wiltshire,http://opendatacommunities.org/id/unitary-authority/wiltshire,16/12/2020,1902754017,1512,Alpha Taxis ,100124,BA14,Neighbourhood & Planning,SEN Primary Transprt,Transport Contracts,Third Party Payments,REVENUE
Wiltshire,http://opendatacommunities.org/id/unitary-authority/wiltshire,16/12/2020,1902754018,484,Alpha Taxis ,100124,BA14,Community Services,CTPLD Placements,Transport Contracts,Third Party Payments,REVENUE
Wiltshire,http://opendatacommunities.org/id/unitary-authority/wiltshire,16/12/2020,1902754019,1295,Alpha Taxis ,100124,BA14,Neighbourhood & Planning,SEN Primary Transprt,Transport Contracts,Third Party Payments,REVENUE
Wiltshire,http://opendatacommunities.org/id/unitary-authority/wiltshire,16/12/2020,1902754021,251.36,Alpha Taxis ,100124,BA14,Neighbourhood & Planning,SEN 16+ Transport,Transport Contracts,Third Party Payments,REVENUE
Wiltshire,http://opendatacommunities.org/id/unitary-authority/wiltshire,16/12/2020,1902754021,479.88,Alpha Taxis ,100124,BA14,Neighbourhood & Planning,SEN Primary Transprt,Transport Contracts,Third Party Payments,REVENUE
Wiltshire,http://opendatacommunities.org/id/unitary-authority/wiltshire,16/12/2020,1902754021,959.76,Alpha Taxis ,100124,BA14,Neighbourhood & Planning,SEN Secondary Tspt,Transport Contracts,Third Party Payments,REVENUE
Wiltshire,http://opendatacommunities.org/id/unitary-authority/wiltshire,16/12/2020,1902754024,2052,Alpha Taxis ,100124,BA14,Neighbourhood & Planning,SEN Primary Transprt,Transport Contracts,Third Party Payments,REVENUE
Wiltshire,http://opendatacommunities.org/id/unitary-authority/wiltshire,21/12/2020,1902747444,1194,Alphatec Software Ltd ,149891,NN7 ,Resources,Insurance,Consultants Fees,Supplies and Services,REVENUE
Wiltshire,http://opendatacommunities.org/id/unitary-authority/wiltshire,01/12/2020,1902737561,2140.99,Alzheimers Support ,110127,BA14,Community Services,Area Board Devizes,Area Board Grants,Supplies and Services,REVENUE
Wiltshire,http://opendatacommunities.org/id/unitary-authority/wiltshire,01/12/2020,1902739341,504,Alzheimers Support ,110127,BA14,Community Services,West Care Packages,Adult Day Care Contracts,Third Party Payments,REVENUE
Wiltshire,http://opendatacommunities.org/id/unitary-authority/wiltshire,07/12/2020,1902744840,3212.19,Alzheimers Support ,110127,BA14,Resources,Covid19 - Hospital D,Other Social & Welfare Costs,Third Party Payments,REVENUE
Wiltshire,http://opendatacommunities.org/id/unitary-authority/wiltshire,16/12/2020,5107423666,13347.67,Amberleigh Care Ltd ,147648,TF2 ,Children & Education,Independent Fosterin,Childrens Agency Placement,Third Party Payments,REVENUE
Wiltshire,http://opendatacommunities.org/id/unitary-authority/wiltshire,16/12/2020,5107423667,3348,Amberleigh Care Ltd ,147648,TF2 ,Children & Education,IndepSpecialSchFees,Childrens Agency Placement,Third Party Payments,REVENUE
Wiltshire,http://opendatacommunities.org/id/unitary-authority/wiltshire,03/12/2020,1902741692,2180,Amesbury Taxis ,150486,SP11,Neighbourhood & Planning,SEN Primary Transprt,Transport Contracts,Third Party Payments,REVENUE
Wiltshire,http://opendatacommunities.org/id/unitary-authority/wiltshire,03/12/2020,1902741694,1780,Amesbury Taxis ,150486,SP11,Neighbourhood & Planning,SEN Secondary Tspt,Transport Contracts,Third Party Payments,REVENUE
Wiltshire,http://opendatacommunities.org/id/unitary-authority/wiltshire,03/12/2020,1902741695,2580,Amesbury Taxis ,150486,SP11,Neighbourhood & Planning,SEN Secondary Tspt,Transport Contracts,Third Party Payments,REVENUE
Wiltshire,http://opendatacommunities.org/id/unitary-authority/wiltshire,03/12/2020,1902741699,1820,Amesbury Taxis ,150486,SP11,Neighbourhood & Planning,SEN Secondary Tspt,Transport Contracts,Third Party Payments,REVENUE
Wiltshire,http://opendatacommunities.org/id/unitary-authority/wiltshire,17/12/2020,5107423791,3624.21,Amicus Foster Care Limited ,126050,BS2 ,Children & Education,Independent Fosterin,Childrens Agency Placement,Third Party Payments,REVENUE
Wiltshire,http://opendatacommunities.org/id/unitary-authority/wiltshire,17/12/2020,5107423792,3543.3,Amicus Foster Care Limited ,126050,BS2 ,Children & Education,Independent Fosterin,Childrens Agency Placement,Third Party Payments,REVENUE
Wiltshire,http://opendatacommunities.org/id/unitary-authority/wiltshire,17/12/2020,5107423797,3841.21,Amicus Foster Care Limited ,126050,BS2 ,Children & Education,Independent Fosterin,Childrens Agency Placement,Third Party Payments,REVENUE
Wiltshire,http://opendatacommunities.org/id/unitary-authority/wiltshire,17/12/2020,5107423798,4878.78,Amicus Foster Care Limited ,126050,BS2 ,Children & Education,Independent Fosterin,Childrens Agency Placement,Third Party Payments,REVENUE
Wiltshire,http://opendatacommunities.org/id/unitary-authority/wiltshire,17/12/2020,5107423814,3543.3,Amicus Foster Care Limited ,126050,BS2 ,Children & Education,Independent Fosterin,Childrens Agency Placement,Third Party Payments,REVENUE
Wiltshire,http://opendatacommunities.org/id/unitary-authority/wiltshire,17/12/2020,5107423835,7182.39,Amicus Foster Care Limited ,126050,BS2 ,Children & Education,Independent Fosterin,Childrens Agency Placement,Third Party Payments,REVENUE
Wiltshire,http://opendatacommunities.org/id/unitary-authority/wiltshire,17/12/2020,5107423841,3614.6,Amicus Foster Care Limited ,126050,BS2 ,Children & Education,Independent Fosterin,Childrens Agency Placement,Third Party Payments,REVENUE
Wiltshire,http://opendatacommunities.org/id/unitary-authority/wiltshire,11/12/2020,1902740034,1371.77,AMP Clean Energy ,144036,EX20,Neighbourhood & Planning,Biomass Prog Schools,Other Fuels,Premises Related,REVENUE
Wiltshire,http://opendatacommunities.org/id/unitary-authority/wiltshire,16/12/2020,1902747814,2256.2,AMP Clean Energy ,144036,EX20,Neighbourhood & Planning,Biomass Prog Schools,Other Fuels,Premises Related,REVENUE
Wiltshire,http://opendatacommunities.org/id/unitary-authority/wiltshire,16/12/2020,1902753655,815.43,AMP Clean Energy ,144036,EX20,Neighbourhood & Planning,Biomass Prog Schools,Other Fuels,Premises Related,REVENUE
Wiltshire,http://opendatacommunities.org/id/unitary-authority/wiltshire,16/12/2020,1902753656,2343.2,AMP Clean Energy ,144036,EX20,Neighbourhood & Planning,Biomass Prog Schools,Other Fuels,Premises Related,REVENUE
Wiltshire,http://opendatacommunities.org/id/unitary-authority/wiltshire,16/12/2020,1902753657,250,AMP Clean Energy ,144036,EX20,Neighbourhood & Planning,Biomass Prog Schools,Other Fuels,Premises Related,REVENUE
Wiltshire,http://opendatacommunities.org/id/unitary-authority/wiltshire,16/12/2020,1902753658,902.48,AMP Clean Energy ,144036,EX20,Neighbourhood & Planning,Biomass Prog Schools,Other Fuels,Premises Related,REVENUE
Wiltshire,http://opendatacommunities.org/id/unitary-authority/wiltshire,16/12/2020,1902753659,1132.62,AMP Clean Energy ,144036,EX20,Neighbourhood & Planning,Biomass Prog Schools,Other Fuels,Premises Related,REVENUE
Wiltshire,http://opendatacommunities.org/id/unitary-authority/wiltshire,16/12/2020,1902753660,2520.18,AMP Clean Energy ,144036,EX20,Neighbourhood & Planning,Biomass Prog Schools,Other Fuels,Premises Related,REVENUE
Wiltshire,http://opendatacommunities.org/id/unitary-authority/wiltshire,16/12/2020,1902753661,1588.36,AMP Clean Energy ,144036,EX20,Neighbourhood & Planning,Biomass Prog Schools,Other Fuels,Premises Related,REVENUE
Wiltshire,http://opendatacommunities.org/id/unitary-authority/wiltshire,16/12/2020,1902753662,1471.04,AMP Clean Energy ,144036,EX20,Neighbourhood & Planning,Biomass Prog Schools,Other Fuels,Premises Related,REVENUE
Wiltshire,http://opendatacommunities.org/id/unitary-authority/wiltshire,16/12/2020,1902753663,1829.78,AMP Clean Energy ,144036,EX20,Neighbourhood & Planning,Biomass Prog Schools,Other Fuels,Premises Related,REVENUE
Wiltshire,http://opendatacommunities.org/id/unitary-authority/wiltshire,16/12/2020,1902753664,1139.38,AMP Clean Energy ,144036,EX20,Neighbourhood & Planning,Biomass Prog Schools,Other Fuels,Premises Related,REVENUE
Wiltshire,http://opendatacommunities.org/id/unitary-authority/wiltshire,18/12/2020,1902753665,2707.44,AMP Clean Energy ,144036,EX20,Neighbourhood & Planning,Biomass Prog Schools,Other Fuels,Premises Related,REVENUE
Wiltshire,http://opendatacommunities.org/id/unitary-authority/wiltshire,21/12/2020,1902753666,1768.86,AMP Clean Energy ,144036,EX20,Neighbourhood & Planning,Biomass Prog Schools,Other Fuels,Premises Related,REVENUE
Wiltshire,http://opendatacommunities.org/id/unitary-authority/wiltshire,08/12/2020,1902744181,297.7,AMS Care Wiltshire ,130764,SN4 ,Community Services,Placement Block Cont,Adult Nursing Place- Block Contract Contribution,Income,REVENUE
Wiltshire,http://opendatacommunities.org/id/unitary-authority/wiltshire,08/12/2020,1902744182,14816,AMS Care Wiltshire ,130764,SN4 ,Resources,Covid19 - Hospital D,Adult Care Nursing Placements - Spot,Third Party Payments,REVENUE
Wiltshire,http://opendatacommunities.org/id/unitary-authority/wiltshire,08/12/2020,1902744183,1677.84,AMS Care Wiltshire ,130764,SN4 ,Resources,Covid19 - Hospital D,Adult Care Nursing Placements - Spot,Third Party Payments,REVENUE
Wiltshire,http://opendatacommunities.org/id/unitary-authority/wiltshire,08/12/2020,1902744184,838.92,AMS Care Wiltshire ,130764,SN4 ,Resources,Covid19 - Hospital D,Adult Care Nursing Placements - Spot,Third Party Payments,REVENUE
Wiltshire,http://opendatacommunities.org/id/unitary-authority/wiltshire,08/12/2020,1902744185,2826.16,AMS Care Wiltshire ,130764,SN4 ,Community Services,North Care Packages,Adult Care Nursing Placements - Spot,Third Party Payments,REVENUE
Wiltshire,http://opendatacommunities.org/id/unitary-authority/wiltshire,08/12/2020,1902744186,2826.16,AMS Care Wiltshire ,130764,SN4 ,Community Services,North Care Packages,Adult Care Nursing Placements - Spot,Third Party Payments,REVENUE
Wiltshire,http://opendatacommunities.org/id/unitary-authority/wiltshire,08/12/2020,1902744187,706.54,AMS Care Wiltshire ,130764,SN4 ,Community Services,North Care Packages,Adult Care Nursing Placements - Spot,Third Party Payments,REVENUE
Wiltshire,http://opendatacommunities.org/id/unitary-authority/wiltshire,08/12/2020,1902744188,2847.56,AMS Care Wiltshire ,130764,SN4 ,Community Services,Placement Block Cont,Adult Care Nursing Placements- Block Contract,Third Party Payments,REVENUE
Wiltshire,http://opendatacommunities.org/id/unitary-authority/wiltshire,08/12/2020,1902744189,2847.56,AMS Care Wiltshire ,130764,SN4 ,Community Services,Placement Block Cont,Adult Care Nursing Placements- Block Contract,Third Party Payments,REVENUE
Wiltshire,http://opendatacommunities.org/id/unitary-authority/wiltshire,08/12/2020,1902744190,2847.56,AMS Care Wiltshire ,130764,SN4 ,Community Services,Placement Block Cont,Adult Care Nursing Placements- Block Contract,Third Party Payments,REVENUE
Wiltshire,http://opendatacommunities.org/id/unitary-authority/wiltshire,08/12/2020,1902744191,2847.56,AMS Care Wiltshire ,130764,SN4 ,Community Services,Placement Block Cont,Adult Care Nursing Placements- Block Contract,Third Party Payments,REVENUE
Wiltshire,http://opendatacommunities.org/id/unitary-authority/wiltshire,08/12/2020,1902744192,2847.56,AMS Care Wiltshire ,130764,SN4 ,Community Services,Placement Block Cont,Adult Care Nursing Placements- Block Contract,Third Party Payments,REVENUE
Wiltshire,http://opendatacommunities.org/id/unitary-authority/wiltshire,08/12/2020,1902744193,2847.56,AMS Care Wiltshire ,130764,SN4 ,Community Services,Placement Block Cont,Adult Care Nursing Placements- Block Contract,Third Party Payments,REVENUE
Wiltshire,http://opendatacommunities.org/id/unitary-authority/wiltshire,08/12/2020,1902744194,2847.56,AMS Care Wiltshire ,130764,SN4 ,Community Services,Placement Block Cont,Adult Care Nursing Placements- Block Contract,Third Party Payments,REVENUE
Wiltshire,http://opendatacommunities.org/id/unitary-authority/wiltshire,08/12/2020,1902744195,2847.56,AMS Care Wiltshire ,130764,SN4 ,Community Services,Placement Block Cont,Adult Care Nursing Placements- Block Contract,Third Party Payments,REVENUE
Wiltshire,http://opendatacommunities.org/id/unitary-authority/wiltshire,08/12/2020,1902744196,2847.56,AMS Care Wiltshire ,130764,SN4 ,Community Services,Placement Block Cont,Adult Care Nursing Placements- Block Contract,Third Party Payments,REVENUE
Wiltshire,http://opendatacommunities.org/id/unitary-authority/wiltshire,08/12/2020,1902744197,2847.56,AMS Care Wiltshire ,130764,SN4 ,Community Services,Placement Block Cont,Adult Care Nursing Placements- Block Contract,Third Party Payments,REVENUE
Wiltshire,http://opendatacommunities.org/id/unitary-authority/wiltshire,08/12/2020,1902744198,2847.56,AMS Care Wiltshire ,130764,SN4 ,Community Services,Placement Block Cont,Adult Care Nursing Placements- Block Contract,Third Party Payments,REVENUE
Wiltshire,http://opendatacommunities.org/id/unitary-authority/wiltshire,08/12/2020,1902744199,2847.56,AMS Care Wiltshire ,130764,SN4 ,Community Services,Placement Block Cont,Adult Care Nursing Placements- Block Contract,Third Party Payments,REVENUE
Wiltshire,http://opendatacommunities.org/id/unitary-authority/wiltshire,08/12/2020,1902744200,2847.56,AMS Care Wiltshire ,130764,SN4 ,Community Services,Placement Block Cont,Adult Care Nursing Placements- Block Contract,Third Party Payments,REVENUE
Wiltshire,http://opendatacommunities.org/id/unitary-authority/wiltshire,08/12/2020,1902744201,2847.56,AMS Care Wiltshire ,130764,SN4 ,Community Services,Placement Block Cont,Adult Care Nursing Placements- Block Contract,Third Party Payments,REVENUE
Wiltshire,http://opendatacommunities.org/id/unitary-authority/wiltshire,08/12/2020,1902744202,2847.56,AMS Care Wiltshire ,130764,SN4 ,Community Services,Placement Block Cont,Adult Care Nursing Placements- Block Contract,Third Party Payments,REVENUE
Wiltshire,http://opendatacommunities.org/id/unitary-authority/wiltshire,08/12/2020,1902744203,2847.56,AMS Care Wiltshire ,130764,SN4 ,Community Services,Placement Block Cont,Adult Care Nursing Placements- Block Contract,Third Party Payments,REVENUE
Wiltshire,http://opendatacommunities.org/id/unitary-authority/wiltshire,08/12/2020,1902744204,2847.56,AMS Care Wiltshire ,130764,SN4 ,Community Services,Placement Block Cont,Adult Care Nursing Placements- Block Contract,Third Party Payments,REVENUE
Wiltshire,http://opendatacommunities.org/id/unitary-authority/wiltshire,08/12/2020,1902744205,2744.64,AMS Care Wiltshire ,130764,SN4 ,Community Services,Adult Care Gross Loa,Adult Care Nursing Placements - Spot,Third Party Payments,REVENUE
Wiltshire,http://opendatacommunities.org/id/unitary-authority/wiltshire,08/12/2020,1902744206,2744.64,AMS Care Wiltshire ,130764,SN4 ,Community Services,Adult Care Gross Loa,Adult Care Nursing Placements - Spot,Third Party Payments,REVENUE
Wiltshire,http://opendatacommunities.org/id/unitary-authority/wiltshire,08/12/2020,1902744207,2826.16,AMS Care Wiltshire ,130764,SN4 ,Community Services,Adult Care Gross Loa,Adult Care Nursing Placements - Spot,Third Party Payments,REVENUE
Wiltshire,http://opendatacommunities.org/id/unitary-authority/wiltshire,08/12/2020,1902744208,2847.56,AMS Care Wiltshire ,130764,SN4 ,Community Services,Adult Care Gross Loa,Adult Care Nursing Placements - Spot,Third Party Payments,REVENUE
Wiltshire,http://opendatacommunities.org/id/unitary-authority/wiltshire,08/12/2020,1902744209,2847.56,AMS Care Wiltshire ,130764,SN4 ,Community Services,Adult Care Gross Loa,Adult Care Nursing Placements - Spot,Third Party Payments,REVENUE
Wiltshire,http://opendatacommunities.org/id/unitary-authority/wiltshire,08/12/2020,1902744210,2847.56,AMS Care Wiltshire ,130764,SN4 ,Community Services,Adult Care Gross Loa,Adult Care Nursing Placements - Spot,Third Party Payments,REVENUE
Wiltshire,http://opendatacommunities.org/id/unitary-authority/wiltshire,08/12/2020,1902744211,711.89,AMS Care Wiltshire ,130764,SN4 ,Community Services,Adult Care Gross Loa,Adult Care Nursing Placements - Spot,Third Party Payments,REVENUE
Wiltshire,http://opendatacommunities.org/id/unitary-authority/wiltshire,08/12/2020,1902744212,1965,AMS Care Wiltshire ,130764,SN4 ,Community Services,Placement Block Cont,Adult Care Nursing Placements- Block Contract,Third Party Payments,REVENUE
Wiltshire,http://opendatacommunities.org/id/unitary-authority/wiltshire,08/12/2020,1902744213,2620,AMS Care Wiltshire ,130764,SN4 ,Community Services,Placement Block Cont,Adult Care Nursing Placements- Block Contract,Third Party Payments,REVENUE
Wiltshire,http://opendatacommunities.org/id/unitary-authority/wiltshire,08/12/2020,1902744214,2620,AMS Care Wiltshire ,130764,SN4 ,Community Services,Placement Block Cont,Adult Care Nursing Placements- Block Contract,Third Party Payments,REVENUE
Wiltshire,http://opendatacommunities.org/id/unitary-authority/wiltshire,08/12/2020,1902744215,2620,AMS Care Wiltshire ,130764,SN4 ,Community Services,Placement Block Cont,Adult Care Nursing Placements- Block Contract,Third Party Payments,REVENUE
Wiltshire,http://opendatacommunities.org/id/unitary-authority/wiltshire,08/12/2020,1902744216,2620,AMS Care Wiltshire ,130764,SN4 ,Community Services,Placement Block Cont,Adult Care Nursing Placements- Block Contract,Third Party Payments,REVENUE
Wiltshire,http://opendatacommunities.org/id/unitary-authority/wiltshire,08/12/2020,1902744217,2620,AMS Care Wiltshire ,130764,SN4 ,Community Services,Placement Block Cont,Adult Care Nursing Placements- Block Contract,Third Party Payments,REVENUE
Wiltshire,http://opendatacommunities.org/id/unitary-authority/wiltshire,08/12/2020,1902744218,2620,AMS Care Wiltshire ,130764,SN4 ,Community Services,Placement Block Cont,Adult Care Nursing Placements- Block Contract,Third Party Payments,REVENUE
Wiltshire,http://opendatacommunities.org/id/unitary-authority/wiltshire,08/12/2020,1902744219,2620,AMS Care Wiltshire ,130764,SN4 ,Community Services,Placement Block Cont,Adult Care Nursing Placements- Block Contract,Third Party Payments,REVENUE
Wiltshire,http://opendatacommunities.org/id/unitary-authority/wiltshire,08/12/2020,1902744220,2620,AMS Care Wiltshire ,130764,SN4 ,Community Services,Placement Block Cont,Adult Care Nursing Placements- Block Contract,Third Party Payments,REVENUE
Wiltshire,http://opendatacommunities.org/id/unitary-authority/wiltshire,08/12/2020,1902744221,2620,AMS Care Wiltshire ,130764,SN4 ,Community Services,Placement Block Cont,Adult Care Nursing Placements- Block Contract,Third Party Payments,REVENUE
Wiltshire,http://opendatacommunities.org/id/unitary-authority/wiltshire,08/12/2020,1902744222,2620,AMS Care Wiltshire ,130764,SN4 ,Community Services,Placement Block Cont,Adult Care Nursing Placements- Block Contract,Third Party Payments,REVENUE
Wiltshire,http://opendatacommunities.org/id/unitary-authority/wiltshire,08/12/2020,1902744223,2620,AMS Care Wiltshire ,130764,SN4 ,Community Services,Placement Block Cont,Adult Care Nursing Placements- Block Contract,Third Party Payments,REVENUE
Wiltshire,http://opendatacommunities.org/id/unitary-authority/wiltshire,08/12/2020,1902744224,1047.75,AMS Care Wiltshire ,130764,SN4 ,Community Services,North Care Packages,Adult Nursing Place- Spot Purchase Contr,Income,REVENUE
Wiltshire,http://opendatacommunities.org/id/unitary-authority/wiltshire,08/12/2020,1902744225,2620,AMS Care Wiltshire ,130764,SN4 ,Community Services,Placement Block Cont,Adult Care Nursing Placements- Block Contract,Third Party Payments,REVENUE
Wiltshire,http://opendatacommunities.org/id/unitary-authority/wiltshire,08/12/2020,1902744226,2228.81,AMS Care Wiltshire ,130764,SN4 ,Community Services,North Care Packages,Adult Care Nursing Placements - Spot,Third Party Payments,REVENUE
Wiltshire,http://opendatacommunities.org/id/unitary-authority/wiltshire,08/12/2020,1902744227,2600.28,AMS Care Wiltshire ,130764,SN4 ,Community Services,North Care Packages,Adult Care Nursing Placements - Spot,Third Party Payments,REVENUE
Wiltshire,http://opendatacommunities.org/id/unitary-authority/wiltshire,08/12/2020,1902746354,38000,AMS Care Wiltshire ,130764,SN4 ,Resources,Covid19 - Hospital D,Adult Care Nursing Placements- Block Contract,Third Party Payments,REVENUE
Wiltshire,http://opendatacommunities.org/id/unitary-authority/wiltshire,08/12/2020,1902746355,38000,AMS Care Wiltshire ,130764,SN4 ,Resources,Covid19 - Hospital D,Adult Care Nursing Placements- Block Contract,Third Party Payments,REVENUE
Wiltshire,http://opendatacommunities.org/id/unitary-authority/wiltshire,23/12/2020,1902756351,22316.08,AMS Care Wiltshire ,130764,SN4 ,Resources,Covid19 - Hospital D,Grants Expenditure,Supplies and Services,REVENUE
Wiltshire,http://opendatacommunities.org/id/unitary-authority/wiltshire,14/12/2020,1902748527,3600,ANA Treatment Centres ,126008,PO6 ,Community Services,T4 Treatments,Rehabilitation,Third Party Payments,REVENUE
Wiltshire,http://opendatacommunities.org/id/unitary-authority/wiltshire,23/12/2020,1902748528,3428.57,ANA Treatment Centres ,126008,PO6 ,Community Services,T4 Treatments,Rehabilitation,Third Party Payments,REVENUE
Wiltshire,http://opendatacommunities.org/id/unitary-authority/wiltshire,14/12/2020,1902748529,800,ANA Treatment Centres ,126008,PO6 ,Community Services,T4 Treatments,Rehabilitation,Third Party Payments,REVENUE
Wiltshire,http://opendatacommunities.org/id/unitary-authority/wiltshire,18/12/2020,5107422580,497,Anchor Joint Sealing Ltd ,110138,SP2 ,Neighbourhood & Planning,Housing Repairs Mana,Equipment Purchase,Supplies and Services,REVENUE
Wiltshire,http://opendatacommunities.org/id/unitary-authority/wiltshire,09/12/2020,1902742174,3071.23,Andover Fire and Security Ltd ,147308,SP10,Neighbourhood & Planning,Porton Science Park,Property Maintenance,Premises Related,REVENUE
Wiltshire,http://opendatacommunities.org/id/unitary-authority/wiltshire,09/12/2020,1902744393,12350,Andover Fire and Security Ltd ,147308,SP10,Neighbourhood & Planning,Porton Science Park,Property Maintenance,Premises Related,REVENUE
Wiltshire,http://opendatacommunities.org/id/unitary-authority/wiltshire,08/12/2020,1902742280,6000,Andover Nursing Home ,110142,SP10,Community Services,MH AOWA South Locali,Adult Care Nursing Placements - Spot,Third Party Payments,REVENUE
Wiltshire,http://opendatacommunities.org/id/unitary-authority/wiltshire,11/12/2020,1902748195,672,Andy Taxis Limited ,100874,SP4 ,Neighbourhood & Planning,SEN Secondary Tspt,Transport Contracts,Third Party Payments,REVENUE
Wiltshire,http://opendatacommunities.org/id/unitary-authority/wiltshire,11/12/2020,1902748195,1008,Andy Taxis Limited ,100874,SP4 ,Neighbourhood & Planning,Mainstream Secondary,Transport Contracts,Third Party Payments,REVENUE
Wiltshire,http://opendatacommunities.org/id/unitary-authority/wiltshire,01/12/2020,1902739148,1111.11,Andybus  and  Coach Ltd ,100132,SN16,Neighbourhood & Planning,Mainstream Primary,Transport Contracts,Third Party Payments,REVENUE
Wiltshire,http://opendatacommunities.org/id/unitary-authority/wiltshire,01/12/2020,1902739148,18171.56,Andybus  and  Coach Ltd ,100132,SN16,Neighbourhood & Planning,Mainstream Secondary,Transport Contracts,Third Party Payments,REVENUE
Wiltshire,http://opendatacommunities.org/id/unitary-authority/wiltshire,01/12/2020,1902739150,3312.24,Andybus  and  Coach Ltd ,100132,SN16,Neighbourhood & Planning,Mainstream Secondary,Transport Contracts,Third Party Payments,REVENUE
Wiltshire,http://opendatacommunities.org/id/unitary-authority/wiltshire,23/12/2020,1902756592,717.11,Angels Care At Home ,149925,SN3 ,Resources,Covid19 - Hospital D,Grants Expenditure,Supplies and Services,REVENUE
Wiltshire,http://opendatacommunities.org/id/unitary-authority/wiltshire,22/12/2020,1902760221,385.25,Angels Care At Home ,149925,SN3 ,Community Services,MH OP N&E Locality,Adult Domiciliary Care,Third Party Payments,REVENUE
Wiltshire,http://opendatacommunities.org/id/unitary-authority/wiltshire,22/12/2020,1902760222,433.08,Angels Care At Home ,149925,SN3 ,Community Services,MH OP N&E Locality,Adult Domiciliary Care,Third Party Payments,REVENUE
Wiltshire,http://opendatacommunities.org/id/unitary-authority/wiltshire,22/12/2020,1902760223,576.8,Angels Care At Home ,149925,SN3 ,Community Services,North Care Packages,Adult Domiciliary Care,Third Party Payments,REVENUE
Wiltshire,http://opendatacommunities.org/id/unitary-authority/wiltshire,22/12/2020,1902760224,576.8,Angels Care At Home ,149925,SN3 ,Community Services,North Care Packages,Adult Domiciliary Care,Third Party Payments,REVENUE
Wiltshire,http://opendatacommunities.org/id/unitary-authority/wiltshire,10/12/2020,5107421591,295.36,Antalis Limited ,122876,LE67,Resources,DesignPrintTrowbridg,Stationery,Supplies and Services,REVENUE
Wiltshire,http://opendatacommunities.org/id/unitary-authority/wiltshire,21/12/2020,5107423992,23500,APAM Ltd re Nexus Properties ,147980,M17 ,Resources,FM Leisure Centres,Premises Rental,Premises Related,REVENUE
Wiltshire,http://opendatacommunities.org/id/unitary-authority/wiltshire,21/12/2020,5107423993,9300,APAM Ltd re Nexus Properties ,147980,M17 ,Resources,FM Leisure Centres,Premises Rental,Premises Related,REVENUE
Wiltshire,http://opendatacommunities.org/id/unitary-authority/wiltshire,08/12/2020,1902745987,750,Appletree Nursery 1026 ,110163,SN11,Resources,Covid 19 Winter Gra,Childcare Free Entitlement Early Years,Supplies and Services,REVENUE
Wiltshire,http://opendatacommunities.org/id/unitary-authority/wiltshire,17/12/2020,1902749463,8493,Appletree Nursery 1026 ,110163,SN11,Children & Education,Free Enttlmnt 3 & 4y,Childcare Free Entitlement Early Years,Supplies and Services,REVENUE
Wiltshire,http://opendatacommunities.org/id/unitary-authority/wiltshire,17/12/2020,1902749464,6102,Appletree Nursery 1026 ,110163,SN11,Children & Education,Free Entitlement 2 Y,Childcare Free Entitlement Early Years,Supplies and Services,REVENUE
Wiltshire,http://opendatacommunities.org/id/unitary-authority/wiltshire,21/12/2020,1902758738,850.65,Appletree Nursery 1026 ,110163,SN11,Children & Education,Early Years PPG,Childcare Free Entitlement Early Years,Supplies and Services,REVENUE
Wiltshire,http://opendatacommunities.org/id/unitary-authority/wiltshire,23/12/2020,5107423025,2254.33,APS Group ,148025,SK3 ,Resources,Customer Services,Printing,Supplies and Services,REVENUE
Wiltshire,http://opendatacommunities.org/id/unitary-authority/wiltshire,08/12/2020,1902741027,1900,Arch Care Services Ltd ,110169,BS21,Community Services,MH AOWA West Localit,Supported Living,Third Party Payments,REVENUE
Wiltshire,http://opendatacommunities.org/id/unitary-authority/wiltshire,22/12/2020,5107424154,19710.97,Arch Consulting Ltd t/a Arch ,138595,W4 1,Resources,Applications SuppLOB,ICT Apps - SAP,Supplies and Services,REVENUE
Wiltshire,http://opendatacommunities.org/id/unitary-authority/wiltshire,11/12/2020,5107421770,2100,Arcus Global Limited ,149680,CB4 ,Wiltshire Council,Wiltshire Council,ICT - Support arrangements,Supplies and Services,CAPITAL
Wiltshire,http://opendatacommunities.org/id/unitary-authority/wiltshire,17/12/2020,5107423337,11287.5,Arcus Global Limited ,149680,CB4 ,Wiltshire Council,Wiltshire Council,ICT - Support arrangements,Supplies and Services,CAPITAL
Wiltshire,http://opendatacommunities.org/id/unitary-authority/wiltshire,30/12/2020,5107424168,4200,Arcus Global Limited ,149680,CB4 ,Wiltshire Council,Wiltshire Council,ICT - Support arrangements,Supplies and Services,CAPITAL
Wiltshire,http://opendatacommunities.org/id/unitary-authority/wiltshire,09/12/2020,1902747004,423,Arden House ,150375,TN40,Community Services,South Care Packages,Adult Residential Place - Spot Purchase,Income,REVENUE
Wiltshire,http://opendatacommunities.org/id/unitary-authority/wiltshire,09/12/2020,1902747005,6800,Arden House ,150375,TN40,Community Services,South Care Packages,Adult Residential Placements - Spot Purchase,Third Party Payments,REVENUE
Wiltshire,http://opendatacommunities.org/id/unitary-authority/wiltshire,08/12/2020,1902740849,2175,Arliemoor Care Homes ,110174,EX22,Community Services,MH AOWA West Localit,Adult Domiciliary Care,Third Party Payments,REVENUE
Wiltshire,http://opendatacommunities.org/id/unitary-authority/wiltshire,08/12/2020,1902742281,2272,Arliemoor Care Homes ,110174,EX22,Community Services,MH AOWA West Localit,Adult Residential Placements - Spot Purchase,Third Party Payments,REVENUE
Wiltshire,http://opendatacommunities.org/id/unitary-authority/wiltshire,08/12/2020,1902742282,2859.36,Arliemoor Care Homes ,110174,EX22,Community Services,MH AOWA South Locali,Adult Residential Placements - Spot Purchase,Third Party Payments,REVENUE
Wiltshire,http://opendatacommunities.org/id/unitary-authority/wiltshire,08/12/2020,1902742283,7532.6,Arliemoor Care Homes ,110174,EX22,Community Services,MH AOWA South Locali,Adult Residential Placements - Spot Purchase,Third Party Payments,REVENUE
Wiltshire,http://opendatacommunities.org/id/unitary-authority/wiltshire,23/12/2020,1902756574,3585.57,Arrow Care Services Ltd ,146643,SN12,Resources,Covid19 - Hospital D,Grants Expenditure,Supplies and Services,REVENUE
Wiltshire,http://opendatacommunities.org/id/unitary-authority/wiltshire,09/12/2020,1902747503,282.28,Asda Pharmacy ,137247,SN12,Neighbourhood & Planning,Smoking-Mgt & Commss,Public Health Commissioning,Supplies and Services,REVENUE
Wiltshire,http://opendatacommunities.org/id/unitary-authority/wiltshire,23/12/2020,1902756550,2007.92,Ash Care Services ,140706,SP2 ,Resources,Covid19 - Hospital D,Grants Expenditure,Supplies and Services,REVENUE
Wiltshire,http://opendatacommunities.org/id/unitary-authority/wiltshire,08/12/2020,1902742310,3896.88,Ashness Care ,143773,N15 ,Community Services,MH AOWA N&E Locality,Adult Residential Placements - Spot Purchase,Third Party Payments,REVENUE
Wiltshire,http://opendatacommunities.org/id/unitary-authority/wiltshire,17/12/2020,1902749376,5115.6,Ashton Keynes Playgroup 249 ,110188,SN6 ,Children & Education,Free Enttlmnt 3 & 4y,Childcare Free Entitlement Early Years,Supplies and Services,REVENUE
Wiltshire,http://opendatacommunities.org/id/unitary-authority/wiltshire,17/12/2020,1902749377,283.5,Ashton Keynes Playgroup 249 ,110188,SN6 ,Children & Education,Free Entitlement 2 Y,Childcare Free Entitlement Early Years,Supplies and Services,REVENUE
Wiltshire,http://opendatacommunities.org/id/unitary-authority/wiltshire,08/12/2020,1902742308,1841.76,Ashton Manor Nursing Home ,139060,GU10,Community Services,South Care Packages,Adult Care Nursing Placements - Spot,Third Party Payments,REVENUE
Wiltshire,http://opendatacommunities.org/id/unitary-authority/wiltshire,14/12/2020,1902722893,434.98,Askews & Holts Library Services Ltd ,101034,PR1 ,Community Services,Libraries,Books & Publications,Supplies and Services,REVENUE
Wiltshire,http://opendatacommunities.org/id/unitary-authority/wiltshire,07/12/2020,5107422735,1690,Asphalt Recycling UK Ltd ,149290,SN26,Neighbourhood & Planning,Off Street Parking,Vehicle Parking,Transport Related,REVENUE
Wiltshire,http://opendatacommunities.org/id/unitary-authority/wiltshire,16/12/2020,1902754036,1470,Aspire Taxis ,101274,SP2 ,Neighbourhood & Planning,Mainstream Primary,Transport Contracts,Third Party Payments,REVENUE
Wiltshire,http://opendatacommunities.org/id/unitary-authority/wiltshire,16/12/2020,1902754046,900,Aspire Taxis ,101274,SP2 ,Neighbourhood & Planning,SEN Primary Transprt,Transport Contracts,Third Party Payments,REVENUE
Wiltshire,http://opendatacommunities.org/id/unitary-authority/wiltshire,09/12/2020,1902746998,4948.24,Assisted Living South West ,149587,B70 ,Community Services,MH AOWA N&E Locality,Adult Residential Placements - Spot Purchase,Third Party Payments,REVENUE
Wiltshire,http://opendatacommunities.org/id/unitary-authority/wiltshire,08/12/2020,1902743685,1948.32,Assured Healthcare Solutions Ltd ,149399,CV23,Community Services,MH AOWA N&E Locality,Adult Care Nursing Placements - Spot,Third Party Payments,REVENUE
Wiltshire,http://opendatacommunities.org/id/unitary-authority/wiltshire,23/12/2020,1902756384,1771.11,Aston Care Homes ,150199,SN12,Resources,Covid19 - Hospital D,Grants Expenditure,Supplies and Services,REVENUE
Wiltshire,http://opendatacommunities.org/id/unitary-authority/wiltshire,16/12/2020,1902749741,9343.1,Atelier Nursery Ltd ,145940,SN15,Children & Education,Free Enttlmnt 3 & 4y,Childcare Free Entitlement Early Years,Supplies and Services,REVENUE
Wiltshire,http://opendatacommunities.org/id/unitary-authority/wiltshire,16/12/2020,1902749742,1304.1,Atelier Nursery Ltd ,145940,SN15,Children & Education,Free Entitlement 2 Y,Childcare Free Entitlement Early Years,Supplies and Services,REVENUE
Wiltshire,http://opendatacommunities.org/id/unitary-authority/wiltshire,11/12/2020,1902748142,300.02,Atkins Ltd ,110197,KT18,Wiltshire Council,Wiltshire Council,Highways Contracts,Third Party Payments,CAPITAL
Wiltshire,http://opendatacommunities.org/id/unitary-authority/wiltshire,11/12/2020,1902748142,365.59,Atkins Ltd ,110197,KT18,Wiltshire Council,Wiltshire Council,Highways Contracts,Third Party Payments,CAPITAL
Wiltshire,http://opendatacommunities.org/id/unitary-authority/wiltshire,11/12/2020,1902748142,939.02,Atkins Ltd ,110197,KT18,Wiltshire Council,Wiltshire Council,Highways Contracts,Third Party Payments,CAPITAL
Wiltshire,http://opendatacommunities.org/id/unitary-authority/wiltshire,11/12/2020,1902748142,1047.94,Atkins Ltd ,110197,KT18,Neighbourhood & Planning,Bridge Routine Mtc,Highways Contracts,Third Party Payments,REVENUE
Wiltshire,http://opendatacommunities.org/id/unitary-authority/wiltshire,11/12/2020,1902748142,1251.43,Atkins Ltd ,110197,KT18,Wiltshire Council,Wiltshire Council,Highways Contracts,Third Party Payments,CAPITAL
Wiltshire,http://opendatacommunities.org/id/unitary-authority/wiltshire,11/12/2020,1902748142,1277.59,Atkins Ltd ,110197,KT18,Wiltshire Council,Wiltshire Council,Highways Contracts,Third Party Payments,CAPITAL
Wiltshire,http://opendatacommunities.org/id/unitary-authority/wiltshire,11/12/2020,1902748142,1432.21,Atkins Ltd ,110197,KT18,Wiltshire Council,Wiltshire Council,Highways Contracts,Third Party Payments,CAPITAL
Wiltshire,http://opendatacommunities.org/id/unitary-authority/wiltshire,11/12/2020,1902748142,1728.36,Atkins Ltd ,110197,KT18,Wiltshire Council,Wiltshire Council,Highways Contracts,Third Party Payments,CAPITAL
Wiltshire,http://opendatacommunities.org/id/unitary-authority/wiltshire,11/12/2020,1902748142,3615.42,Atkins Ltd ,110197,KT18,Wiltshire Council,Wiltshire Council,Highways Contracts,Third Party Payments,CAPITAL
Wiltshire,http://opendatacommunities.org/id/unitary-authority/wiltshire,11/12/2020,1902748142,5805.83,Atkins Ltd ,110197,KT18,Neighbourhood & Planning,Highw Hedges & Trees,Highways Contracts,Third Party Payments,REVENUE
Wiltshire,http://opendatacommunities.org/id/unitary-authority/wiltshire,11/12/2020,1902748142,6950.55,Atkins Ltd ,110197,KT18,Wiltshire Council,Wiltshire Council,Highways Contracts,Third Party Payments,CAPITAL
Wiltshire,http://opendatacommunities.org/id/unitary-authority/wiltshire,11/12/2020,1902748142,7090.63,Atkins Ltd ,110197,KT18,Wiltshire Council,Wiltshire Council,Highways Contracts,Third Party Payments,CAPITAL
Wiltshire,http://opendatacommunities.org/id/unitary-authority/wiltshire,11/12/2020,1902748142,7384.76,Atkins Ltd ,110197,KT18,Wiltshire Council,Wiltshire Council,Highways Contracts,Third Party Payments,CAPITAL
Wiltshire,http://opendatacommunities.org/id/unitary-authority/wiltshire,11/12/2020,1902748142,8066.51,Atkins Ltd ,110197,KT18,Wiltshire Council,Wiltshire Council,Highways Contracts,Third Party Payments,CAPITAL
Wiltshire,http://opendatacommunities.org/id/unitary-authority/wiltshire,11/12/2020,1902748142,14275.13,Atkins Ltd ,110197,KT18,Neighbourhood & Planning,Traffic Signal Mtc,Highways Contracts,Third Party Payments,REVENUE
Wiltshire,http://opendatacommunities.org/id/unitary-authority/wiltshire,11/12/2020,1902748142,20063.67,Atkins Ltd ,110197,KT18,Wiltshire Council,Wiltshire Council,Highways Contracts,Third Party Payments,CAPITAL
Wiltshire,http://opendatacommunities.org/id/unitary-authority/wiltshire,11/12/2020,1902748142,21170.04,Atkins Ltd ,110197,KT18,Neighbourhood & Planning,Street Lighting,Highways Contracts,Third Party Payments,REVENUE
Wiltshire,http://opendatacommunities.org/id/unitary-authority/wiltshire,11/12/2020,1902748142,22855.09,Atkins Ltd ,110197,KT18,Neighbourhood & Planning,Transport Plan & DC,Highways Contracts,Third Party Payments,REVENUE
Wiltshire,http://opendatacommunities.org/id/unitary-authority/wiltshire,11/12/2020,1902748142,22971.41,Atkins Ltd ,110197,KT18,Wiltshire Council,Wiltshire Council,Highways Contracts,Third Party Payments,CAPITAL
Wiltshire,http://opendatacommunities.org/id/unitary-authority/wiltshire,11/12/2020,1902748142,23077.53,Atkins Ltd ,110197,KT18,Wiltshire Council,Wiltshire Council,Highways Contracts,Third Party Payments,CAPITAL
Wiltshire,http://opendatacommunities.org/id/unitary-authority/wiltshire,11/12/2020,1902748142,36000,Atkins Ltd ,110197,KT18,Wiltshire Council,Wiltshire Council,Highways Contracts,Third Party Payments,CAPITAL
Wiltshire,http://opendatacommunities.org/id/unitary-authority/wiltshire,11/12/2020,1902748142,89403.49,Atkins Ltd ,110197,KT18,Wiltshire Council,Wiltshire Council,Highways Contracts,Third Party Payments,CAPITAL
Wiltshire,http://opendatacommunities.org/id/unitary-authority/wiltshire,11/12/2020,1902748142,141474.71,Atkins Ltd ,110197,KT18,Wiltshire Council,Wiltshire Council,Highways Contracts,Third Party Payments,CAPITAL
Wiltshire,http://opendatacommunities.org/id/unitary-authority/wiltshire,11/12/2020,1902748142,142320.65,Atkins Ltd ,110197,KT18,Wiltshire Council,Wiltshire Council,Highways Contracts,Third Party Payments,CAPITAL
Wiltshire,http://opendatacommunities.org/id/unitary-authority/wiltshire,10/12/2020,5107423353,400,Atworth Arboriculture Ltd ,139027,SN12,Neighbourhood & Planning,Rights of Way,Grounds Maintenance,Premises Related,REVENUE
Wiltshire,http://opendatacommunities.org/id/unitary-authority/wiltshire,01/12/2020,1902739325,324.8,Audley Care White Horse ,121958,SN8 ,Community Services,North Care Packages,Adult Domiciliary Care,Third Party Payments,REVENUE
Wiltshire,http://opendatacommunities.org/id/unitary-authority/wiltshire,03/12/2020,1902740475,937.86,Audley Care White Horse ,121958,SN8 ,Community Services,West Care Packages,Adult Domiciliary Care,Third Party Payments,REVENUE
Wiltshire,http://opendatacommunities.org/id/unitary-authority/wiltshire,08/12/2020,1902743332,6007.4,Autism Specialised care Homes ,110205,BS10,Community Services,CTPLD Placements,Adult Residential Placements - Spot Purchase,Third Party Payments,REVENUE
Wiltshire,http://opendatacommunities.org/id/unitary-authority/wiltshire,08/12/2020,1902743712,7332.32,Autism West Midlands ,110206,WR9 ,Community Services,CTPLD Placements,Adult Residential Placements - Spot Purchase,Third Party Payments,REVENUE
Wiltshire,http://opendatacommunities.org/id/unitary-authority/wiltshire,11/12/2020,5107422673,321.21,Automotive Leasing Ltd ,113729,SL1 ,Neighbourhood & Planning,Fleet,Vehicle Hire,Transport Related,REVENUE
Wiltshire,http://opendatacommunities.org/id/unitary-authority/wiltshire,22/12/2020,5107424063,321.21,Automotive Leasing Ltd ,113729,SL1 ,Neighbourhood & Planning,Fleet,Vehicle Hire,Transport Related,REVENUE
Wiltshire,http://opendatacommunities.org/id/unitary-authority/wiltshire,29/12/2020,5107424313,329.6,Autonomy Care Limited ,126128,SN12,Children & Education,CDT DP & Care Packag,Other Social & Welfare Costs,Third Party Payments,REVENUE
Wiltshire,http://opendatacommunities.org/id/unitary-authority/wiltshire,08/12/2020,1902740825,10708,Autonomy Life Ltd ,110896,SN12,Community Services,CTPLD Placements,Adult Residential Placements - Spot Purchase,Third Party Payments,REVENUE
Wiltshire,http://opendatacommunities.org/id/unitary-authority/wiltshire,08/12/2020,1902740826,5777.64,Autonomy Life Ltd ,110896,SN12,Community Services,West Care Packages,Adult Residential Placements - Spot Purchase,Third Party Payments,REVENUE
Wiltshire,http://opendatacommunities.org/id/unitary-authority/wiltshire,08/12/2020,1902740827,6791.76,Autonomy Life Ltd ,110896,SN12,Community Services,CTPLD Placements,Adult Residential Placements - Spot Purchase,Third Party Payments,REVENUE
Wiltshire,http://opendatacommunities.org/id/unitary-authority/wiltshire,08/12/2020,1902740828,7036.92,Autonomy Life Ltd ,110896,SN12,Community Services,North Care Packages,Adult Residential Placements - Spot Purchase,Third Party Payments,REVENUE
Wiltshire,http://opendatacommunities.org/id/unitary-authority/wiltshire,08/12/2020,1902740829,7537.56,Autonomy Life Ltd ,110896,SN12,Community Services,CTPLD Placements,Adult Residential Placements - Spot Purchase,Third Party Payments,REVENUE
Wiltshire,http://opendatacommunities.org/id/unitary-authority/wiltshire,08/12/2020,1902740830,9256,Autonomy Life Ltd ,110896,SN12,Community Services,CTPLD Placements,Adult Residential Placements - Spot Purchase,Third Party Payments,REVENUE
Wiltshire,http://opendatacommunities.org/id/unitary-authority/wiltshire,08/12/2020,1902740831,16799.36,Autonomy Life Ltd ,110896,SN12,Community Services,CTPLD Placements,Adult Residential Placements - Spot Purchase,Third Party Payments,REVENUE
Wiltshire,http://opendatacommunities.org/id/unitary-authority/wiltshire,04/12/2020,5107422954,17223.6,Autonomy Plus Limited ,146109,SN12,Children & Education,0-25 extnl disabty p,Childrens Agency Placement,Third Party Payments,REVENUE
Wiltshire,http://opendatacommunities.org/id/unitary-authority/wiltshire,04/12/2020,5107422955,16460.07,Autonomy Plus Limited ,146109,SN12,Children & Education,0-25 extnl disabty p,Childrens Agency Placement,Third Party Payments,REVENUE
Wiltshire,http://opendatacommunities.org/id/unitary-authority/wiltshire,04/12/2020,5107422956,16460.07,Autonomy Plus Limited ,146109,SN12,Children & Education,0-25 extnl disabty p,Childrens Agency Placement,Third Party Payments,REVENUE
Wiltshire,http://opendatacommunities.org/id/unitary-authority/wiltshire,04/12/2020,5107422957,16460.07,Autonomy Plus Limited ,146109,SN12,Children & Education,0-25 extnl disabty p,Childrens Agency Placement,Third Party Payments,REVENUE
Wiltshire,http://opendatacommunities.org/id/unitary-authority/wiltshire,14/12/2020,5107423488,4914,Autonomy Plus Limited ,146109,SN12,Children & Education,0-25 extnl disabty p,Childrens Agency Placement,Third Party Payments,REVENUE
Wiltshire,http://opendatacommunities.org/id/unitary-authority/wiltshire,14/12/2020,5107423489,5617.5,Autonomy Plus Limited ,146109,SN12,Children & Education,0-25 extnl disabty p,Childrens Agency Placement,Third Party Payments,REVENUE
Wiltshire,http://opendatacommunities.org/id/unitary-authority/wiltshire,14/12/2020,5107423510,7460.25,Autonomy Plus Limited ,146109,SN12,Children & Education,0-25 extnl disabty p,Childrens Agency Placement,Third Party Payments,REVENUE
Wiltshire,http://opendatacommunities.org/id/unitary-authority/wiltshire,14/12/2020,5107423511,15015,Autonomy Plus Limited ,146109,SN12,Children & Education,0-25 extnl disabty p,Childrens Agency Placement,Third Party Payments,REVENUE
Wiltshire,http://opendatacommunities.org/id/unitary-authority/wiltshire,14/12/2020,5107423512,15015,Autonomy Plus Limited ,146109,SN12,Children & Education,0-25 extnl disabty p,Childrens Agency Placement,Third Party Payments,REVENUE
Wiltshire,http://opendatacommunities.org/id/unitary-authority/wiltshire,08/12/2020,1902742502,2400,Avebury House ,150432,SN10,Community Services,West Care Packages,Adult Residential Placements - Spot Purchase,Third Party Payments,REVENUE
Wiltshire,http://opendatacommunities.org/id/unitary-authority/wiltshire,08/12/2020,1902742503,771.43,Avebury House ,150432,SN10,Community Services,West Care Packages,Adult Residential Placements - Spot Purchase,Third Party Payments,REVENUE
Wiltshire,http://opendatacommunities.org/id/unitary-authority/wiltshire,23/12/2020,1902756385,6376.02,Avebury House ,150432,SN10,Resources,Covid19 - Hospital D,Grants Expenditure,Supplies and Services,REVENUE
Wiltshire,http://opendatacommunities.org/id/unitary-authority/wiltshire,23/12/2020,1902762270,1070,Avenue Surgery ,110214,BA12,Neighbourhood & Planning,Smoking-Mgt & Commss,Public Health Commissioning,Supplies and Services,REVENUE
Wiltshire,http://opendatacommunities.org/id/unitary-authority/wiltshire,08/12/2020,1902742855,1027.4,Avery Healthcare Cepen Lodge ,126733,DL1 ,Community Services,North Care Packages,Adult Residential Placements - Spot Purchase,Third Party Payments,REVENUE
Wiltshire,http://opendatacommunities.org/id/unitary-authority/wiltshire,08/12/2020,1902742856,3196.36,Avery Healthcare Cepen Lodge ,126733,DL1 ,Community Services,North Care Packages,Adult Residential Placements - Spot Purchase,Third Party Payments,REVENUE
Wiltshire,http://opendatacommunities.org/id/unitary-authority/wiltshire,08/12/2020,1902742857,3196.36,Avery Healthcare Cepen Lodge ,126733,DL1 ,Community Services,North Care Packages,Adult Residential Placements - Spot Purchase,Third Party Payments,REVENUE
Wiltshire,http://opendatacommunities.org/id/unitary-authority/wiltshire,08/12/2020,1902742858,3196.36,Avery Healthcare Cepen Lodge ,126733,DL1 ,Community Services,North Care Packages,Adult Residential Placements - Spot Purchase,Third Party Payments,REVENUE
Wiltshire,http://opendatacommunities.org/id/unitary-authority/wiltshire,08/12/2020,1902742859,2822.88,Avery Healthcare Cepen Lodge ,126733,DL1 ,Community Services,North Care Packages,Adult Residential Placements - Spot Purchase,Third Party Payments,REVENUE
Wiltshire,http://opendatacommunities.org/id/unitary-authority/wiltshire,08/12/2020,1902742860,2822.88,Avery Healthcare Cepen Lodge ,126733,DL1 ,Community Services,North Care Packages,Adult Residential Placements - Spot Purchase,Third Party Payments,REVENUE
Wiltshire,http://opendatacommunities.org/id/unitary-authority/wiltshire,08/12/2020,1902742861,2650.28,Avery Healthcare Cepen Lodge ,126733,DL1 ,Community Services,North Care Packages,Adult Residential Placements - Spot Purchase,Third Party Payments,REVENUE
Wiltshire,http://opendatacommunities.org/id/unitary-authority/wiltshire,08/12/2020,1902742862,2650.28,Avery Healthcare Cepen Lodge ,126733,DL1 ,Community Services,North Care Packages,Adult Residential Placements - Spot Purchase,Third Party Payments,REVENUE
Wiltshire,http://opendatacommunities.org/id/unitary-authority/wiltshire,08/12/2020,1902742863,2650.28,Avery Healthcare Cepen Lodge ,126733,DL1 ,Community Services,MH OP N&E Locality,Adult Residential Placements - Spot Purchase,Third Party Payments,REVENUE
Wiltshire,http://opendatacommunities.org/id/unitary-authority/wiltshire,08/12/2020,1902742864,2650.28,Avery Healthcare Cepen Lodge ,126733,DL1 ,Community Services,MH OP N&E Locality,Adult Residential Placements - Spot Purchase,Third Party Payments,REVENUE
Wiltshire,http://opendatacommunities.org/id/unitary-authority/wiltshire,08/12/2020,1902742865,2573.36,Avery Healthcare Cepen Lodge ,126733,DL1 ,Community Services,North Care Packages,Adult Residential Placements - Spot Purchase,Third Party Payments,REVENUE
Wiltshire,http://opendatacommunities.org/id/unitary-authority/wiltshire,08/12/2020,1902742866,2711.6,Avery Healthcare Cepen Lodge ,126733,DL1 ,Community Services,North Care Packages,Adult Residential Placements - Spot Purchase,Third Party Payments,REVENUE
Wiltshire,http://opendatacommunities.org/id/unitary-authority/wiltshire,08/12/2020,1902742867,2741.48,Avery Healthcare Cepen Lodge ,126733,DL1 ,Community Services,North Care Packages,Adult Residential Placements - Spot Purchase,Third Party Payments,REVENUE
Wiltshire,http://opendatacommunities.org/id/unitary-authority/wiltshire,23/12/2020,1902756350,22316.08,Avery Healthcare Cepen Lodge ,126733,DL1 ,Resources,Covid19 - Hospital D,Grants Expenditure,Supplies and Services,REVENUE
Wiltshire,http://opendatacommunities.org/id/unitary-authority/wiltshire,08/12/2020,1902742361,1214.29,Avery Healthcare Ltd- Langford Sali ,112676,NN4 ,Community Services,South Care Packages,Adult Care Nursing Placements - Spot,Third Party Payments,REVENUE
Wiltshire,http://opendatacommunities.org/id/unitary-authority/wiltshire,08/12/2020,1902742362,1457.14,Avery Healthcare Ltd- Langford Sali ,112676,NN4 ,Community Services,South Care Packages,Adult Care Nursing Placements - Spot,Third Party Payments,REVENUE
Wiltshire,http://opendatacommunities.org/id/unitary-authority/wiltshire,08/12/2020,1902742363,3383.12,Avery Healthcare Ltd- Langford Sali ,112676,NN4 ,Community Services,MH OP South Locality,Adult Care Nursing Placements - Spot,Third Party Payments,REVENUE
Wiltshire,http://opendatacommunities.org/id/unitary-authority/wiltshire,08/12/2020,1902742364,4400,Avery Healthcare Ltd- Langford Sali ,112676,NN4 ,Community Services,Adult Care Gross Loa,Adult Care Nursing Placements - Spot,Third Party Payments,REVENUE
Wiltshire,http://opendatacommunities.org/id/unitary-authority/wiltshire,08/12/2020,1902742365,2866.32,Avery Healthcare Ltd- Langford Sali ,112676,NN4 ,Community Services,South Care Packages,Adult Care Nursing Placements - Spot,Third Party Payments,REVENUE
Wiltshire,http://opendatacommunities.org/id/unitary-authority/wiltshire,08/12/2020,1902742366,2866.32,Avery Healthcare Ltd- Langford Sali ,112676,NN4 ,Community Services,South Care Packages,Adult Care Nursing Placements - Spot,Third Party Payments,REVENUE
Wiltshire,http://opendatacommunities.org/id/unitary-authority/wiltshire,08/12/2020,1902742367,2866.32,Avery Healthcare Ltd- Langford Sali ,112676,NN4 ,Community Services,South Care Packages,Adult Care Nursing Placements - Spot,Third Party Payments,REVENUE
Wiltshire,http://opendatacommunities.org/id/unitary-authority/wiltshire,08/12/2020,1902742368,3196.36,Avery Healthcare Ltd- Langford Sali ,112676,NN4 ,Community Services,South Care Packages,Adult Residential Placements - Spot Purchase,Third Party Payments,REVENUE
Wiltshire,http://opendatacommunities.org/id/unitary-authority/wiltshire,08/12/2020,1902742369,3196.36,Avery Healthcare Ltd- Langford Sali ,112676,NN4 ,Community Services,South Care Packages,Adult Residential Placements - Spot Purchase,Third Party Payments,REVENUE
Wiltshire,http://opendatacommunities.org/id/unitary-authority/wiltshire,08/12/2020,1902742370,3196.36,Avery Healthcare Ltd- Langford Sali ,112676,NN4 ,Community Services,West Care Packages,Adult Residential Placements - Spot Purchase,Third Party Payments,REVENUE
Wiltshire,http://opendatacommunities.org/id/unitary-authority/wiltshire,08/12/2020,1902744260,3208.56,Avery Healthcare Ltd- Langford Sali ,112676,NN4 ,Community Services,Home Loans,Adult Care Nursing Placements - Spot,Third Party Payments,REVENUE
Wiltshire,http://opendatacommunities.org/id/unitary-authority/wiltshire,08/12/2020,1902744261,16971.43,Avery Healthcare Ltd- Langford Sali ,112676,NN4 ,Community Services,Home Loans,Adult Residential Placements - Spot Purchase,Third Party Payments,REVENUE
Wiltshire,http://opendatacommunities.org/id/unitary-authority/wiltshire,08/12/2020,1902744262,4435.71,Avery Healthcare Ltd- Langford Sali ,112676,NN4 ,Community Services,Home Loans,Adult Residential Placements - Spot Purchase,Third Party Payments,REVENUE
Wiltshire,http://opendatacommunities.org/id/unitary-authority/wiltshire,08/12/2020,1902744263,5400,Avery Healthcare Ltd- Langford Sali ,112676,NN4 ,Community Services,Home Loans,Adult Residential Placements - Spot Purchase,Third Party Payments,REVENUE
Wiltshire,http://opendatacommunities.org/id/unitary-authority/wiltshire,08/12/2020,1902744264,5400,Avery Healthcare Ltd- Langford Sali ,112676,NN4 ,Community Services,Home Loans,Adult Residential Placements - Spot Purchase,Third Party Payments,REVENUE
Wiltshire,http://opendatacommunities.org/id/unitary-authority/wiltshire,08/12/2020,1902744265,5400,Avery Healthcare Ltd- Langford Sali ,112676,NN4 ,Community Services,Home Loans,Adult Residential Placements - Spot Purchase,Third Party Payments,REVENUE
Wiltshire,http://opendatacommunities.org/id/unitary-authority/wiltshire,08/12/2020,1902744266,5400,Avery Healthcare Ltd- Langford Sali ,112676,NN4 ,Community Services,Home Loans,Adult Residential Placements - Spot Purchase,Third Party Payments,REVENUE
Wiltshire,http://opendatacommunities.org/id/unitary-authority/wiltshire,08/12/2020,1902744267,5400,Avery Healthcare Ltd- Langford Sali ,112676,NN4 ,Community Services,Home Loans,Adult Residential Placements - Spot Purchase,Third Party Payments,REVENUE
Wiltshire,http://opendatacommunities.org/id/unitary-authority/wiltshire,08/12/2020,1902744268,5400,Avery Healthcare Ltd- Langford Sali ,112676,NN4 ,Community Services,Home Loans,Adult Residential Placements - Spot Purchase,Third Party Payments,REVENUE
Wiltshire,http://opendatacommunities.org/id/unitary-authority/wiltshire,08/12/2020,1902744269,5400,Avery Healthcare Ltd- Langford Sali ,112676,NN4 ,Community Services,Home Loans,Adult Residential Placements - Spot Purchase,Third Party Payments,REVENUE
Wiltshire,http://opendatacommunities.org/id/unitary-authority/wiltshire,08/12/2020,1902744270,5400,Avery Healthcare Ltd- Langford Sali ,112676,NN4 ,Community Services,Home Loans,Adult Residential Placements - Spot Purchase,Third Party Payments,REVENUE
Wiltshire,http://opendatacommunities.org/id/unitary-authority/wiltshire,08/12/2020,1902744271,5400,Avery Healthcare Ltd- Langford Sali ,112676,NN4 ,Community Services,Home Loans,Adult Residential Placements - Spot Purchase,Third Party Payments,REVENUE
Wiltshire,http://opendatacommunities.org/id/unitary-authority/wiltshire,08/12/2020,1902744272,5400,Avery Healthcare Ltd- Langford Sali ,112676,NN4 ,Community Services,Home Loans,Adult Residential Placements - Spot Purchase,Third Party Payments,REVENUE
Wiltshire,http://opendatacommunities.org/id/unitary-authority/wiltshire,08/12/2020,1902744273,5400,Avery Healthcare Ltd- Langford Sali ,112676,NN4 ,Community Services,Home Loans,Adult Residential Placements - Spot Purchase,Third Party Payments,REVENUE
Wiltshire,http://opendatacommunities.org/id/unitary-authority/wiltshire,08/12/2020,1902744274,5400,Avery Healthcare Ltd- Langford Sali ,112676,NN4 ,Community Services,Home Loans,Adult Residential Placements - Spot Purchase,Third Party Payments,REVENUE
Wiltshire,http://opendatacommunities.org/id/unitary-authority/wiltshire,08/12/2020,1902744275,5400,Avery Healthcare Ltd- Langford Sali ,112676,NN4 ,Community Services,Home Loans,Adult Residential Placements - Spot Purchase,Third Party Payments,REVENUE
Wiltshire,http://opendatacommunities.org/id/unitary-authority/wiltshire,08/12/2020,1902744276,5400,Avery Healthcare Ltd- Langford Sali ,112676,NN4 ,Community Services,Home Loans,Adult Residential Placements - Spot Purchase,Third Party Payments,REVENUE
Wiltshire,http://opendatacommunities.org/id/unitary-authority/wiltshire,08/12/2020,1902744277,964.29,Avery Healthcare Ltd- Langford Sali ,112676,NN4 ,Community Services,Home Loans,Adult Residential Placements - Spot Purchase,Third Party Payments,REVENUE
Wiltshire,http://opendatacommunities.org/id/unitary-authority/wiltshire,23/12/2020,1902756314,21961.85,Avery Healthcare Ltd- Langford Sali ,112676,NN4 ,Resources,Covid19 - Hospital D,Grants Expenditure,Supplies and Services,REVENUE
Wiltshire,http://opendatacommunities.org/id/unitary-authority/wiltshire,03/12/2020,1902741681,1868.5,Avid Taxis and Private Hire ,146394,SP9 ,Neighbourhood & Planning,SEN Secondary Tspt,Transport Contracts,Third Party Payments,REVENUE
Wiltshire,http://opendatacommunities.org/id/unitary-authority/wiltshire,23/12/2020,1902756383,10626.7,Avon Care Homes - Bybrook House ,150198,SN13,Resources,Covid19 - Hospital D,Grants Expenditure,Supplies and Services,REVENUE
Wiltshire,http://opendatacommunities.org/id/unitary-authority/wiltshire,08/12/2020,1902742355,1357.14,Avon Care Homes Ltd - Sutton Veny H ,112612,BA5 ,Resources,Covid19 - Hospital D,Adult Care Nursing Placements - Spot,Third Party Payments,REVENUE
Wiltshire,http://opendatacommunities.org/id/unitary-authority/wiltshire,08/12/2020,1902742356,3800,Avon Care Homes Ltd - Sutton Veny H ,112612,BA5 ,Resources,Covid19 - Hospital D,Adult Care Nursing Placements - Spot,Third Party Payments,REVENUE
Wiltshire,http://opendatacommunities.org/id/unitary-authority/wiltshire,08/12/2020,1902742357,542.86,Avon Care Homes Ltd - Sutton Veny H ,112612,BA5 ,Resources,Covid19 - Hospital D,Adult Care Nursing Placements - Spot,Third Party Payments,REVENUE
Wiltshire,http://opendatacommunities.org/id/unitary-authority/wiltshire,08/12/2020,1902742358,2708.88,Avon Care Homes Ltd - Sutton Veny H ,112612,BA5 ,Community Services,West Care Packages,Adult Care Nursing Placements - Spot,Third Party Payments,REVENUE
Wiltshire,http://opendatacommunities.org/id/unitary-authority/wiltshire,08/12/2020,1902742359,2695.2,Avon Care Homes Ltd - Sutton Veny H ,112612,BA5 ,Community Services,North Care Packages,Adult Residential Placements - Spot Purchase,Third Party Payments,REVENUE
Wiltshire,http://opendatacommunities.org/id/unitary-authority/wiltshire,08/12/2020,1902742360,3090,Avon Care Homes Ltd - Sutton Veny H ,112612,BA5 ,Community Services,South Care Packages,Adult Residential Placements - Spot Purchase,Third Party Payments,REVENUE
Wiltshire,http://opendatacommunities.org/id/unitary-authority/wiltshire,23/12/2020,1902756313,9918.26,Avon Care Homes Ltd - Sutton Veny H ,112612,BA5 ,Resources,Covid19 - Hospital D,Grants Expenditure,Supplies and Services,REVENUE
Wiltshire,http://opendatacommunities.org/id/unitary-authority/wiltshire,23/12/2020,1902756246,9918.26,Avon Court Care Home ,110218,LS16,Resources,Covid19 - Hospital D,Grants Expenditure,Supplies and Services,REVENUE
Wiltshire,http://opendatacommunities.org/id/unitary-authority/wiltshire,23/12/2020,1902762273,265,Avon Valley Practice ,131697,SN9 ,Neighbourhood & Planning,Smoking-Mgt & Commss,Public Health Commissioning,Supplies and Services,REVENUE
Wiltshire,http://opendatacommunities.org/id/unitary-authority/wiltshire,08/12/2020,1902744278,5292,Avoncare Homes Ltd - Wells Nursing ,114326,BA5 ,Community Services,Home Loans,Adult Residential Placements - Spot Purchase,Third Party Payments,REVENUE
Wiltshire,http://opendatacommunities.org/id/unitary-authority/wiltshire,08/12/2020,1902742284,3088.36,Avonpark Village (Care Homes) Limit ,110227,BA2 ,Community Services,West Care Packages,Adult Care Nursing Placements - Spot,Third Party Payments,REVENUE
Wiltshire,http://opendatacommunities.org/id/unitary-authority/wiltshire,08/12/2020,1902742285,4167.36,Avonpark Village (Care Homes) Limit ,110227,BA2 ,Community Services,MH OP South Locality,Adult Care Nursing Placements - Spot,Third Party Payments,REVENUE
Wiltshire,http://opendatacommunities.org/id/unitary-authority/wiltshire,08/12/2020,1902742286,2799.72,Avonpark Village (Care Homes) Limit ,110227,BA2 ,Community Services,MH OP West Locality,Adult Residential Placements - Spot Purchase,Third Party Payments,REVENUE
Wiltshire,http://opendatacommunities.org/id/unitary-authority/wiltshire,08/12/2020,1902742287,4640,Avonpark Village (Care Homes) Limit ,110227,BA2 ,Community Services,MH OP West Locality,Adult Residential Placements - Spot Purchase,Third Party Payments,REVENUE
Wiltshire,http://opendatacommunities.org/id/unitary-authority/wiltshire,08/12/2020,1902742157,896.8,Axis Recruitment Ltd ,150179,NG1 ,Community Services,MH OP N&E Locality,Adult Domiciliary Care,Third Party Payments,REVENUE
Wiltshire,http://opendatacommunities.org/id/unitary-authority/wiltshire,08/12/2020,1902742158,896.8,Axis Recruitment Ltd ,150179,NG1 ,Community Services,MH OP N&E Locality,Adult Domiciliary Care,Third Party Payments,REVENUE
Wiltshire,http://opendatacommunities.org/id/unitary-authority/wiltshire,23/12/2020,1902756593,717.11,Axis Recruitment Ltd ,150179,NG1 ,Resources,Covid19 - Hospital D,Grants Expenditure,Supplies and Services,REVENUE
Wiltshire,http://opendatacommunities.org/id/unitary-authority/wiltshire,02/12/2020,1902505484,250,Axis Signs Limited ,140699,SN3 ,Resources,Marketing & Events,Marketing and Promotions,Supplies and Services,REVENUE
Wiltshire,http://opendatacommunities.org/id/unitary-authority/wiltshire,02/12/2020,1902723949,435,Axis Signs Limited ,140699,SN3 ,Neighbourhood & Planning,Wilts Incubation Env,Marketing and Promotions,Supplies and Services,REVENUE
Wiltshire,http://opendatacommunities.org/id/unitary-authority/wiltshire,02/12/2020,5107402321,280,Axis Signs Limited ,140699,SN3 ,Neighbourhood & Planning,City Hall,Publications / periodicals,Supplies and Services,REVENUE
Wiltshire,http://opendatacommunities.org/id/unitary-authority/wiltshire,02/12/2020,5107403012,350,Axis Signs Limited ,140699,SN3 ,Wiltshire Council,Wiltshire Council,Professional Fees,Supplies and Services,CAPITAL
Wiltshire,http://opendatacommunities.org/id/unitary-authority/wiltshire,11/12/2020,1902748525,3135,Ayers Forestry Limited ,145551,BA15,Neighbourhood & Planning,Highw Hedges & Trees,Consultants Fees,Supplies and Services,REVENUE
Wiltshire,http://opendatacommunities.org/id/unitary-authority/wiltshire,10/12/2020,1902747816,375,B P Estates (Contractors) Limited ,132851,SY23,Resources,Investment Estate,Premises Rental,Premises Related,REVENUE
Wiltshire,http://opendatacommunities.org/id/unitary-authority/wiltshire,10/12/2020,1902747816,375,B P Estates (Contractors) Limited ,132851,SY23,Resources,SAFM - Other Assets,Premises Rental,Premises Related,REVENUE
Wiltshire,http://opendatacommunities.org/id/unitary-authority/wiltshire,10/12/2020,1902747815,2020.6,B P Estates Ltd ,113821,BA14,Resources,Investment Estate,Premises Rental,Premises Related,REVENUE
Wiltshire,http://opendatacommunities.org/id/unitary-authority/wiltshire,02/12/2020,5107422822,386.24,Bailey Employment Services Ltd t/a Bailey Care Services,100204,SN12,Children & Education,CanonsHouse,Consultants Fees,Supplies and Services,REVENUE
Wiltshire,http://opendatacommunities.org/id/unitary-authority/wiltshire,02/12/2020,5107422823,279.46,Bailey Employment Services Ltd t/a Bailey Care Services,100204,SN12,Children & Education,CanonsHouse,Consultants Fees,Supplies and Services,REVENUE
Wiltshire,http://opendatacommunities.org/id/unitary-authority/wiltshire,03/12/2020,5107422895,1187.42,Bailey Employment Services Ltd t/a Bailey Care Services,100204,SN12,Children & Education,CanonsHouse,Consultants Fees,Supplies and Services,REVENUE
Wiltshire,http://opendatacommunities.org/id/unitary-authority/wiltshire,23/12/2020,5107422680,263.09,Banner Group Ltd ,145979,S9 1,Children & Education,Learning Resources,Stationery,Supplies and Services,REVENUE
Wiltshire,http://opendatacommunities.org/id/unitary-authority/wiltshire,08/12/2020,1902743763,2658.9,Barchester Healthcare - The White L ,121961,SN5 ,Resources,Covid19 - Hospital D,Adult Care Nursing Placements - Spot,Third Party Payments,REVENUE
Wiltshire,http://opendatacommunities.org/id/unitary-authority/wiltshire,08/12/2020,1902743764,886.3,Barchester Healthcare - The White L ,121961,SN5 ,Resources,Covid19 - Hospital D,Adult Care Nursing Placements - Spot,Third Party Payments,REVENUE
Wiltshire,http://opendatacommunities.org/id/unitary-authority/wiltshire,08/12/2020,1902743765,3126.64,Barchester Healthcare - The White L ,121961,SN5 ,Community Services,North Care Packages,Adult Care Nursing Placements - Spot,Third Party Payments,REVENUE
Wiltshire,http://opendatacommunities.org/id/unitary-authority/wiltshire,08/12/2020,1902743766,3126.64,Barchester Healthcare - The White L ,121961,SN5 ,Community Services,North Care Packages,Adult Care Nursing Placements - Spot,Third Party Payments,REVENUE
Wiltshire,http://opendatacommunities.org/id/unitary-authority/wiltshire,08/12/2020,1902743767,2809.52,Barchester Healthcare - The White L ,121961,SN5 ,Community Services,North Care Packages,Adult Care Nursing Placements - Spot,Third Party Payments,REVENUE
Wiltshire,http://opendatacommunities.org/id/unitary-authority/wiltshire,08/12/2020,1902743768,3200,Barchester Healthcare - The White L ,121961,SN5 ,Community Services,MH OP N&E Locality,Adult Residential Placements - Spot Purchase,Third Party Payments,REVENUE
Wiltshire,http://opendatacommunities.org/id/unitary-authority/wiltshire,08/12/2020,1902743769,3200,Barchester Healthcare - The White L ,121961,SN5 ,Community Services,North Care Packages,Adult Residential Placements - Spot Purchase,Third Party Payments,REVENUE
Wiltshire,http://opendatacommunities.org/id/unitary-authority/wiltshire,08/12/2020,1902743770,1742.88,Barchester Healthcare - The White L ,121961,SN5 ,Community Services,Adult Care Gross Loa,Adult Care Nursing Placements - Spot,Third Party Payments,REVENUE
Wiltshire,http://opendatacommunities.org/id/unitary-authority/wiltshire,08/12/2020,1902743771,3236.78,Barchester Healthcare - The White L ,121961,SN5 ,Community Services,Adult Care Gross Loa,Adult Care Nursing Placements - Spot,Third Party Payments,REVENUE
Wiltshire,http://opendatacommunities.org/id/unitary-authority/wiltshire,08/12/2020,1902743772,622.46,Barchester Healthcare - The White L ,121961,SN5 ,Community Services,Adult Care Gross Loa,Adult Care Nursing Placements - Spot,Third Party Payments,REVENUE
Wiltshire,http://opendatacommunities.org/id/unitary-authority/wiltshire,08/12/2020,1902744285,3424,Barchester Healthcare - The White L ,121961,SN5 ,Community Services,Home Loans,Adult Residential Placements - Spot Purchase,Third Party Payments,REVENUE
Wiltshire,http://opendatacommunities.org/id/unitary-authority/wiltshire,23/12/2020,1902756345,28337.87,Barchester Healthcare - The White L ,121961,SN5 ,Resources,Covid19 - Hospital D,Grants Expenditure,Supplies and Services,REVENUE
Wiltshire,http://opendatacommunities.org/id/unitary-authority/wiltshire,23/12/2020,1902740639,1563.57,Barchester Healthcare Ltd (Henford ,111113,BA12,Resources,Covid19 - Hospital D,Adult Care Nursing Placements - Spot,Third Party Payments,REVENUE
Wiltshire,http://opendatacommunities.org/id/unitary-authority/wiltshire,23/12/2020,1902740640,2416.43,Barchester Healthcare Ltd (Henford ,111113,BA12,Resources,Covid19 - Hospital D,Adult Care Nursing Placements - Spot,Third Party Payments,REVENUE
Wiltshire,http://opendatacommunities.org/id/unitary-authority/wiltshire,23/12/2020,1902740641,3980,Barchester Healthcare Ltd (Henford ,111113,BA12,Resources,Covid19 - Hospital D,Adult Care Nursing Placements - Spot,Third Party Payments,REVENUE
Wiltshire,http://opendatacommunities.org/id/unitary-authority/wiltshire,23/12/2020,1902740642,3980,Barchester Healthcare Ltd (Henford ,111113,BA12,Resources,Covid19 - Hospital D,Adult Care Nursing Placements - Spot,Third Party Payments,REVENUE
Wiltshire,http://opendatacommunities.org/id/unitary-authority/wiltshire,23/12/2020,1902740643,852.86,Barchester Healthcare Ltd (Henford ,111113,BA12,Resources,Covid19 - Hospital D,Adult Care Nursing Placements - Spot,Third Party Payments,REVENUE
Wiltshire,http://opendatacommunities.org/id/unitary-authority/wiltshire,23/12/2020,1902740644,3101.56,Barchester Healthcare Ltd (Henford ,111113,BA12,Community Services,West Care Packages,Adult Care Nursing Placements - Spot,Third Party Payments,REVENUE
Wiltshire,http://opendatacommunities.org/id/unitary-authority/wiltshire,23/12/2020,1902740645,3800,Barchester Healthcare Ltd (Henford ,111113,BA12,Community Services,West Care Packages,Adult Care Nursing Placements - Spot,Third Party Payments,REVENUE
Wiltshire,http://opendatacommunities.org/id/unitary-authority/wiltshire,23/12/2020,1902740646,2809.52,Barchester Healthcare Ltd (Henford ,111113,BA12,Community Services,West Care Packages,Adult Care Nursing Placements - Spot,Third Party Payments,REVENUE
Wiltshire,http://opendatacommunities.org/id/unitary-authority/wiltshire,23/12/2020,1902740647,2534,Barchester Healthcare Ltd (Henford ,111113,BA12,Community Services,West Care Packages,Adult Residential Placements - Spot Purchase,Third Party Payments,REVENUE
Wiltshire,http://opendatacommunities.org/id/unitary-authority/wiltshire,23/12/2020,1902740648,2584,Barchester Healthcare Ltd (Henford ,111113,BA12,Community Services,West Care Packages,Adult Residential Placements - Spot Purchase,Third Party Payments,REVENUE
Wiltshire,http://opendatacommunities.org/id/unitary-authority/wiltshire,23/12/2020,1902740649,2676,Barchester Healthcare Ltd (Henford ,111113,BA12,Community Services,West Care Packages,Adult Residential Placements - Spot Purchase,Third Party Payments,REVENUE
Wiltshire,http://opendatacommunities.org/id/unitary-authority/wiltshire,23/12/2020,1902740650,2832,Barchester Healthcare Ltd (Henford ,111113,BA12,Community Services,West Care Packages,Adult Residential Placements - Spot Purchase,Third Party Payments,REVENUE
Wiltshire,http://opendatacommunities.org/id/unitary-authority/wiltshire,23/12/2020,1902740651,3000,Barchester Healthcare Ltd (Henford ,111113,BA12,Community Services,West Care Packages,Adult Residential Placements - Spot Purchase,Third Party Payments,REVENUE
Wiltshire,http://opendatacommunities.org/id/unitary-authority/wiltshire,23/12/2020,1902740652,3292,Barchester Healthcare Ltd (Henford ,111113,BA12,Community Services,West Care Packages,Adult Residential Placements - Spot Purchase,Third Party Payments,REVENUE
Wiltshire,http://opendatacommunities.org/id/unitary-authority/wiltshire,23/12/2020,1902740653,3980,Barchester Healthcare Ltd (Henford ,111113,BA12,Community Services,West Care Packages,Adult Residential Placements - Spot Purchase,Third Party Payments,REVENUE
Wiltshire,http://opendatacommunities.org/id/unitary-authority/wiltshire,23/12/2020,1902740654,1990,Barchester Healthcare Ltd (Henford ,111113,BA12,Community Services,West Care Packages,Adult Residential Placements - Spot Purchase,Third Party Payments,REVENUE
Wiltshire,http://opendatacommunities.org/id/unitary-authority/wiltshire,23/12/2020,1902756269,20544.95,Barchester Healthcare Ltd (Henford ,111113,BA12,Resources,Covid19 - Hospital D,Grants Expenditure,Supplies and Services,REVENUE
Wiltshire,http://opendatacommunities.org/id/unitary-authority/wiltshire,08/12/2020,1902740762,2213.12,Barchester Healthcare Ltd (Milford ,111597,SP1 ,Community Services,MH OP N&E Locality,Adult Care Nursing Placements - Spot,Third Party Payments,REVENUE
Wiltshire,http://opendatacommunities.org/id/unitary-authority/wiltshire,08/12/2020,1902740763,2444.32,Barchester Healthcare Ltd (Milford ,111597,SP1 ,Community Services,South Care Packages,Adult Care Nursing Placements - Spot,Third Party Payments,REVENUE
Wiltshire,http://opendatacommunities.org/id/unitary-authority/wiltshire,08/12/2020,1902740764,2444.32,Barchester Healthcare Ltd (Milford ,111597,SP1 ,Community Services,South Care Packages,Adult Care Nursing Placements - Spot,Third Party Payments,REVENUE
Wiltshire,http://opendatacommunities.org/id/unitary-authority/wiltshire,08/12/2020,1902740765,2492.88,Barchester Healthcare Ltd (Milford ,111597,SP1 ,Community Services,South Care Packages,Adult Care Nursing Placements - Spot,Third Party Payments,REVENUE
Wiltshire,http://opendatacommunities.org/id/unitary-authority/wiltshire,08/12/2020,1902740766,2492.88,Barchester Healthcare Ltd (Milford ,111597,SP1 ,Community Services,South Care Packages,Adult Care Nursing Placements - Spot,Third Party Payments,REVENUE
Wiltshire,http://opendatacommunities.org/id/unitary-authority/wiltshire,08/12/2020,1902740767,2697.76,Barchester Healthcare Ltd (Milford ,111597,SP1 ,Community Services,South Care Packages,Adult Care Nursing Placements - Spot,Third Party Payments,REVENUE
Wiltshire,http://opendatacommunities.org/id/unitary-authority/wiltshire,08/12/2020,1902740768,2767.36,Barchester Healthcare Ltd (Milford ,111597,SP1 ,Community Services,South Care Packages,Adult Care Nursing Placements - Spot,Third Party Payments,REVENUE
Wiltshire,http://opendatacommunities.org/id/unitary-authority/wiltshire,08/12/2020,1902740769,2783.64,Barchester Healthcare Ltd (Milford ,111597,SP1 ,Community Services,South Care Packages,Adult Care Nursing Placements - Spot,Third Party Payments,REVENUE
Wiltshire,http://opendatacommunities.org/id/unitary-authority/wiltshire,08/12/2020,1902740770,2802.76,Barchester Healthcare Ltd (Milford ,111597,SP1 ,Community Services,South Care Packages,Adult Care Nursing Placements - Spot,Third Party Payments,REVENUE
Wiltshire,http://opendatacommunities.org/id/unitary-authority/wiltshire,08/12/2020,1902740771,3881.76,Barchester Healthcare Ltd (Milford ,111597,SP1 ,Community Services,South Care Packages,Adult Care Nursing Placements - Spot,Third Party Payments,REVENUE
Wiltshire,http://opendatacommunities.org/id/unitary-authority/wiltshire,08/12/2020,1902740772,2809.52,Barchester Healthcare Ltd (Milford ,111597,SP1 ,Community Services,South Care Packages,Adult Care Nursing Placements - Spot,Third Party Payments,REVENUE
Wiltshire,http://opendatacommunities.org/id/unitary-authority/wiltshire,08/12/2020,1902740773,2809.52,Barchester Healthcare Ltd (Milford ,111597,SP1 ,Community Services,South Care Packages,Adult Care Nursing Placements - Spot,Third Party Payments,REVENUE
Wiltshire,http://opendatacommunities.org/id/unitary-authority/wiltshire,08/12/2020,1902740774,2809.52,Barchester Healthcare Ltd (Milford ,111597,SP1 ,Community Services,South Care Packages,Adult Care Nursing Placements - Spot,Third Party Payments,REVENUE
Wiltshire,http://opendatacommunities.org/id/unitary-authority/wiltshire,08/12/2020,1902740775,2809.52,Barchester Healthcare Ltd (Milford ,111597,SP1 ,Community Services,South Care Packages,Adult Care Nursing Placements - Spot,Third Party Payments,REVENUE
Wiltshire,http://opendatacommunities.org/id/unitary-authority/wiltshire,08/12/2020,1902740776,2809.52,Barchester Healthcare Ltd (Milford ,111597,SP1 ,Community Services,South Care Packages,Adult Care Nursing Placements - Spot,Third Party Payments,REVENUE
Wiltshire,http://opendatacommunities.org/id/unitary-authority/wiltshire,08/12/2020,1902740777,2368.8,Barchester Healthcare Ltd (Milford ,111597,SP1 ,Community Services,South Care Packages,Adult Residential Placements - Spot Purchase,Third Party Payments,REVENUE
Wiltshire,http://opendatacommunities.org/id/unitary-authority/wiltshire,08/12/2020,1902740778,2368.8,Barchester Healthcare Ltd (Milford ,111597,SP1 ,Community Services,South Care Packages,Adult Residential Placements - Spot Purchase,Third Party Payments,REVENUE
Wiltshire,http://opendatacommunities.org/id/unitary-authority/wiltshire,08/12/2020,1902740779,2488,Barchester Healthcare Ltd (Milford ,111597,SP1 ,Community Services,South Care Packages,Adult Residential Placements - Spot Purchase,Third Party Payments,REVENUE
Wiltshire,http://opendatacommunities.org/id/unitary-authority/wiltshire,08/12/2020,1902744259,4527.36,Barchester Healthcare Ltd (Milford ,111597,SP1 ,Community Services,Home Loans,Adult Care Nursing Placements - Spot,Third Party Payments,REVENUE
Wiltshire,http://opendatacommunities.org/id/unitary-authority/wiltshire,23/12/2020,1902756287,28337.87,Barchester Healthcare Ltd (Milford ,111597,SP1 ,Resources,Covid19 - Hospital D,Grants Expenditure,Supplies and Services,REVENUE
Wiltshire,http://opendatacommunities.org/id/unitary-authority/wiltshire,08/12/2020,1902740857,8378,Barchester Healthcare Ltd- The Wing ,121969,BA14,Community Services,MH OP West Locality,Adult Domiciliary Care,Third Party Payments,REVENUE
Wiltshire,http://opendatacommunities.org/id/unitary-authority/wiltshire,08/12/2020,1902743774,3126.64,Barchester Healthcare Ltd- The Wing ,121969,BA14,Community Services,West Care Packages,Adult Care Nursing Placements - Spot,Third Party Payments,REVENUE
Wiltshire,http://opendatacommunities.org/id/unitary-authority/wiltshire,08/12/2020,1902743775,3179.8,Barchester Healthcare Ltd- The Wing ,121969,BA14,Community Services,West Care Packages,Adult Care Nursing Placements - Spot,Third Party Payments,REVENUE
Wiltshire,http://opendatacommunities.org/id/unitary-authority/wiltshire,08/12/2020,1902743776,3400,Barchester Healthcare Ltd- The Wing ,121969,BA14,Community Services,MH OP West Locality,Adult Care Nursing Placements - Spot,Third Party Payments,REVENUE
Wiltshire,http://opendatacommunities.org/id/unitary-authority/wiltshire,08/12/2020,1902743777,3980,Barchester Healthcare Ltd- The Wing ,121969,BA14,Community Services,North Care Packages,Adult Care Nursing Placements - Spot,Third Party Payments,REVENUE
Wiltshire,http://opendatacommunities.org/id/unitary-authority/wiltshire,08/12/2020,1902743778,4000,Barchester Healthcare Ltd- The Wing ,121969,BA14,Community Services,West Care Packages,Adult Care Nursing Placements - Spot,Third Party Payments,REVENUE
Wiltshire,http://opendatacommunities.org/id/unitary-authority/wiltshire,08/12/2020,1902743779,4400,Barchester Healthcare Ltd- The Wing ,121969,BA14,Community Services,West Care Packages,Adult Care Nursing Placements - Spot,Third Party Payments,REVENUE
Wiltshire,http://opendatacommunities.org/id/unitary-authority/wiltshire,08/12/2020,1902743780,4400,Barchester Healthcare Ltd- The Wing ,121969,BA14,Community Services,MH OP West Locality,Adult Care Nursing Placements - Spot,Third Party Payments,REVENUE
Wiltshire,http://opendatacommunities.org/id/unitary-authority/wiltshire,08/12/2020,1902743781,4800,Barchester Healthcare Ltd- The Wing ,121969,BA14,Community Services,West Care Packages,Adult Care Nursing Placements - Spot,Third Party Payments,REVENUE
Wiltshire,http://opendatacommunities.org/id/unitary-authority/wiltshire,08/12/2020,1902743782,4800,Barchester Healthcare Ltd- The Wing ,121969,BA14,Community Services,MH OP West Locality,Adult Care Nursing Placements - Spot,Third Party Payments,REVENUE
Wiltshire,http://opendatacommunities.org/id/unitary-authority/wiltshire,08/12/2020,1902743783,4800,Barchester Healthcare Ltd- The Wing ,121969,BA14,Community Services,MH OP West Locality,Adult Care Nursing Placements - Spot,Third Party Payments,REVENUE
Wiltshire,http://opendatacommunities.org/id/unitary-authority/wiltshire,08/12/2020,1902743784,4800,Barchester Healthcare Ltd- The Wing ,121969,BA14,Community Services,West Care Packages,Adult Care Nursing Placements - Spot,Third Party Payments,REVENUE
Wiltshire,http://opendatacommunities.org/id/unitary-authority/wiltshire,08/12/2020,1902743785,5600,Barchester Healthcare Ltd- The Wing ,121969,BA14,Community Services,MH AOWA West Localit,Adult Care Nursing Placements - Spot,Third Party Payments,REVENUE
Wiltshire,http://opendatacommunities.org/id/unitary-authority/wiltshire,08/12/2020,1902743786,2809.52,Barchester Healthcare Ltd- The Wing ,121969,BA14,Community Services,West Care Packages,Adult Care Nursing Placements - Spot,Third Party Payments,REVENUE
Wiltshire,http://opendatacommunities.org/id/unitary-authority/wiltshire,08/12/2020,1902743787,2809.52,Barchester Healthcare Ltd- The Wing ,121969,BA14,Community Services,MH OP West Locality,Adult Care Nursing Placements - Spot,Third Party Payments,REVENUE
Wiltshire,http://opendatacommunities.org/id/unitary-authority/wiltshire,08/12/2020,1902743788,4000,Barchester Healthcare Ltd- The Wing ,121969,BA14,Community Services,Adult Care Gross Loa,Adult Residential Placements - Spot Purchase,Third Party Payments,REVENUE
Wiltshire,http://opendatacommunities.org/id/unitary-authority/wiltshire,08/12/2020,1902743789,2524,Barchester Healthcare Ltd- The Wing ,121969,BA14,Community Services,West Care Packages,Adult Residential Placements - Spot Purchase,Third Party Payments,REVENUE
Wiltshire,http://opendatacommunities.org/id/unitary-authority/wiltshire,08/12/2020,1902743790,3400,Barchester Healthcare Ltd- The Wing ,121969,BA14,Community Services,West Care Packages,Adult Residential Placements - Spot Purchase,Third Party Payments,REVENUE
Wiltshire,http://opendatacommunities.org/id/unitary-authority/wiltshire,08/12/2020,1902743791,3800,Barchester Healthcare Ltd- The Wing ,121969,BA14,Community Services,MH OP West Locality,Adult Residential Placements - Spot Purchase,Third Party Payments,REVENUE
Wiltshire,http://opendatacommunities.org/id/unitary-authority/wiltshire,08/12/2020,1902743792,3800,Barchester Healthcare Ltd- The Wing ,121969,BA14,Community Services,West Care Packages,Adult Residential Placements - Spot Purchase,Third Party Payments,REVENUE
Wiltshire,http://opendatacommunities.org/id/unitary-authority/wiltshire,08/12/2020,1902743793,3980,Barchester Healthcare Ltd- The Wing ,121969,BA14,Community Services,West Care Packages,Adult Residential Placements - Spot Purchase,Third Party Payments,REVENUE
Wiltshire,http://opendatacommunities.org/id/unitary-authority/wiltshire,08/12/2020,1902743794,4000,Barchester Healthcare Ltd- The Wing ,121969,BA14,Community Services,MH AOWA N&E Locality,Adult Residential Placements - Spot Purchase,Third Party Payments,REVENUE
Wiltshire,http://opendatacommunities.org/id/unitary-authority/wiltshire,08/12/2020,1902743795,4400,Barchester Healthcare Ltd- The Wing ,121969,BA14,Community Services,West Care Packages,Adult Residential Placements - Spot Purchase,Third Party Payments,REVENUE
Wiltshire,http://opendatacommunities.org/id/unitary-authority/wiltshire,23/12/2020,1902756346,31525.88,Barchester Healthcare Ltd- The Wing ,121969,BA14,Resources,Covid19 - Hospital D,Grants Expenditure,Supplies and Services,REVENUE
Wiltshire,http://opendatacommunities.org/id/unitary-authority/wiltshire,02/12/2020,1902740450,134901.06,Barclays Bank Plc ,126156,E14 ,Resources,Monkton Pk Off Accom,PFI Schemes,Supplies and Services,REVENUE
Wiltshire,http://opendatacommunities.org/id/unitary-authority/wiltshire,18/12/2020,1902757401,134900.5,Barclays Bank Plc ,126156,E14 ,Resources,Monkton Pk Off Accom,PFI Schemes,Supplies and Services,REVENUE
Wiltshire,http://opendatacommunities.org/id/unitary-authority/wiltshire,23/12/2020,1902739372,750,Barford Settled Estate ,110256,SP2 ,Neighbourhood & Planning,Communal Areas,Premises Rental,Premises Related,REVENUE
Wiltshire,http://opendatacommunities.org/id/unitary-authority/wiltshire,09/12/2020,1902746999,6000,Barker Care Ltd ,150040,BS8 ,Community Services,Adult Care Gross Loa,Adult Residential Placements - Spot Purchase,Third Party Payments,REVENUE
Wiltshire,http://opendatacommunities.org/id/unitary-authority/wiltshire,09/12/2020,1902747000,840,Barker Care Ltd ,150040,BS8 ,Community Services,North Care Packages,Adult Residential Placements - Spot Purchase,Third Party Payments,REVENUE
Wiltshire,http://opendatacommunities.org/id/unitary-authority/wiltshire,03/12/2020,1902741690,342.61,Barnes Coaches Ltd ,100190,SN3 ,Neighbourhood & Planning,SEN Secondary Tspt,Transport Contracts,Third Party Payments,REVENUE
Wiltshire,http://opendatacommunities.org/id/unitary-authority/wiltshire,03/12/2020,1902741690,2740.64,Barnes Coaches Ltd ,100190,SN3 ,Neighbourhood & Planning,Mainstream Secondary,Transport Contracts,Third Party Payments,REVENUE
Wiltshire,http://opendatacommunities.org/id/unitary-authority/wiltshire,03/12/2020,1902741691,5416.58,Barnes Coaches Ltd ,100190,SN3 ,Neighbourhood & Planning,Mainstream Secondary,Transport Contracts,Third Party Payments,REVENUE
Wiltshire,http://opendatacommunities.org/id/unitary-authority/wiltshire,03/12/2020,1902741693,24749.42,Barnes Coaches Ltd ,100190,SN3 ,Neighbourhood & Planning,Mainstream Secondary,Transport Contracts,Third Party Payments,REVENUE
Wiltshire,http://opendatacommunities.org/id/unitary-authority/wiltshire,03/12/2020,1902741698,1155.85,Barnes Coaches Ltd ,100190,SN3 ,Neighbourhood & Planning,Mainstream Secondary,Transport Contracts,Third Party Payments,REVENUE
Wiltshire,http://opendatacommunities.org/id/unitary-authority/wiltshire,03/12/2020,1902741700,420,Barnes Coaches Ltd ,100190,SN3 ,Neighbourhood & Planning,Mainstream Secondary,Transport Contracts,Third Party Payments,REVENUE
Wiltshire,http://opendatacommunities.org/id/unitary-authority/wiltshire,03/12/2020,1902741701,1718.6,Barnes Coaches Ltd ,100190,SN3 ,Neighbourhood & Planning,Mainstream 16+ FE,Transport Contracts,Third Party Payments,REVENUE
Wiltshire,http://opendatacommunities.org/id/unitary-authority/wiltshire,03/12/2020,1902741701,3846.4,Barnes Coaches Ltd ,100190,SN3 ,Neighbourhood & Planning,SEN 16+ Transport,Transport Contracts,Third Party Payments,REVENUE
Wiltshire,http://opendatacommunities.org/id/unitary-authority/wiltshire,03/12/2020,1902741702,1249.5,Barnes Coaches Ltd ,100190,SN3 ,Neighbourhood & Planning,Mainstream Secondary,Transport Contracts,Third Party Payments,REVENUE
Wiltshire,http://opendatacommunities.org/id/unitary-authority/wiltshire,03/12/2020,1902741703,1250,Barnes Coaches Ltd ,100190,SN3 ,Neighbourhood & Planning,Mainstream Secondary,Transport Contracts,Third Party Payments,REVENUE
Wiltshire,http://opendatacommunities.org/id/unitary-authority/wiltshire,03/12/2020,1902741704,1050,Barnes Coaches Ltd ,100190,SN3 ,Neighbourhood & Planning,Mainstream Secondary,Transport Contracts,Third Party Payments,REVENUE
Wiltshire,http://opendatacommunities.org/id/unitary-authority/wiltshire,08/12/2020,1902745800,3425,Barnes Coaches Ltd ,100190,SN3 ,Neighbourhood & Planning,Mainstream Secondary,Transport Contracts,Third Party Payments,REVENUE
Wiltshire,http://opendatacommunities.org/id/unitary-authority/wiltshire,16/12/2020,1902749458,8268.9,Barney Lodge Day Nursery ,113891,BA12,Children & Education,Free Enttlmnt 3 & 4y,Childcare Free Entitlement Early Years,Supplies and Services,REVENUE
Wiltshire,http://opendatacommunities.org/id/unitary-authority/wiltshire,16/12/2020,1902749459,1134,Barney Lodge Day Nursery ,113891,BA12,Children & Education,Free Entitlement 2 Y,Childcare Free Entitlement Early Years,Supplies and Services,REVENUE
Wiltshire,http://opendatacommunities.org/id/unitary-authority/wiltshire,08/12/2020,1902742309,4515.24,Baroda Care ,142738,SO53,Community Services,MH AOWA South Locali,Adult Residential Placements - Spot Purchase,Third Party Payments,REVENUE
Wiltshire,http://opendatacommunities.org/id/unitary-authority/wiltshire,01/12/2020,5107422178,650,Barton Hyett Associates Ltd ,143843,WR10,Wiltshire Council,Wiltshire Council,Professional Fees,Supplies and Services,CAPITAL
Wiltshire,http://opendatacommunities.org/id/unitary-authority/wiltshire,23/12/2020,1902761082,7500,BATH CATS  and  DOGS HOME ,110266,BA2 ,Neighbourhood & Planning,Technical (Env),Stray Dog & Other Animal Kennelling,Supplies and Services,REVENUE
Wiltshire,http://opendatacommunities.org/id/unitary-authority/wiltshire,23/12/2020,1902756541,1416.9,Bath Mind ,131679,BA2 ,Resources,Covid19 - Hospital D,Grants Expenditure,Supplies and Services,REVENUE
Wiltshire,http://opendatacommunities.org/id/unitary-authority/wiltshire,29/12/2020,5107424301,591.32,Bath Mind ,134100,BA1 ,Community Services,MH Commissioned Cont,Grants Expenditure,Supplies and Services,REVENUE
Wiltshire,http://opendatacommunities.org/id/unitary-authority/wiltshire,16/12/2020,1902749861,5531.5,Bath YMCA Kings Nursery ,136259,BA1 ,Children & Education,Free Enttlmnt 3 & 4y,Childcare Free Entitlement Early Years,Supplies and Services,REVENUE
Wiltshire,http://opendatacommunities.org/id/unitary-authority/wiltshire,21/12/2020,1902758747,445.2,Bath YMCA Kings Nursery ,136259,BA1 ,Children & Education,Early Years PPG,Childcare Free Entitlement Early Years,Supplies and Services,REVENUE
Wiltshire,http://opendatacommunities.org/id/unitary-authority/wiltshire,22/12/2020,1902759805,536,BBCare10 ,150734,GL17,Children & Education,Kinship & Fostering,Nursery / Childminder Fees / Sitting Service,Third Party Payments,REVENUE
Wiltshire,http://opendatacommunities.org/id/unitary-authority/wiltshire,08/12/2020,1902740626,2480,BCVS Homes ,111047,BA2 ,Community Services,North Care Packages,Adult Residential Placements - Spot Purchase,Third Party Payments,REVENUE
Wiltshire,http://opendatacommunities.org/id/unitary-authority/wiltshire,08/12/2020,1902742803,3133.4,Beach Lawns Care Home ,112383,WR1 ,Community Services,West Care Packages,Adult Residential Placements - Spot Purchase,Third Party Payments,REVENUE
Wiltshire,http://opendatacommunities.org/id/unitary-authority/wiltshire,08/12/2020,1902742804,2836.6,Beach Lawns Care Home ,112383,WR1 ,Community Services,West Care Packages,Adult Residential Placements - Spot Purchase,Third Party Payments,REVENUE
Wiltshire,http://opendatacommunities.org/id/unitary-authority/wiltshire,08/12/2020,1902742805,2893.44,Beach Lawns Care Home ,112383,WR1 ,Community Services,CTPLD Placements,Adult Residential Placements - Spot Purchase,Third Party Payments,REVENUE
Wiltshire,http://opendatacommunities.org/id/unitary-authority/wiltshire,08/12/2020,1902742806,2905.32,Beach Lawns Care Home ,112383,WR1 ,Community Services,CTPLD Placements,Adult Residential Placements - Spot Purchase,Third Party Payments,REVENUE
Wiltshire,http://opendatacommunities.org/id/unitary-authority/wiltshire,08/12/2020,1902742807,3382.44,Beach Lawns Care Home ,112383,WR1 ,Community Services,West Care Packages,Adult Residential Placements - Spot Purchase,Third Party Payments,REVENUE
Wiltshire,http://opendatacommunities.org/id/unitary-authority/wiltshire,08/12/2020,1902742808,3571.16,Beach Lawns Care Home ,112383,WR1 ,Community Services,CTPLD Placements,Adult Residential Placements - Spot Purchase,Third Party Payments,REVENUE
Wiltshire,http://opendatacommunities.org/id/unitary-authority/wiltshire,08/12/2020,1902742809,3612.92,Beach Lawns Care Home ,112383,WR1 ,Community Services,CTPLD Placements,Adult Residential Placements - Spot Purchase,Third Party Payments,REVENUE
Wiltshire,http://opendatacommunities.org/id/unitary-authority/wiltshire,08/12/2020,1902742810,3835,Beach Lawns Care Home ,112383,WR1 ,Community Services,West Care Packages,Adult Residential Placements - Spot Purchase,Third Party Payments,REVENUE
Wiltshire,http://opendatacommunities.org/id/unitary-authority/wiltshire,08/12/2020,1902742811,3980.76,Beach Lawns Care Home ,112383,WR1 ,Community Services,CTPLD Placements,Adult Residential Placements - Spot Purchase,Third Party Payments,REVENUE
Wiltshire,http://opendatacommunities.org/id/unitary-authority/wiltshire,08/12/2020,1902742812,4435.56,Beach Lawns Care Home ,112383,WR1 ,Community Services,West Care Packages,Adult Residential Placements - Spot Purchase,Third Party Payments,REVENUE
Wiltshire,http://opendatacommunities.org/id/unitary-authority/wiltshire,08/12/2020,1902742813,4445.24,Beach Lawns Care Home ,112383,WR1 ,Community Services,West Care Packages,Adult Residential Placements - Spot Purchase,Third Party Payments,REVENUE
Wiltshire,http://opendatacommunities.org/id/unitary-authority/wiltshire,08/12/2020,1902742814,5954,Beach Lawns Care Home ,112383,WR1 ,Community Services,West Care Packages,Adult Residential Placements - Spot Purchase,Third Party Payments,REVENUE
Wiltshire,http://opendatacommunities.org/id/unitary-authority/wiltshire,08/12/2020,1902742815,6268.28,Beach Lawns Care Home ,112383,WR1 ,Community Services,CTPLD Placements,Adult Residential Placements - Spot Purchase,Third Party Payments,REVENUE
Wiltshire,http://opendatacommunities.org/id/unitary-authority/wiltshire,08/12/2020,1902742816,6272.72,Beach Lawns Care Home ,112383,WR1 ,Community Services,CTPLD Placements,Adult Residential Placements - Spot Purchase,Third Party Payments,REVENUE
Wiltshire,http://opendatacommunities.org/id/unitary-authority/wiltshire,08/12/2020,1902742799,5304,Beamont Way Care Home ,112334,SP4 ,Community Services,CTPLD Placements,Adult Residential Placements - Spot Purchase,Third Party Payments,REVENUE
Wiltshire,http://opendatacommunities.org/id/unitary-authority/wiltshire,08/12/2020,1902742800,5312,Beamont Way Care Home ,112334,SP4 ,Community Services,CTPLD Placements,Adult Residential Placements - Spot Purchase,Third Party Payments,REVENUE
Wiltshire,http://opendatacommunities.org/id/unitary-authority/wiltshire,08/12/2020,1902742801,6128,Beamont Way Care Home ,112334,SP4 ,Community Services,CTPLD Placements,Adult Residential Placements - Spot Purchase,Third Party Payments,REVENUE
Wiltshire,http://opendatacommunities.org/id/unitary-authority/wiltshire,08/12/2020,1902742802,6192,Beamont Way Care Home ,112334,SP4 ,Community Services,CTPLD Placements,Adult Residential Placements - Spot Purchase,Third Party Payments,REVENUE
Wiltshire,http://opendatacommunities.org/id/unitary-authority/wiltshire,23/12/2020,1902756312,1416.9,Beamont Way Care Home ,112334,SP4 ,Resources,Covid19 - Hospital D,Grants Expenditure,Supplies and Services,REVENUE
Wiltshire,http://opendatacommunities.org/id/unitary-authority/wiltshire,08/12/2020,5107423161,2878.57,Beaufort Care Group ,144301,BH24,Children & Education,Independent Fosterin,Childrens Agency Placement,Third Party Payments,REVENUE
Wiltshire,http://opendatacommunities.org/id/unitary-authority/wiltshire,07/12/2020,5107421472,11887,Bechtle Direct Limited ,145225,SN14,Resources,Desk Top Hardware,IT Hardware Purchases,Supplies and Services,REVENUE
Wiltshire,http://opendatacommunities.org/id/unitary-authority/wiltshire,22/12/2020,1902760645,1169.7,Beck House ,123542,BS16,Community Services,CTPLD Placements,Adult Day Care Contracts,Third Party Payments,REVENUE
Wiltshire,http://opendatacommunities.org/id/unitary-authority/wiltshire,22/12/2020,1902760646,1225.4,Beck House ,123542,BS16,Community Services,CTPLD Placements,Adult Day Care Contracts,Third Party Payments,REVENUE
Wiltshire,http://opendatacommunities.org/id/unitary-authority/wiltshire,22/12/2020,1902760647,1225.4,Beck House ,123542,BS16,Community Services,CTPLD Placements,Adult Day Care Contracts,Third Party Payments,REVENUE
Wiltshire,http://opendatacommunities.org/id/unitary-authority/wiltshire,22/12/2020,1902760648,1169.7,Beck House ,123542,BS16,Community Services,CTPLD Placements,Adult Day Care Contracts,Third Party Payments,REVENUE
Wiltshire,http://opendatacommunities.org/id/unitary-authority/wiltshire,22/12/2020,1902760649,1281.1,Beck House ,123542,BS16,Community Services,CTPLD Placements,Adult Day Care Contracts,Third Party Payments,REVENUE
Wiltshire,http://opendatacommunities.org/id/unitary-authority/wiltshire,08/12/2020,1902742314,13919.6,Bedborough House ,148300,BA3 ,Community Services,CTPLD Placements,Adult Residential Placements - Spot Purchase,Third Party Payments,REVENUE
Wiltshire,http://opendatacommunities.org/id/unitary-authority/wiltshire,08/12/2020,1902742315,14205.24,Bedborough House ,148300,BA3 ,Community Services,CTPLD Placements,Adult Residential Placements - Spot Purchase,Third Party Payments,REVENUE
Wiltshire,http://opendatacommunities.org/id/unitary-authority/wiltshire,09/12/2020,1902747331,1080,Beeline Coaches ,101673,BA12,Neighbourhood & Planning,Mainstream Secondary,Transport Contracts,Third Party Payments,REVENUE
Wiltshire,http://opendatacommunities.org/id/unitary-authority/wiltshire,16/12/2020,5107422960,1507,BemroseBooth ,113983,HU7 ,Resources,DesignPrintTrowbridg,Printing,Supplies and Services,REVENUE
Wiltshire,http://opendatacommunities.org/id/unitary-authority/wiltshire,17/12/2020,1902749374,2897.25,Benger Bears Playgroup 434 ,113988,SN15,Children & Education,Free Enttlmnt 3 & 4y,Childcare Free Entitlement Early Years,Supplies and Services,REVENUE
Wiltshire,http://opendatacommunities.org/id/unitary-authority/wiltshire,17/12/2020,1902749375,567,Benger Bears Playgroup 434 ,113988,SN15,Children & Education,Free Entitlement 2 Y,Childcare Free Entitlement Early Years,Supplies and Services,REVENUE
Wiltshire,http://opendatacommunities.org/id/unitary-authority/wiltshire,08/12/2020,5107423195,468.95,Bishop Sports  and  Leisure Ltd ,110303,SL2 ,Wiltshire Council,Wiltshire Council,Equipment Purchase,Supplies and Services,CAPITAL
Wiltshire,http://opendatacommunities.org/id/unitary-authority/wiltshire,17/12/2020,1902749700,5537.7,Bishopdown Farm Community Pre-sch ,114037,SP1 ,Children & Education,Free Enttlmnt 3 & 4y,Childcare Free Entitlement Early Years,Supplies and Services,REVENUE
Wiltshire,http://opendatacommunities.org/id/unitary-authority/wiltshire,17/12/2020,1902749701,311.85,Bishopdown Farm Community Pre-sch ,114037,SP1 ,Children & Education,Free Entitlement 2 Y,Childcare Free Entitlement Early Years,Supplies and Services,REVENUE
Wiltshire,http://opendatacommunities.org/id/unitary-authority/wiltshire,16/12/2020,1902754044,1197,Black Dog Taxis Ltd ,146981,SN11,Children & Education,Supp & Safe East,Transport Contracts,Third Party Payments,REVENUE
Wiltshire,http://opendatacommunities.org/id/unitary-authority/wiltshire,16/12/2020,1902754047,1554,Black Dog Taxis Ltd ,146981,SN11,Community Services,CTPLD Placements,Transport Contracts,Third Party Payments,REVENUE
Wiltshire,http://opendatacommunities.org/id/unitary-authority/wiltshire,16/12/2020,1902754048,1840,Black Dog Taxis Ltd ,146981,SN11,Neighbourhood & Planning,SEN Primary Transprt,Transport Contracts,Third Party Payments,REVENUE
Wiltshire,http://opendatacommunities.org/id/unitary-authority/wiltshire,16/12/2020,1902754050,976,Black Dog Taxis Ltd ,146981,SN11,Neighbourhood & Planning,SEN Primary Transprt,Transport Contracts,Third Party Payments,REVENUE
Wiltshire,http://opendatacommunities.org/id/unitary-authority/wiltshire,16/12/2020,1902754054,432,Black Dog Taxis Ltd ,146981,SN11,Neighbourhood & Planning,SEN 16+ Transport,Transport Contracts,Third Party Payments,REVENUE
Wiltshire,http://opendatacommunities.org/id/unitary-authority/wiltshire,16/12/2020,1902754055,320,Black Dog Taxis Ltd ,146981,SN11,Neighbourhood & Planning,SEN 16+ Transport,Transport Contracts,Third Party Payments,REVENUE
Wiltshire,http://opendatacommunities.org/id/unitary-authority/wiltshire,16/12/2020,1902754058,2210,Black Dog Taxis Ltd ,146981,SN11,Neighbourhood & Planning,SEN 16+ Transport,Transport Contracts,Third Party Payments,REVENUE
Wiltshire,http://opendatacommunities.org/id/unitary-authority/wiltshire,08/12/2020,1902742311,3400,Blandford Grange ,145544,DT11,Community Services,West Care Packages,Adult Residential Placements - Spot Purchase,Third Party Payments,REVENUE
Wiltshire,http://opendatacommunities.org/id/unitary-authority/wiltshire,08/12/2020,1902742293,4285.71,Blenheim House Care Home ,120915,SN12,Resources,Covid19 - Hospital D,Adult Care Nursing Placements - Spot,Third Party Payments,REVENUE
Wiltshire,http://opendatacommunities.org/id/unitary-authority/wiltshire,08/12/2020,1902742294,5000,Blenheim House Care Home ,120915,SN12,Resources,Covid19 - Hospital D,Adult Care Nursing Placements - Spot,Third Party Payments,REVENUE
Wiltshire,http://opendatacommunities.org/id/unitary-authority/wiltshire,08/12/2020,1902742295,5000,Blenheim House Care Home ,120915,SN12,Resources,Covid19 - Hospital D,Adult Care Nursing Placements - Spot,Third Party Payments,REVENUE
Wiltshire,http://opendatacommunities.org/id/unitary-authority/wiltshire,08/12/2020,1902742296,5000,Blenheim House Care Home ,120915,SN12,Resources,Covid19 - Hospital D,Adult Care Nursing Placements - Spot,Third Party Payments,REVENUE
Wiltshire,http://opendatacommunities.org/id/unitary-authority/wiltshire,08/12/2020,1902742297,13200,Blenheim House Care Home ,120915,SN12,Community Services,North Care Packages,Adult Care Nursing Placements - Spot,Third Party Payments,REVENUE
Wiltshire,http://opendatacommunities.org/id/unitary-authority/wiltshire,08/12/2020,1902742298,4337.76,Blenheim House Care Home ,120915,SN12,Community Services,West Care Packages,Adult Care Nursing Placements - Spot,Third Party Payments,REVENUE
Wiltshire,http://opendatacommunities.org/id/unitary-authority/wiltshire,08/12/2020,1902742299,4800,Blenheim House Care Home ,120915,SN12,Community Services,MH AOWA West Localit,Adult Care Nursing Placements - Spot,Third Party Payments,REVENUE
Wiltshire,http://opendatacommunities.org/id/unitary-authority/wiltshire,08/12/2020,1902742300,3000,Blenheim House Care Home ,120915,SN12,Community Services,West Care Packages,Adult Residential Placements - Spot Purchase,Third Party Payments,REVENUE
Wiltshire,http://opendatacommunities.org/id/unitary-authority/wiltshire,08/12/2020,1902742301,3200,Blenheim House Care Home ,120915,SN12,Community Services,West Care Packages,Adult Residential Placements - Spot Purchase,Third Party Payments,REVENUE
Wiltshire,http://opendatacommunities.org/id/unitary-authority/wiltshire,08/12/2020,1902742302,3400,Blenheim House Care Home ,120915,SN12,Community Services,West Care Packages,Adult Residential Placements - Spot Purchase,Third Party Payments,REVENUE
Wiltshire,http://opendatacommunities.org/id/unitary-authority/wiltshire,08/12/2020,1902742303,3800,Blenheim House Care Home ,120915,SN12,Community Services,West Care Packages,Adult Residential Placements - Spot Purchase,Third Party Payments,REVENUE
Wiltshire,http://opendatacommunities.org/id/unitary-authority/wiltshire,08/12/2020,1902744284,5088,Blenheim House Care Home ,120915,SN12,Community Services,Home Loans,Adult Residential Placements - Spot Purchase,Third Party Payments,REVENUE
Wiltshire,http://opendatacommunities.org/id/unitary-authority/wiltshire,23/12/2020,1902756340,30108.99,Blenheim House Care Home ,120915,SN12,Resources,Covid19 - Hospital D,Grants Expenditure,Supplies and Services,REVENUE
Wiltshire,http://opendatacommunities.org/id/unitary-authority/wiltshire,23/12/2020,1902759723,15812.5,Bloom Procurement Services Ltd ,148008,NE8 ,Wiltshire Council,Wiltshire Council,Consultants Fees,Supplies and Services,CAPITAL
Wiltshire,http://opendatacommunities.org/id/unitary-authority/wiltshire,29/12/2020,1902759724,7200,Bloom Procurement Services Ltd ,148008,NE8 ,Wiltshire Council,Wiltshire Council,Consultants Fees,Supplies and Services,CAPITAL
Wiltshire,http://opendatacommunities.org/id/unitary-authority/wiltshire,29/12/2020,1902742172,250.25,Blue 9 Security Ltd ,149238,SP1 ,Resources,FM Leisure Centres,Premises Security Costs,Premises Related,REVENUE
Wiltshire,http://opendatacommunities.org/id/unitary-authority/wiltshire,29/12/2020,1902742172,314.18,Blue 9 Security Ltd ,149238,SP1 ,Resources,Bourne Hill,Premises Security Costs,Premises Related,REVENUE
Wiltshire,http://opendatacommunities.org/id/unitary-authority/wiltshire,29/12/2020,1902742172,450.45,Blue 9 Security Ltd ,149238,SP1 ,Resources,FM Libraries,Premises Security Costs,Premises Related,REVENUE
Wiltshire,http://opendatacommunities.org/id/unitary-authority/wiltshire,29/12/2020,1902742172,1044.45,Blue 9 Security Ltd ,149238,SP1 ,Resources,County Hall Complex,Premises Security Costs,Premises Related,REVENUE
Wiltshire,http://opendatacommunities.org/id/unitary-authority/wiltshire,29/12/2020,1902742172,2118.59,Blue 9 Security Ltd ,149238,SP1 ,Resources,SAFM - Other Assets,Premises Security Costs,Premises Related,REVENUE
Wiltshire,http://opendatacommunities.org/id/unitary-authority/wiltshire,29/12/2020,1902742172,3797.08,Blue 9 Security Ltd ,149238,SP1 ,Resources,Market Sales,Premises Security Costs,Premises Related,REVENUE
Wiltshire,http://opendatacommunities.org/id/unitary-authority/wiltshire,29/12/2020,1902742172,5334.25,Blue 9 Security Ltd ,149238,SP1 ,Resources,FM Highway Depots,Premises Security Costs,Premises Related,REVENUE
Wiltshire,http://opendatacommunities.org/id/unitary-authority/wiltshire,08/12/2020,1902742123,376.72,Blue Sky Enabling Limited ,141617,BA14,Community Services,West Care Packages,Adult Domiciliary Care Contribution,Income,REVENUE
Wiltshire,http://opendatacommunities.org/id/unitary-authority/wiltshire,08/12/2020,1902742124,376.72,Blue Sky Enabling Limited ,141617,BA14,Community Services,West Care Packages,Adult Domiciliary Care Contribution,Income,REVENUE
Wiltshire,http://opendatacommunities.org/id/unitary-authority/wiltshire,08/12/2020,1902742125,376.72,Blue Sky Enabling Limited ,141617,BA14,Community Services,West Care Packages,Adult Domiciliary Care Contribution,Income,REVENUE
Wiltshire,http://opendatacommunities.org/id/unitary-authority/wiltshire,08/12/2020,1902742126,376.72,Blue Sky Enabling Limited ,141617,BA14,Community Services,West Care Packages,Adult Domiciliary Care Contribution,Income,REVENUE
